{"text_format":"1","workbook":"xlsx","n_sheets":8,"sheets":["Stavba","300 3410300 KL","300 3410300 Rek","300 3410300 Pol","310 3410310 KL","310 3410310 Rek","310 3410310 Pol","OaVNS"],"not_rendered":{"charts":0,"images":0,"macros":0,"external_links":0,"defined_names":42,"comments":0,"pivot_tables":0},"unopened":[],"bounds":{"document_bytes":16777216,"sheet_cells":100000,"rows_first":2000,"rows_last":500,"rows_between":2000,"halvings":0,"cell_chars":16384,"cell_head_chars":4096},"cells_cut":0,"cells_raw":0,"read":"whole","date_system":"1900"}

{"sheet":"Stavba","index":0,"n_rows":40,"n_cols":10,"rows_kept":40,"cut":false,"hidden":false,"merged":[[18,8,18,9],[19,8,19,9],[20,8,20,9],[21,8,21,9],[22,8,22,9]]}
[]
[null,null,"Položkový rozpočet stavby",null,null,null,null,"Datum: "]
[null,null,null," "]
[]
[null,null,"Stavba :","3410","Prodloužení vodovodního řadu, Vyskeř - Drahoňovice, Smrčí"]
[]
[null,null,"Objednatel : ","Vodohospodářské sdružení Turnov",null,null,null,"IČO :","49295934"]
[null,null,null,"Antonína Dvořáka 287",null,null,null,"DIČ :","CZ49295934"]
[null,null,"51101","Turnov"]
[]
[null,null,"Zhotovitel : ",".",null,null,null,"IČO :"]
[null,null,null,null,null,null,null,"DIČ :"]
[]
[null,null,"Za zhotovitele :",null,null,null,null,"Za objednatele :"]
[]
[null,null,"_______________",null,null,null,null,"_______________"]
[]
[null,null,null,null,null,null,null,null,null,"Rozpočtové náklady"]
[null,"Základ pro DPH",null,12,"%",null,null,null,{"$f":"ROUND(G33,0)","v":0}]
[null,"DPH ",null,{"$f":"SazbaDPH1","v":12},"%",null,null,null,{"$f":"ROUND(I19*D20/100,0)","v":0}]
[null,"Základ pro DPH",null,21,"%",null,null,null,{"$f":"ROUND(H33,0)","v":80000}]
[null,"DPH ",null,{"$f":"SazbaDPH2","v":21},"%",null,null,null,{"$f":"ROUND(I21*D21/100,0)","v":16800}]
[null,"Cena celkem za stavbu",null,null,null,null,null,null,{"$f":"SUM(I19:I22)","v":96800}]
[]
[]
[null,"Rekapitulace stavebních objektů a provozních souborů"]
[]
[null,"Číslo a název objektu / provozního souboru",null,null,null,"Cena celkem",{"$f":"CONCATENATE(\"Základ DPH \",SazbaDPH1,\" %\")","v":"Základ DPH 12 %"},{"$f":"CONCATENATE(\"Základ DPH \",SazbaDPH2,\" %\")","v":"Základ DPH 21 %"},"DPH celkem","%"]
[null,"300","Prodloužení vodovodního řadu",null,null,{"$f":"G29+H29+I29","v":0},0,{"$f":"SUM(H38)","v":0},{"$f":"(G29*SazbaDPH1)/100+(H29*SazbaDPH2)/100","v":0},{"$f":"IF(CelkemObjekty=0,\"\",F29/CelkemObjekty*100)","v":0}]
[null,"310","Vodovodní přípojky",null,null,{"$f":"G30+H30+I30","v":0},0,{"$f":"SUM(H39)","v":0},0,0]
[null,"OaVNS","Ostatní a vedlejší náklady stavby",null,null,0,0,{"$f":"SUM(OaVNS!G28)","v":0},0,0]
[null,"PR","Povinná rezerva",null,null,96800,0,80000,16800,100]
[null,"Celkem za stavbu",null,null,null,{"$f":"SUM(F29:F32)","v":96800},{"$f":"SUM(G29:G32)","v":0},{"$f":"SUM(H29:H32)","v":80000},{"$f":"SUM(I29:I32)","v":16800},{"$f":"IF(CelkemObjekty=0,\"\",F33/CelkemObjekty*100)","v":100}]
[]
[null,"Rekapitulace stavebních rozpočtů"]
[]
[null,"Číslo objektu","Číslo a název rozpočtu",null,null,"Cena celkem",{"$f":"CONCATENATE(\"Základ DPH \",SazbaDPH1,\" %\")","v":"Základ DPH 12 %"},{"$f":"CONCATENATE(\"Základ DPH \",SazbaDPH2,\" %\")","v":"Základ DPH 21 %"},"DPH celkem","%"]
[null,"300","3410/300 Prodloužení vodovodního řadu",null,null,{"$f":"G38+H38+I38","v":0},0,{"$f":"SUM('300 3410300 KL'!C23)","v":0},{"$f":"(G38*SazbaDPH1)/100+(H38*SazbaDPH2)/100","v":0},{"$f":"IF(CelkemObjekty=0,\"\",F38/CelkemObjekty*100)","v":0}]
[null,"310","3410/310 Vodovodní přípojky",null,null,{"$f":"G39+H39+I39","v":0},0,{"$f":"SUM('310 3410310 KL'!C23)","v":0},0,0]
[null,"Celkem za stavbu",null,null,null,{"$f":"SUM(F38:F39)","v":0},{"$f":"SUM(G38:G39)","v":0},{"$f":"SUM(H38:H39)","v":0},{"$f":"SUM(I38:I39)","v":0},{"$f":"IF(CelkemObjekty=0,\"\",F40/CelkemObjekty*100)","v":0}]

{"sheet":"300 3410300 KL","index":1,"n_rows":45,"n_cols":8,"rows_kept":45,"cut":false,"hidden":false,"merged":[[50,1,50,6],[29,5,29,6],[30,5,30,6],[31,5,31,6],[32,5,32,6],[33,5,33,6],[36,1,44,6],[45,1,45,6],[46,1,46,6],[47,1,47,6],[48,1,48,6],[49,1,49,6],[22,0,22,1],[7,2,7,4],[8,2,8,4],[9,2,9,4],[10,2,10,4],[11,2,11,4]]}
["POLOŽKOVÝ ROZPOČET"]
["Rozpočet",null,"3410/300","Prodloužení vodovodního řadu",null,"JKSO ","827.11.A1"]
[]
["Objekt",null,null,null,null,"SKP "]
["300",null,"Prodloužení vodovodního řadu",null,null,"Měrná jednotka","m"]
["Stavba",null,null,null,null,"Počet jednotek",0]
["3410",null,"Prodloužení vodovodního řadu, Vyskeř - Drahoňovice",null,null,"Náklady na m.j.",{"$f":"IF(G6=0,,ROUND((F30+F32)/G6,1))","v":0}]
["Projektant",null,"PVK Projekt s.r.o.",null,null,"Typ rozpočtu"]
["Zpracovatel projektu"]
["Objednatel",null,"Vodohospodářské sdružení Turnov"]
["Dodavatel",null,".",null,null,"Zakázkové číslo "]
["Rozpočtoval",null,null,null,null,"Počet listů"]
["ROZPOČTOVÉ NÁKLADY"]
["Základní rozpočtové náklady"]
[null,"HSV celkem",{"$f":"'300 3410300 Rek'!E13","v":0}]
["Z","PSV celkem",{"$f":"'300 3410300 Rek'!F13","v":0}]
["R","M práce celkem",{"$f":"'300 3410300 Rek'!H13","v":0}]
["N","M dodávky celkem",{"$f":"'300 3410300 Rek'!G13","v":0}]
["ZRN celkem",null,{"$f":"SUM(C15:C18)","v":0}]
[]
["HZS",null,{"$f":"'300 3410300 Rek'!I13","v":0}]
["ZRN+HZS",null,{"$f":"C19+C21","v":0}]
["ZRN+ost.náklady+HZS",null,{"$f":"C22+G23","v":0}]
["Vypracoval",null,null,"Za zhotovitele",null,"Za objednatele"]
["Jméno :",null,null,"Jméno :",null,"Jméno :"]
["Datum :",null,null,"Datum :",null,"Datum :"]
[]
["Podpis :",null,null,"Podpis:",null,"Podpis:"]
[]
["Základ pro DPH",null,21,"%  ",null,{"$f":"C23-F32","v":0}]
["DPH",null,{"$f":"C30","v":21},"% ",null,{"$f":"ROUND(PRODUCT(F30,C31/100),0)","v":0}]
["Základ pro DPH",null,0,"% ",null,0]
["DPH",null,{"$f":"C32","v":0},"% ",null,{"$f":"ROUND(PRODUCT(F32,C33/100),0)","v":0}]
["CENA ZA OBJEKT CELKEM",null,null,null,null,{"$f":"ROUND(SUM(F30:F33),0)","v":0}]
[]
["Poznámka :",null,null,null,null,null,null," "]
[null,null,null,null,null,null,null," "]
[null,null,null,null,null,null,null," "]
[null,null,null,null,null,null,null," "]
[null,null,null,null,null,null,null," "]
[null,null,null,null,null,null,null," "]
[null,null,null,null,null,null,null," "]
[null,null,null,null,null,null,null," "]
[null,null,null,null,null,null,null," "]
[null,null,null,null,null,null,null," "]

{"sheet":"300 3410300 Rek","index":2,"n_rows":13,"n_cols":9,"rows_kept":13,"cut":false,"hidden":false,"merged":[[0,0,0,1],[1,0,1,1],[1,6,1,8]]}
["Stavba :",null,"3410 Prodloužení vodovodního řadu, Vyskeř - Drahoňovice",null,null,null,"Rozpočet :","3410/300"]
["Objekt :",null,"300 Prodloužení vodovodního řadu",null,null,null,"Prodloužení vodovodního řadu"]
[]
["REKAPITULACE  STAVEBNÍCH  DÍLŮ"]
[]
[null,"Stavební díl",null,null,"HSV","PSV","Dodávka","Montáž","HZS"]
[{"$f":"'300 3410300 Pol'!B7","v":"1"},{"$f":"'300 3410300 Pol'!C7","v":"Zemní práce"},null,null,{"$f":"'300 3410300 Pol'!BA112","v":0},{"$f":"'300 3410300 Pol'!BB112","v":0},{"$f":"'300 3410300 Pol'!BC112","v":0},{"$f":"'300 3410300 Pol'!BD112","v":0},{"$f":"'300 3410300 Pol'!BE112","v":0}]
[{"$f":"'300 3410300 Pol'!B113","v":"45"},{"$f":"'300 3410300 Pol'!C113","v":"Podkladní a vedlejší konstrukce"},null,null,{"$f":"'300 3410300 Pol'!BA116","v":0},{"$f":"'300 3410300 Pol'!BB116","v":0},{"$f":"'300 3410300 Pol'!BC116","v":0},{"$f":"'300 3410300 Pol'!BD116","v":0},{"$f":"'300 3410300 Pol'!BE116","v":0}]
[{"$f":"'300 3410300 Pol'!B117","v":"5"},{"$f":"'300 3410300 Pol'!C117","v":"Komunikace"},null,null,{"$f":"'300 3410300 Pol'!BA146","v":0},{"$f":"'300 3410300 Pol'!BB146","v":0},{"$f":"'300 3410300 Pol'!BC146","v":0},{"$f":"'300 3410300 Pol'!BD146","v":0},{"$f":"'300 3410300 Pol'!BE146","v":0}]
[{"$f":"'300 3410300 Pol'!B147","v":"8"},{"$f":"'300 3410300 Pol'!C147","v":"Trubní vedení"},null,null,{"$f":"'300 3410300 Pol'!BA264","v":0},{"$f":"'300 3410300 Pol'!BB264","v":0},{"$f":"'300 3410300 Pol'!BC264","v":0},{"$f":"'300 3410300 Pol'!BD264","v":0},{"$f":"'300 3410300 Pol'!BE264","v":0}]
[{"$f":"'300 3410300 Pol'!B265","v":"93"},{"$f":"'300 3410300 Pol'!C265","v":"Dokončovací práce inženýrských staveb"},null,null,{"$f":"'300 3410300 Pol'!BA323","v":0},{"$f":"'300 3410300 Pol'!BB323","v":0},{"$f":"'300 3410300 Pol'!BC323","v":0},{"$f":"'300 3410300 Pol'!BD323","v":0},{"$f":"'300 3410300 Pol'!BE323","v":0}]
[{"$f":"'300 3410300 Pol'!B324","v":"99"},{"$f":"'300 3410300 Pol'!C324","v":"Staveništní přesun hmot"},null,null,{"$f":"'300 3410300 Pol'!BA327","v":0},{"$f":"'300 3410300 Pol'!BB327","v":0},{"$f":"'300 3410300 Pol'!BC327","v":0},{"$f":"'300 3410300 Pol'!BD327","v":0},{"$f":"'300 3410300 Pol'!BE327","v":0}]
[null,"CELKEM  OBJEKT",null,null,{"$f":"SUM(E7:E12)","v":0},{"$f":"SUM(F7:F12)","v":0},{"$f":"SUM(G7:G12)","v":0},{"$f":"SUM(H7:H12)","v":0},{"$f":"SUM(I7:I12)","v":0}]

{"sheet":"300 3410300 Pol","index":3,"n_rows":327,"n_cols":80,"rows_kept":327,"cut":false,"hidden":false,"merged":[[320,2,320,3],[321,2,321,3],[325,2,325,6],[313,2,313,3],[315,2,315,6],[316,2,316,6],[317,2,317,6],[318,2,318,6],[319,2,319,6],[307,2,307,6],[308,2,308,6],[309,2,309,6],[310,2,310,6],[311,2,311,6],[312,2,312,3],[300,2,300,6],[301,2,301,6],[302,2,302,6],[303,2,303,6],[304,2,304,3],[305,2,305,3],[293,2,293,6],[294,2,294,6],[295,2,295,6],[296,2,296,3],[297,2,297,3],[299,2,299,6],[287,2,287,6],[288,2,288,6],[289,2,289,6],[290,2,290,6],[291,2,291,6],[292,2,292,6],[280,2,280,3],[281,2,281,3],[283,2,283,6],[284,2,284,6],[285,2,285,6],[286,2,286,6],[274,2,274,6],[275,2,275,6],[276,2,276,6],[277,2,277,6],[278,2,278,6],[279,2,279,3],[266,2,266,6],[267,2,267,6],[268,2,268,6],[269,2,269,6],[270,2,270,6],[271,2,271,6],[272,2,272,6],[273,2,273,6],[255,2,255,3],[256,2,256,3],[258,2,258,3],[259,2,259,3],[261,2,261,3],[262,2,262,3],[246,2,246,3],[247,2,247,3],[249,2,249,3],[250,2,250,3],[252,2,252,3],[253,2,253,3],[240,2,240,6],[241,2,241,6],[242,2,242,6],[243,2,243,6],[244,2,244,6],[245,2,245,6],[231,2,231,3],[232,2,232,3],[234,2,234,3],[235,2,235,3],[237,2,237,3],[238,2,238,3],[222,2,222,3],[223,2,223,3],[225,2,225,3],[226,2,226,3],[228,2,228,3],[229,2,229,3],[212,2,212,3],[214,2,214,3],[215,2,215,3],[217,2,217,3],[218,2,218,3],[220,2,220,3],[205,2,205,3],[207,2,207,6],[208,2,208,3],[209,2,209,3],[210,2,210,3],[211,2,211,3],[197,2,197,3],[199,2,199,6],[200,2,200,3],[201,2,201,3],[202,2,202,3],[203,2,203,3],[188,2,188,3],[190,2,190,3],[191,2,191,3],[193,2,193,6],[194,2,194,3],[196,2,196,6],[181,2,181,6],[182,2,182,3],[183,2,183,3],[185,2,185,6],[186,2,186,6],[187,2,187,3],[173,2,173,3],[175,2,175,3],[176,2,176,3],[177,2,177,3],[178,2,178,3],[180,2,180,6],[165,2,165,3],[167,2,167,6],[168,2,168,6],[169,2,169,3],[170,2,170,3],[172,2,172,6],[159,2,159,6],[160,2,160,6],[161,2,161,3],[162,2,162,3],[163,2,163,3],[164,2,164,3],[152,2,152,6],[153,2,153,6],[154,2,154,6],[155,2,155,6],[156,2,156,3],[157,2,157,3],[140,2,140,3],[141,2,141,3],[143,2,143,3],[144,2,144,3],[148,2,148,6],[149,2,149,6],[150,2,150,6],[151,2,151,6],[132,2,132,3],[133,2,133,3],[135,2,135,3],[136,2,136,3],[137,2,137,3],[139,2,139,6],[124,2,124,3],[126,2,126,3],[127,2,127,3],[128,2,128,3],[129,2,129,3],[131,2,131,3],[114,2,114,3],[118,2,118,3],[119,2,119,3],[120,2,120,3],[122,2,122,3],[123,2,123,3],[105,2,105,3],[106,2,106,3],[107,2,107,3],[108,2,108,3],[109,2,109,3],[110,2,110,3],[93,2,93,3],[94,2,94,3],[95,2,95,3],[96,2,96,3],[101,2,101,6],[103,2,103,3],[85,2,85,3],[86,2,86,3],[87,2,87,3],[88,2,88,3],[89,2,89,3],[91,2,91,3],[79,2,79,3],[80,2,80,3],[81,2,81,3],[82,2,82,3],[83,2,83,3],[84,2,84,3],[72,2,72,3],[73,2,73,3],[74,2,74,3],[75,2,75,3],[77,2,77,6],[78,2,78,6],[64,2,64,3],[65,2,65,3],[66,2,66,3],[68,2,68,3],[69,2,69,3],[70,2,70,3],[57,2,57,3],[58,2,58,3],[59,2,59,3],[60,2,60,3],[61,2,61,3],[62,2,62,3],[50,2,50,3],[51,2,51,3],[52,2,52,3],[53,2,53,3],[54,2,54,3],[55,2,55,3],[43,2,43,3],[44,2,44,3],[45,2,45,3],[46,2,46,3],[47,2,47,3],[49,2,49,6],[36,2,36,3],[37,2,37,3],[38,2,38,3],[39,2,39,3],[40,2,40,3],[42,2,42,3],[28,2,28,3],[30,2,30,6],[31,2,31,3],[32,2,32,3],[34,2,34,6],[35,2,35,3],[23,2,23,3],[24,2,24,3],[25,2,25,3],[26,2,26,3],[27,2,27,3],[13,2,13,3],[15,2,15,3],[16,2,16,3],[17,2,17,3],[19,2,19,3],[20,2,20,3],[0,0,0,6],[2,0,2,1],[3,0,3,1],[3,4,3,6],[8,2,8,3],[9,2,9,3],[10,2,10,3],[12,2,12,3],[22,2,22,6]]}
["Položkový rozpočet "]
[]
["Stavba :",null,"3410 Prodloužení vodovodního řadu, Vyskeř - Drahoňovice",null,"Rozpočet:",{"$f":"'300 3410300 Rek'!H1","v":"3410/300"}]
["Objekt :",null,"300 Prodloužení vodovodního řadu",null,{"$f":"'300 3410300 Rek'!G2","v":"Prodloužení vodovodního řadu"}]
[]
["P.č.","Číslo položky","Název položky","MJ","množství","cena / MJ","celkem (Kč)","Jednotková hmotnost","Celková hmotnost","Jednotková dem.hmot.","Celková dem.hmot."]
["Díl:","1","Zemní práce",null,null,null,null,null,null,null,null,null,null,null,1]
[1,"113107625R00","Odstranění podkladu nad 50 m2,kam.drcené tl.25 cm ","m2",142.56,null,{"$f":"E8*F8","v":0},0,{"$f":"E8*H8","v":0},-0.55000000000000004,{"$f":"E8*J8","v":-78.408000000000001},null,null,null,2,null,null,null,null,null,null,null,null,null,null,null,1,1,1,null,null,null,null,null,null,null,null,null,null,null,null,null,null,null,null,null,null,null,null,null,null,1,{"$f":"IF(AZ8=1,G8,0)","v":0},{"$f":"IF(AZ8=2,G8,0)","v":0},{"$f":"IF(AZ8=3,G8,0)","v":0},{"$f":"IF(AZ8=4,G8,0)","v":0},{"$f":"IF(AZ8=5,G8,0)","v":0},null,null,null,null,null,null,null,null,null,null,null,null,null,null,null,null,null,null,null,null,null,1,1]
[null,null,"Vodovodní řad PE D63x5,8 mm:",null,0,null,null,null,null,null,null,null,"Vodovodní řad PE D63x5,8 mm:"]
[null,null,"Rýha nad výkopy:",null,0,null,null,null,null,null,null,null,"Rýha nad výkopy:"]
[null,null,"Komunikace KSS LK + MK + rezerva 10%:162,00*0,80*1,1",null,142.56,null,null,null,null,null,null,null,"Komunikace KSS LK + MK + rezerva 10%:162,00*0,80*1,1"]
[2,"113151113R00","Fréz.živič.krytu pl.do 500 m2,pruh do 75 cm,tl.4cm ","m2",240,null,{"$f":"E12*F12","v":0},0,{"$f":"E12*H12","v":0},-8.7999999999999995E-2,{"$f":"E12*J12","v":-21.119999999999997},null,null,null,2,null,null,null,null,null,null,null,null,null,null,null,1,1,1,null,null,null,null,null,null,null,null,null,null,null,null,null,null,null,null,null,null,null,null,null,null,1,{"$f":"IF(AZ12=1,G12,0)","v":0},{"$f":"IF(AZ12=2,G12,0)","v":0},{"$f":"IF(AZ12=3,G12,0)","v":0},{"$f":"IF(AZ12=4,G12,0)","v":0},{"$f":"IF(AZ12=5,G12,0)","v":0},null,null,null,null,null,null,null,null,null,null,null,null,null,null,null,null,null,null,null,null,null,1,1]
[null,null,"Vodovodní řad PE D63x5,8 mm:",null,0,null,null,null,null,null,null,null,"Vodovodní řad PE D63x5,8 mm:"]
[null,null,"Komunikace KSS LK:240,00",null,240,null,null,null,null,null,null,null,"Komunikace KSS LK:240,00"]
[3,"113151119R00","Fréz.živič.krytu pl.do 500 m2,pruh do 75cm,tl.10cm ","m2",142.56,null,{"$f":"E15*F15","v":0},0,{"$f":"E15*H15","v":0},-0.22,{"$f":"E15*J15","v":-31.363199999999999},null,null,null,2,null,null,null,null,null,null,null,null,null,null,null,1,1,1,null,null,null,null,null,null,null,null,null,null,null,null,null,null,null,null,null,null,null,null,null,null,1,{"$f":"IF(AZ15=1,G15,0)","v":0},{"$f":"IF(AZ15=2,G15,0)","v":0},{"$f":"IF(AZ15=3,G15,0)","v":0},{"$f":"IF(AZ15=4,G15,0)","v":0},{"$f":"IF(AZ15=5,G15,0)","v":0},null,null,null,null,null,null,null,null,null,null,null,null,null,null,null,null,null,null,null,null,null,1,1]
[null,null,"Vodovodní řad PE D63x5,8 mm:",null,0,null,null,null,null,null,null,null,"Vodovodní řad PE D63x5,8 mm:"]
[null,null,"Rýha nad výkopy:",null,0,null,null,null,null,null,null,null,"Rýha nad výkopy:"]
[null,null,"Komunikace KSS LK + MK + rezerva 10%:162,00*0,80*1,1",null,142.56,null,null,null,null,null,null,null,"Komunikace KSS LK + MK + rezerva 10%:162,00*0,80*1,1"]
[4,"121100002RAA","Sejmutí ornice a uložení na deponii zpětný přesun, rozprostření v tl. 20 cm","m3",5,null,{"$f":"E19*F19","v":0},0,{"$f":"E19*H19","v":0},0,{"$f":"E19*J19","v":0},null,null,null,2,null,null,null,null,null,null,null,null,null,null,null,1,1,1,null,null,null,null,null,null,null,null,null,null,null,null,null,null,null,null,null,null,null,null,null,null,1,{"$f":"IF(AZ19=1,G19,0)","v":0},{"$f":"IF(AZ19=2,G19,0)","v":0},{"$f":"IF(AZ19=3,G19,0)","v":0},{"$f":"IF(AZ19=4,G19,0)","v":0},{"$f":"IF(AZ19=5,G19,0)","v":0},null,null,null,null,null,null,null,null,null,null,null,null,null,null,null,null,null,null,null,null,null,1,1]
[null,null,"Vodovodní řad PE D63x5,8 mm:",null,0,null,null,null,null,null,null,null,"Vodovodní řad PE D63x5,8 mm:"]
[null,null,"Prostor stávající betonové šachty a plastové VŠ:5,00*5,00*0,20",null,5,null,null,null,null,null,null,null,"Prostor stávající betonové šachty a plastové VŠ:5,00*5,00*0,20"]
[5,"130001101RRX","Příplatek za ztížené hloubení v blízkosti vedení ","m3",15.242100000000001,null,{"$f":"E22*F22","v":0},0,{"$f":"E22*H22","v":0},0,{"$f":"E22*J22","v":0},null,null,null,2,null,null,null,null,null,null,null,null,null,null,null,1,1,1,null,null,null,null,null,null,null,null,null,null,null,null,null,null,null,null,null,null,null,null,null,null,1,{"$f":"IF(AZ22=1,G22,0)","v":0},{"$f":"IF(AZ22=2,G22,0)","v":0},{"$f":"IF(AZ22=3,G22,0)","v":0},{"$f":"IF(AZ22=4,G22,0)","v":0},{"$f":"IF(AZ22=5,G22,0)","v":0},null,null,null,null,null,null,null,null,null,null,null,null,null,null,null,null,null,null,null,null,null,1,1]
[null,null,"Včetně případných nutných dokopávem a ručního výkopu podél sousedících inženýrských sítí",null,null,null,null,null,null,null,null,"Včetně případných nutných dokopávem a ručního výkopu podél sousedících inženýrských sítí",null,null,3]
[null,null,"Vodovodní řad PE D63x5,8 mm:",null,0,null,null,null,null,null,null,null,"Vodovodní řad PE D63x5,8 mm:"]
[null,null,"Začátek provozního součtu",null,0,null,null,null,null,null,null,null,"Začátek provozního součtu"]
[null,null,"Výkopy :",null,0,null,null,null,null,null,null,null,"Výkopy :"]
[null,null,"Průměrná hloubka výkopů 1,71 m:161,60*0,80*(1,71-0,40)",null,169.35679999999999,null,null,null,null,null,null,null,"Průměrná hloubka výkopů 1,71 m:161,60*0,80*(1,71-0,40)"]
[null,null,"Konec provozního součtu",null,169.35679999999999,null,null,null,null,null,null,null,"Konec provozního součtu"]
[null,null,"V hornině tř.3 - 4 - 9%:169,3568*0,09",null,15.242100000000001,null,null,null,null,null,null,null,"V hornině tř.3 - 4 - 9%:169,3568*0,09"]
[6,"130901123RT3","Bourání konstrukcí ze železobetonu ve vykopávkách bagrem s kladivem","m3",3.1,null,{"$f":"E30*F30","v":0},0,{"$f":"E30*H30","v":0},-2.5,{"$f":"E30*J30","v":-7.75},null,null,null,2,null,null,null,null,null,null,null,null,null,null,null,1,1,1,null,null,null,null,null,null,null,null,null,null,null,null,null,null,null,null,null,null,null,null,null,null,1,{"$f":"IF(AZ30=1,G30,0)","v":0},{"$f":"IF(AZ30=2,G30,0)","v":0},{"$f":"IF(AZ30=3,G30,0)","v":0},{"$f":"IF(AZ30=4,G30,0)","v":0},{"$f":"IF(AZ30=5,G30,0)","v":0},null,null,null,null,null,null,null,null,null,null,null,null,null,null,null,null,null,null,null,null,null,1,1]
[null,null,"Položka obsahuje odstranění materiálu obklopujícího betonové a železobetonové konstrukce v míře nutné pro vyzvednutí, rozpojení konstrukcí, uchopení a vyzvednutí konstrukce z výkopu a uložení na dopravní prostředek.",null,null,null,null,null,null,null,null,"Položka obsahuje odstranění materiálu obklopujícího betonové a železobetonové konstrukce v míře nutné pro vyzvednutí, rozpojení konstrukcí, uchopení a vyzvednutí konstrukce z výkopu a uložení na dopravní prostředek.",null,null,3]
[null,null,"Vodovodní řad PE D63x5,8 mm:",null,0,null,null,null,null,null,null,null,"Vodovodní řad PE D63x5,8 mm:"]
[null,null,"Stávající železobetonová šachta:3,10",null,3.1,null,null,null,null,null,null,null,"Stávající železobetonová šachta:3,10"]
[7,"132201212R00","Hloubení rýh š.do 200 cm hor.3 do 1000m3,STROJNĚ ","m3",84.678399999999996,null,{"$f":"E34*F34","v":0},0,{"$f":"E34*H34","v":0},0,{"$f":"E34*J34","v":0},null,null,null,2,null,null,null,null,null,null,null,null,null,null,null,1,1,1,null,null,null,null,null,null,null,null,null,null,null,null,null,null,null,null,null,null,null,null,null,null,1,{"$f":"IF(AZ34=1,G34,0)","v":0},{"$f":"IF(AZ34=2,G34,0)","v":0},{"$f":"IF(AZ34=3,G34,0)","v":0},{"$f":"IF(AZ34=4,G34,0)","v":0},{"$f":"IF(AZ34=5,G34,0)","v":0},null,null,null,null,null,null,null,null,null,null,null,null,null,null,null,null,null,null,null,null,null,1,1]
[null,null,"Položka obsahuje hloubení rýh traktorbagrem, naložení výkopku na dopravní prostředek pro svislé, nebo vodorovné přemístění, popř. přemístění výkopku do 3 m (po povrchu území), případné zajištění rypadel polštáři, udržování pracoviště a ochranu výkopiště proti stékání srážkové vody z okolního terénu i s jejím odvodněním, nebo odvedením, přesekání a odstranění kořenů ve výkopišti, odstranění napadávek, urovnání dna výkopu.",null,null,null,null,null,null,null,null,"Položka obsahuje hloubení rýh traktorbagrem, naložení výkopku na dopravní prostředek pro svislé, nebo vodorovné přemístění, popř. přemístění výkopku do 3 m (po povrchu území), případné zajištění rypadel polštáři, udržování pracoviště a ochranu výkopiště proti stékání srážkové vody z okolního terénu i s jejím odvodněním, nebo odvedením, přesekání a odstranění kořenů ve výkopišti, odstranění napadávek, urovnání dna výkopu.",null,null,3]
[null,null,"Vodovodní řad PE D63x5,8 mm:",null,0,null,null,null,null,null,null,null,"Vodovodní řad PE D63x5,8 mm:"]
[null,null,"Začátek provozního součtu",null,0,null,null,null,null,null,null,null,"Začátek provozního součtu"]
[null,null,"Výkopy :",null,0,null,null,null,null,null,null,null,"Výkopy :"]
[null,null,"Průměrná hloubka výkopů 1,71 m:161,60*0,80*(1,71-0,40)",null,169.35679999999999,null,null,null,null,null,null,null,"Průměrná hloubka výkopů 1,71 m:161,60*0,80*(1,71-0,40)"]
[null,null,"Konec provozního součtu",null,169.35679999999999,null,null,null,null,null,null,null,"Konec provozního součtu"]
[null,null,"V hornině tř.3 - 50%:169,3568*0,5",null,84.678399999999996,null,null,null,null,null,null,null,"V hornině tř.3 - 50%:169,3568*0,5"]
[8,"132201219R00","Přípl.za lepivost,hloubení rýh 200cm,hor.3,STROJNĚ ","m3",42.339199999999998,null,{"$f":"E42*F42","v":0},0,{"$f":"E42*H42","v":0},0,{"$f":"E42*J42","v":0},null,null,null,2,null,null,null,null,null,null,null,null,null,null,null,1,1,1,null,null,null,null,null,null,null,null,null,null,null,null,null,null,null,null,null,null,null,null,null,null,1,{"$f":"IF(AZ42=1,G42,0)","v":0},{"$f":"IF(AZ42=2,G42,0)","v":0},{"$f":"IF(AZ42=3,G42,0)","v":0},{"$f":"IF(AZ42=4,G42,0)","v":0},{"$f":"IF(AZ42=5,G42,0)","v":0},null,null,null,null,null,null,null,null,null,null,null,null,null,null,null,null,null,null,null,null,null,1,1]
[null,null,"Vodovodní řad PE D63x5,8 mm:",null,0,null,null,null,null,null,null,null,"Vodovodní řad PE D63x5,8 mm:"]
[null,null,"Začátek provozního součtu",null,0,null,null,null,null,null,null,null,"Začátek provozního součtu"]
[null,null,"Výkopy :",null,0,null,null,null,null,null,null,null,"Výkopy :"]
[null,null,"Průměrná hloubka výkopů 1,71 m:161,60*0,80*(1,71-0,40)",null,169.35679999999999,null,null,null,null,null,null,null,"Průměrná hloubka výkopů 1,71 m:161,60*0,80*(1,71-0,40)"]
[null,null,"Konec provozního součtu",null,169.35679999999999,null,null,null,null,null,null,null,"Konec provozního součtu"]
[null,null,"V hornině tř.3 - 50%:169,3568*0,5*0,5",null,42.339199999999998,null,null,null,null,null,null,null,"V hornině tř.3 - 50%:169,3568*0,5*0,5"]
[9,"132301212R00","Hloubení rýh š.do 200 cm hor.4 do 1000 m3, STROJNĚ ","m3",84.678399999999996,null,{"$f":"E49*F49","v":0},0,{"$f":"E49*H49","v":0},0,{"$f":"E49*J49","v":0},null,null,null,2,null,null,null,null,null,null,null,null,null,null,null,1,1,1,null,null,null,null,null,null,null,null,null,null,null,null,null,null,null,null,null,null,null,null,null,null,1,{"$f":"IF(AZ49=1,G49,0)","v":0},{"$f":"IF(AZ49=2,G49,0)","v":0},{"$f":"IF(AZ49=3,G49,0)","v":0},{"$f":"IF(AZ49=4,G49,0)","v":0},{"$f":"IF(AZ49=5,G49,0)","v":0},null,null,null,null,null,null,null,null,null,null,null,null,null,null,null,null,null,null,null,null,null,1,1]
[null,null,"Položka obsahuje hloubení rýh traktorbagrem, naložení výkopku na dopravní prostředek pro svislé, nebo vodorovné přemístění, popř. přemístění výkopku do 3 m (po povrchu území), případné zajištění rypadel polštáři, udržování pracoviště a ochranu výkopiště proti stékání srážkové vody z okolního terénu i s jejím odvodněním, nebo odvedením, přesekání a odstranění kořenů ve výkopišti, odstranění napadávek, urovnání dna výkopu.",null,null,null,null,null,null,null,null,"Položka obsahuje hloubení rýh traktorbagrem, naložení výkopku na dopravní prostředek pro svislé, nebo vodorovné přemístění, popř. přemístění výkopku do 3 m (po povrchu území), případné zajištění rypadel polštáři, udržování pracoviště a ochranu výkopiště proti stékání srážkové vody z okolního terénu i s jejím odvodněním, nebo odvedením, přesekání a odstranění kořenů ve výkopišti, odstranění napadávek, urovnání dna výkopu.",null,null,3]
[null,null,"Vodovodní řad PE D63x5,8 mm:",null,0,null,null,null,null,null,null,null,"Vodovodní řad PE D63x5,8 mm:"]
[null,null,"Začátek provozního součtu",null,0,null,null,null,null,null,null,null,"Začátek provozního součtu"]
[null,null,"Výkopy :",null,0,null,null,null,null,null,null,null,"Výkopy :"]
[null,null,"Průměrná hloubka výkopů 1,71 m:161,60*0,80*(1,71-0,40)",null,169.35679999999999,null,null,null,null,null,null,null,"Průměrná hloubka výkopů 1,71 m:161,60*0,80*(1,71-0,40)"]
[null,null,"Konec provozního součtu",null,169.35679999999999,null,null,null,null,null,null,null,"Konec provozního součtu"]
[null,null,"V hornině tř.4 - 50%:169,3568*0,5",null,84.678399999999996,null,null,null,null,null,null,null,"V hornině tř.4 - 50%:169,3568*0,5"]
[10,"132301219R00","Přípl.za lepivost,hloubení rýh 200cm,hor.4,STROJNĚ ","m3",42.339199999999998,null,{"$f":"E57*F57","v":0},0,{"$f":"E57*H57","v":0},0,{"$f":"E57*J57","v":0},null,null,null,2,null,null,null,null,null,null,null,null,null,null,null,1,1,1,null,null,null,null,null,null,null,null,null,null,null,null,null,null,null,null,null,null,null,null,null,null,1,{"$f":"IF(AZ57=1,G57,0)","v":0},{"$f":"IF(AZ57=2,G57,0)","v":0},{"$f":"IF(AZ57=3,G57,0)","v":0},{"$f":"IF(AZ57=4,G57,0)","v":0},{"$f":"IF(AZ57=5,G57,0)","v":0},null,null,null,null,null,null,null,null,null,null,null,null,null,null,null,null,null,null,null,null,null,1,1]
[null,null,"Vodovodní řad PE D63x5,8 mm:",null,0,null,null,null,null,null,null,null,"Vodovodní řad PE D63x5,8 mm:"]
[null,null,"Začátek provozního součtu",null,0,null,null,null,null,null,null,null,"Začátek provozního součtu"]
[null,null,"Výkopy :",null,0,null,null,null,null,null,null,null,"Výkopy :"]
[null,null,"Průměrná hloubka výkopů 1,71 m:161,60*0,80*(1,71-0,40)",null,169.35679999999999,null,null,null,null,null,null,null,"Průměrná hloubka výkopů 1,71 m:161,60*0,80*(1,71-0,40)"]
[null,null,"Konec provozního součtu",null,169.35679999999999,null,null,null,null,null,null,null,"Konec provozního součtu"]
[null,null,"V hornině tř.4 - 50%:169,3568*0,5*0,5",null,42.339199999999998,null,null,null,null,null,null,null,"V hornině tř.4 - 50%:169,3568*0,5*0,5"]
[11,"151101101R00","Pažení a rozepření stěn rýh - příložné - hl.do 2 m ","m2",552.67200000000003,null,{"$f":"E64*F64","v":0},9.8999999999999999E-4,{"$f":"E64*H64","v":0.54714528000000007},0,{"$f":"E64*J64","v":0},null,null,null,2,null,null,null,null,null,null,null,null,null,null,null,1,1,1,null,null,null,null,null,null,null,null,null,null,null,null,null,null,null,null,null,null,null,null,null,null,1,{"$f":"IF(AZ64=1,G64,0)","v":0},{"$f":"IF(AZ64=2,G64,0)","v":0},{"$f":"IF(AZ64=3,G64,0)","v":0},{"$f":"IF(AZ64=4,G64,0)","v":0},{"$f":"IF(AZ64=5,G64,0)","v":0},null,null,null,null,null,null,null,null,null,null,null,null,null,null,null,null,null,null,null,null,null,1,1]
[null,null,"Vodovodní řad PE D63x5,8 mm:",null,0,null,null,null,null,null,null,null,"Vodovodní řad PE D63x5,8 mm:"]
[null,null,"Výkopy :",null,0,null,null,null,null,null,null,null,"Výkopy :"]
[null,null,"Průměrná hloubka výkopů 1,71 m:161,60*1,71*2",null,552.67200000000003,null,null,null,null,null,null,null,"Průměrná hloubka výkopů 1,71 m:161,60*1,71*2"]
[12,"151101111R00","Odstranění pažení stěn rýh - příložné - hl. do 2 m ","m2",552.67200000000003,null,{"$f":"E68*F68","v":0},0,{"$f":"E68*H68","v":0},0,{"$f":"E68*J68","v":0},null,null,null,2,null,null,null,null,null,null,null,null,null,null,null,1,1,1,null,null,null,null,null,null,null,null,null,null,null,null,null,null,null,null,null,null,null,null,null,null,1,{"$f":"IF(AZ68=1,G68,0)","v":0},{"$f":"IF(AZ68=2,G68,0)","v":0},{"$f":"IF(AZ68=3,G68,0)","v":0},{"$f":"IF(AZ68=4,G68,0)","v":0},{"$f":"IF(AZ68=5,G68,0)","v":0},null,null,null,null,null,null,null,null,null,null,null,null,null,null,null,null,null,null,null,null,null,1,1]
[null,null,"Vodovodní řad PE D63x5,8 mm:",null,0,null,null,null,null,null,null,null,"Vodovodní řad PE D63x5,8 mm:"]
[null,null,"Výkopy :",null,0,null,null,null,null,null,null,null,"Výkopy :"]
[null,null,"Průměrná hloubka výkopů 1,71 m:161,60*1,71*2",null,552.67200000000003,null,null,null,null,null,null,null,"Průměrná hloubka výkopů 1,71 m:161,60*1,71*2"]
[13,"162701105RSZ","Vodorovné přemístění výkopku z hor.1-7 na skládku zhotovitele","m3",163.30680000000001,null,{"$f":"E72*F72","v":0},0,{"$f":"E72*H72","v":0},0,{"$f":"E72*J72","v":0},null,null,null,2,null,null,null,null,null,null,null,null,null,null,null,1,1,1,null,null,null,null,null,null,null,null,null,null,null,null,null,null,null,null,null,null,null,null,null,null,1,{"$f":"IF(AZ72=1,G72,0)","v":0},{"$f":"IF(AZ72=2,G72,0)","v":0},{"$f":"IF(AZ72=3,G72,0)","v":0},{"$f":"IF(AZ72=4,G72,0)","v":0},{"$f":"IF(AZ72=5,G72,0)","v":0},null,null,null,null,null,null,null,null,null,null,null,null,null,null,null,null,null,null,null,null,null,1,1]
[null,null,"Vodovodní řad PE D63x5,8 mm:",null,0,null,null,null,null,null,null,null,"Vodovodní řad PE D63x5,8 mm:"]
[null,null,"Výkopy:",null,0,null,null,null,null,null,null,null,"Výkopy:"]
[null,null,"V hornině tř.3 - 4:169,3568",null,169.35679999999999,null,null,null,null,null,null,null,"V hornině tř.3 - 4:169,3568"]
[null,null,"Odpočet zásypů zeminou:-6,0500",null,-6.05,null,null,null,null,null,null,null,"Odpočet zásypů zeminou:-6,0500"]
[14,"174101101R00","Zásyp jam, rýh, šachet se zhutněním ","m3",109.08620000000001,null,{"$f":"E77*F77","v":0},0,{"$f":"E77*H77","v":0},0,{"$f":"E77*J77","v":0},null,null,null,2,null,null,null,null,null,null,null,null,null,null,null,1,1,1,null,null,null,null,null,null,null,null,null,null,null,null,null,null,null,null,null,null,null,null,null,null,1,{"$f":"IF(AZ77=1,G77,0)","v":0},{"$f":"IF(AZ77=2,G77,0)","v":0},{"$f":"IF(AZ77=3,G77,0)","v":0},{"$f":"IF(AZ77=4,G77,0)","v":0},{"$f":"IF(AZ77=5,G77,0)","v":0},null,null,null,null,null,null,null,null,null,null,null,null,null,null,null,null,null,null,null,null,null,1,1]
[null,null,"Položka obsahuje strojní přemístění materiálu pro zásyp ze vzdálenosti do 10 m od okraje zásypu.",null,null,null,null,null,null,null,null,"Položka obsahuje strojní přemístění materiálu pro zásyp ze vzdálenosti do 10 m od okraje zásypu.",null,null,3]
[null,null,null,null,null,null,null,null,null,null,null,null,null,null,3]
[null,null,"Zásypy zeminou:6,0500",null,6.05,null,null,null,null,null,null,null,"Zásypy zeminou:6,0500"]
[null,null,"Začátek provozního součtu",null,0,null,null,null,null,null,null,null,"Začátek provozního součtu"]
[null,null,"Prostor původní betonové šachty a VŠ:6,0500",null,6.05,null,null,null,null,null,null,null,"Prostor původní betonové šachty a VŠ:6,0500"]
[null,null,"Zásypa ŠD fr. 0-63 mm:",null,0,null,null,null,null,null,null,null,"Zásypa ŠD fr. 0-63 mm:"]
[null,null,"Konec provozního součtu",null,6.05,null,null,null,null,null,null,null,"Konec provozního součtu"]
[null,null,"Vodovodní řad PE D63x5,8 mm:103,0362",null,103.03619999999999,null,null,null,null,null,null,null,"Vodovodní řad PE D63x5,8 mm:103,0362"]
[null,null,"Začátek provozního součtu",null,0,null,null,null,null,null,null,null,"Začátek provozního součtu"]
[null,null,"Výkopy :",null,0,null,null,null,null,null,null,null,"Výkopy :"]
[null,null,"Průměrná hloubka výkopů 1,71 m:161,60*0,80*(1,71-0,40)",null,169.35679999999999,null,null,null,null,null,null,null,"Průměrná hloubka výkopů 1,71 m:161,60*0,80*(1,71-0,40)"]
[null,null,"Odpočet objemu lože, potrubí a obsypů:-161,60*0,80*(0,15+0,063+0,30)",null,-66.320599999999999,null,null,null,null,null,null,null,"Odpočet objemu lože, potrubí a obsypů:-161,60*0,80*(0,15+0,063+0,30)"]
[null,null,"Konec provozního součtu",null,103.03619999999999,null,null,null,null,null,null,null,"Konec provozního součtu"]
[15,"175101101R00","Obsyp potrubí bez prohození sypaniny ","m3",46.424900000000001,null,{"$f":"E91*F91","v":0},0,{"$f":"E91*H91","v":0},0,{"$f":"E91*J91","v":0},null,null,null,2,null,null,null,null,null,null,null,null,null,null,null,1,1,1,null,null,null,null,null,null,null,null,null,null,null,null,null,null,null,null,null,null,null,null,null,null,1,{"$f":"IF(AZ91=1,G91,0)","v":0},{"$f":"IF(AZ91=2,G91,0)","v":0},{"$f":"IF(AZ91=3,G91,0)","v":0},{"$f":"IF(AZ91=4,G91,0)","v":0},{"$f":"IF(AZ91=5,G91,0)","v":0},null,null,null,null,null,null,null,null,null,null,null,null,null,null,null,null,null,null,null,null,null,1,1]
[null,null,"Vodovodní řad PE D63x5,8 mm:161,60*(0,80*(0,063+0,30)-0,0315^2*Pi)",null,46.424900000000001,null,null,null,null,null,null,null,"Vodovodní řad PE D63x5,8 mm:161,60*(0,80*(0,063+0,30)-0,0315^2*Pi)"]
[16,"199000002R00","Poplatek za skládku horniny 1- 7 č. dle katal. odpadů 17 05 04","m3",163.30680000000001,null,{"$f":"E93*F93","v":0},0,{"$f":"E93*H93","v":0},0,{"$f":"E93*J93","v":0},null,null,null,2,null,null,null,null,null,null,null,null,null,null,null,1,1,1,null,null,null,null,null,null,null,null,null,null,null,null,null,null,null,null,null,null,null,null,null,null,1,{"$f":"IF(AZ93=1,G93,0)","v":0},{"$f":"IF(AZ93=2,G93,0)","v":0},{"$f":"IF(AZ93=3,G93,0)","v":0},{"$f":"IF(AZ93=4,G93,0)","v":0},{"$f":"IF(AZ93=5,G93,0)","v":0},null,null,null,null,null,null,null,null,null,null,null,null,null,null,null,null,null,null,null,null,null,1,1]
[null,null,"Vodovodní řad PE D63x5,8 mm:",null,0,null,null,null,null,null,null,null,"Vodovodní řad PE D63x5,8 mm:"]
[null,null,"Výkopy:",null,0,null,null,null,null,null,null,null,"Výkopy:"]
[null,null,"V hornině tř.3 - 4:169,3568",null,169.35679999999999,null,null,null,null,null,null,null,"V hornině tř.3 - 4:169,3568"]
[null,null,"Odpočet zásypů zeminou:-6,0500",null,-6.05,null,null,null,null,null,null,null,"Odpočet zásypů zeminou:-6,0500"]
[17,"979082113RSZ","Vodorovná doprava suti po suchu na skládku zhotovitele","t",138.6412,null,{"$f":"E98*F98","v":0},0,{"$f":"E98*H98","v":0},0,{"$f":"E98*J98","v":0},null,null,null,2,null,null,null,null,null,null,null,null,null,null,null,1,1,1,null,null,null,null,null,null,null,null,null,null,null,null,null,null,null,null,null,null,null,null,null,null,1,{"$f":"IF(AZ98=1,G98,0)","v":0},{"$f":"IF(AZ98=2,G98,0)","v":0},{"$f":"IF(AZ98=3,G98,0)","v":0},{"$f":"IF(AZ98=4,G98,0)","v":0},{"$f":"IF(AZ98=5,G98,0)","v":0},null,null,null,null,null,null,null,null,null,null,null,null,null,null,null,null,null,null,null,null,null,1,1]
[18,"979089001R00","Poplatek za skládku stavební suti štěrky z komunikací, skupina odpadu 010408","t",78.408000000000001,null,{"$f":"E99*F99","v":0},0,{"$f":"E99*H99","v":0},0,{"$f":"E99*J99","v":0},null,null,null,2,null,null,null,null,null,null,null,null,null,null,null,1,1,1,null,null,null,null,null,null,null,null,null,null,null,null,null,null,null,null,null,null,null,null,null,null,1,{"$f":"IF(AZ99=1,G99,0)","v":0},{"$f":"IF(AZ99=2,G99,0)","v":0},{"$f":"IF(AZ99=3,G99,0)","v":0},{"$f":"IF(AZ99=4,G99,0)","v":0},{"$f":"IF(AZ99=5,G99,0)","v":0},null,null,null,null,null,null,null,null,null,null,null,null,null,null,null,null,null,null,null,null,null,1,1]
[19,"979990103R00","Poplatek za skládku stavební suti beton, skupina odpadu 170101","t",7.75,null,{"$f":"E100*F100","v":0},0,{"$f":"E100*H100","v":0},0,{"$f":"E100*J100","v":0},null,null,null,2,null,null,null,null,null,null,null,null,null,null,null,1,0,0,null,null,null,null,null,null,null,null,null,null,null,null,null,null,null,null,null,null,null,null,null,null,1,{"$f":"IF(AZ100=1,G100,0)","v":0},{"$f":"IF(AZ100=2,G100,0)","v":0},{"$f":"IF(AZ100=3,G100,0)","v":0},{"$f":"IF(AZ100=4,G100,0)","v":0},{"$f":"IF(AZ100=5,G100,0)","v":0},null,null,null,null,null,null,null,null,null,null,null,null,null,null,null,null,null,null,null,null,null,1,0]
[20,"979999995R00","Poplatek za reciklaci asfaltu, kusovost do 1600cm2 skupina 170302","t",52.483199999999997,null,{"$f":"E101*F101","v":0},0,{"$f":"E101*H101","v":0},0,{"$f":"E101*J101","v":0},null,null,null,2,null,null,null,null,null,null,null,null,null,null,null,1,1,1,null,null,null,null,null,null,null,null,null,null,null,null,null,null,null,null,null,null,null,null,null,null,1,{"$f":"IF(AZ101=1,G101,0)","v":0},{"$f":"IF(AZ101=2,G101,0)","v":0},{"$f":"IF(AZ101=3,G101,0)","v":0},{"$f":"IF(AZ101=4,G101,0)","v":0},{"$f":"IF(AZ101=5,G101,0)","v":0},null,null,null,null,null,null,null,null,null,null,null,null,null,null,null,null,null,null,null,null,null,1,1]
[null,null,"Položka je určena pro suť o velikosti kusu do 30x30 cm (technologický materiál určený k recyklaci).",null,null,null,null,null,null,null,null,"Položka je určena pro suť o velikosti kusu do 30x30 cm (technologický materiál určený k recyklaci).",null,null,3]
[21,"58337308.R","Štěrkopísek frakce 0-2 tř.B","t",92.512299999999996,null,{"$f":"E103*F103","v":0},1,{"$f":"E103*H103","v":92.512299999999996},null,{"$f":"E103*J103","v":0},null,null,null,2,null,null,null,null,null,null,null,null,null,null,null,3,1,"58337308.R",null,null,null,null,null,null,null,null,null,null,null,null,null,null,null,null,null,null,null,null,null,null,1,{"$f":"IF(AZ103=1,G103,0)","v":0},{"$f":"IF(AZ103=2,G103,0)","v":0},{"$f":"IF(AZ103=3,G103,0)","v":0},{"$f":"IF(AZ103=4,G103,0)","v":0},{"$f":"IF(AZ103=5,G103,0)","v":0},null,null,null,null,null,null,null,null,null,null,null,null,null,null,null,null,null,null,null,null,null,3,1]
[null,null,"Vodovodní řad PE D63x5,8 mm:161,60*(0,80*(0,063+0,30)-0,0315^2*Pi)*1,973*1,01",null,92.512299999999996,null,null,null,null,null,null,null,"Vodovodní řad PE D63x5,8 mm:161,60*(0,80*(0,063+0,30)-0,0315^2*Pi)*1,973*1,01"]
[22,"58344197R","Štěrkodrtě frakce 0-63 A","t",194.91669999999999,null,{"$f":"E105*F105","v":0},1,{"$f":"E105*H105","v":194.91669999999999},null,{"$f":"E105*J105","v":0},null,null,null,2,null,null,null,null,null,null,null,null,null,null,null,3,1,"58344197R",null,null,null,null,null,null,null,null,null,null,null,null,null,null,null,null,null,null,null,null,null,null,1,{"$f":"IF(AZ105=1,G105,0)","v":0},{"$f":"IF(AZ105=2,G105,0)","v":0},{"$f":"IF(AZ105=3,G105,0)","v":0},{"$f":"IF(AZ105=4,G105,0)","v":0},{"$f":"IF(AZ105=5,G105,0)","v":0},null,null,null,null,null,null,null,null,null,null,null,null,null,null,null,null,null,null,null,null,null,3,1]
[null,null,"Vodovodní řad PE D63x5,8 mm:103,0362*1,873*1,01",null,194.91669999999999,null,null,null,null,null,null,null,"Vodovodní řad PE D63x5,8 mm:103,0362*1,873*1,01"]
[null,null,"Začátek provozního součtu",null,0,null,null,null,null,null,null,null,"Začátek provozního součtu"]
[null,null,"Výkopy :",null,0,null,null,null,null,null,null,null,"Výkopy :"]
[null,null,"Průměrná hloubka výkopů 1,71 m:161,60*0,80*(1,71-0,40)",null,169.35679999999999,null,null,null,null,null,null,null,"Průměrná hloubka výkopů 1,71 m:161,60*0,80*(1,71-0,40)"]
[null,null,"Odpočet objemu lože, potrubí a obsypů:-161,60*0,80*(0,15+0,063+0,30)",null,-66.320599999999999,null,null,null,null,null,null,null,"Odpočet objemu lože, potrubí a obsypů:-161,60*0,80*(0,15+0,063+0,30)"]
[null,null,"Konec provozního součtu",null,103.03619999999999,null,null,null,null,null,null,null,"Konec provozního součtu"]
[null,"Celkem za","1 Zemní práce",null,null,null,{"$f":"SUM(G7:G111)","v":0},null,{"$f":"SUM(I7:I111)","v":287.97614527999997},null,{"$f":"SUM(K7:K111)","v":-138.6412},null,null,null,4,null,null,null,null,null,null,null,null,null,null,null,null,null,null,null,null,null,null,null,null,null,null,null,null,null,null,null,null,null,null,null,null,null,null,null,null,null,{"$f":"SUM(BA7:BA111)","v":0},{"$f":"SUM(BB7:BB111)","v":0},{"$f":"SUM(BC7:BC111)","v":0},{"$f":"SUM(BD7:BD111)","v":0},{"$f":"SUM(BE7:BE111)","v":0}]
["Díl:","45","Podkladní a vedlejší konstrukce",null,null,null,null,null,null,null,null,null,null,null,1]
[23,"451572111R00","Lože pod potrubí z kameniva těženého 0 - 4 mm ","m3",19.391999999999999,null,{"$f":"E114*F114","v":0},0.43051,{"$f":"E114*H114","v":8.3484499200000002},0,{"$f":"E114*J114","v":0},null,null,null,2,null,null,null,null,null,null,null,null,null,null,null,1,1,1,null,null,null,null,null,null,null,null,null,null,null,null,null,null,null,null,null,null,null,null,null,null,1,{"$f":"IF(AZ114=1,G114,0)","v":0},{"$f":"IF(AZ114=2,G114,0)","v":0},{"$f":"IF(AZ114=3,G114,0)","v":0},{"$f":"IF(AZ114=4,G114,0)","v":0},{"$f":"IF(AZ114=5,G114,0)","v":0},null,null,null,null,null,null,null,null,null,null,null,null,null,null,null,null,null,null,null,null,null,1,1]
[null,null,"Vodovodní řad PE D63x5,8 mm:161,60*0,80*0,15",null,19.391999999999999,null,null,null,null,null,null,null,"Vodovodní řad PE D63x5,8 mm:161,60*0,80*0,15"]
[null,"Celkem za","45 Podkladní a vedlejší konstrukce",null,null,null,{"$f":"SUM(G113:G115)","v":0},null,{"$f":"SUM(I113:I115)","v":8.3484499200000002},null,{"$f":"SUM(K113:K115)","v":0},null,null,null,4,null,null,null,null,null,null,null,null,null,null,null,null,null,null,null,null,null,null,null,null,null,null,null,null,null,null,null,null,null,null,null,null,null,null,null,null,null,{"$f":"SUM(BA113:BA115)","v":0},{"$f":"SUM(BB113:BB115)","v":0},{"$f":"SUM(BC113:BC115)","v":0},{"$f":"SUM(BD113:BD115)","v":0},{"$f":"SUM(BE113:BE115)","v":0}]
["Díl:","5","Komunikace",null,null,null,null,null,null,null,null,null,null,null,1]
[24,"566903111R00","Vyspravení podkladu po překopech kam.hrubě drceným ","t",66.753699999999995,null,{"$f":"E118*F118","v":0},1.1000000000000001,{"$f":"E118*H118","v":73.429069999999996},0,{"$f":"E118*J118","v":0},null,null,null,2,null,null,null,null,null,null,null,null,null,null,null,1,1,1,null,null,null,null,null,null,null,null,null,null,null,null,null,null,null,null,null,null,null,null,null,null,1,{"$f":"IF(AZ118=1,G118,0)","v":0},{"$f":"IF(AZ118=2,G118,0)","v":0},{"$f":"IF(AZ118=3,G118,0)","v":0},{"$f":"IF(AZ118=4,G118,0)","v":0},{"$f":"IF(AZ118=5,G118,0)","v":0},null,null,null,null,null,null,null,null,null,null,null,null,null,null,null,null,null,null,null,null,null,1,1]
[null,null,"Vodovodní řad PE D63x5,8 mm:",null,0,null,null,null,null,null,null,null,"Vodovodní řad PE D63x5,8 mm:"]
[null,null,"Rýha nad výkopy:",null,0,null,null,null,null,null,null,null,"Rýha nad výkopy:"]
[null,null,"Komunikace KSS LK + MK + rezerva 10%:162,00*0,80*0,25*1,873*1,1",null,66.753699999999995,null,null,null,null,null,null,null,"Komunikace KSS LK + MK + rezerva 10%:162,00*0,80*0,25*1,873*1,1"]
[25,"566904111R00","Vyspravení podkladu po překopech kam.obal.asfaltem ","t",35.64,null,{"$f":"E122*F122","v":0},1,{"$f":"E122*H122","v":35.64},0,{"$f":"E122*J122","v":0},null,null,null,2,null,null,null,null,null,null,null,null,null,null,null,1,1,1,null,null,null,null,null,null,null,null,null,null,null,null,null,null,null,null,null,null,null,null,null,null,1,{"$f":"IF(AZ122=1,G122,0)","v":0},{"$f":"IF(AZ122=2,G122,0)","v":0},{"$f":"IF(AZ122=3,G122,0)","v":0},{"$f":"IF(AZ122=4,G122,0)","v":0},{"$f":"IF(AZ122=5,G122,0)","v":0},null,null,null,null,null,null,null,null,null,null,null,null,null,null,null,null,null,null,null,null,null,1,1]
[null,null,"Vodovodní řad PE D63x5,8 mm:",null,0,null,null,null,null,null,null,null,"Vodovodní řad PE D63x5,8 mm:"]
[null,null,"Rýha nad výkopy:",null,0,null,null,null,null,null,null,null,"Rýha nad výkopy:"]
[null,null,"Komunikace KSS LK + MK + rezerva 10%:162,00*0,80*0,10*2,5*1,1",null,35.64,null,null,null,null,null,null,null,"Komunikace KSS LK + MK + rezerva 10%:162,00*0,80*0,10*2,5*1,1"]
[26,"572713112R00","Vyrovnání povrchu krytů kamen. obaleným asfaltem ","t",34.375,null,{"$f":"E126*F126","v":0},0,{"$f":"E126*H126","v":0},0,{"$f":"E126*J126","v":0},null,null,null,2,null,null,null,null,null,null,null,null,null,null,null,1,1,1,null,null,null,null,null,null,null,null,null,null,null,null,null,null,null,null,null,null,null,null,null,null,1,{"$f":"IF(AZ126=1,G126,0)","v":0},{"$f":"IF(AZ126=2,G126,0)","v":0},{"$f":"IF(AZ126=3,G126,0)","v":0},{"$f":"IF(AZ126=4,G126,0)","v":0},{"$f":"IF(AZ126=5,G126,0)","v":0},null,null,null,null,null,null,null,null,null,null,null,null,null,null,null,null,null,null,null,null,null,1,1]
[null,null,"Vodovodní řad PE D63x5,8 mm:",null,0,null,null,null,null,null,null,null,"Vodovodní řad PE D63x5,8 mm:"]
[null,null,"Vyrovnání stávajícího povrchu v průměrné tl. 2,5 cm:",null,0,null,null,null,null,null,null,null,"Vyrovnání stávajícího povrchu v průměrné tl. 2,5 cm:"]
[null,null,"Komunikace KSS LK:240,00*0,025*2,5",null,15,null,null,null,null,null,null,null,"Komunikace KSS LK:240,00*0,025*2,5"]
[null,null,"Místní komunikace :310,00*0,025*2,5",null,19.375,null,null,null,null,null,null,null,"Místní komunikace :310,00*0,025*2,5"]
[27,"573231110R00","Postřik spojovací z KAE množství zbytkového asfaltu 0,3 kg/m2","m2",550,null,{"$f":"E131*F131","v":0},5.0000000000000001E-4,{"$f":"E131*H131","v":0.27500000000000002},0,{"$f":"E131*J131","v":0},null,null,null,2,null,null,null,null,null,null,null,null,null,null,null,1,1,1,null,null,null,null,null,null,null,null,null,null,null,null,null,null,null,null,null,null,null,null,null,null,1,{"$f":"IF(AZ131=1,G131,0)","v":0},{"$f":"IF(AZ131=2,G131,0)","v":0},{"$f":"IF(AZ131=3,G131,0)","v":0},{"$f":"IF(AZ131=4,G131,0)","v":0},{"$f":"IF(AZ131=5,G131,0)","v":0},null,null,null,null,null,null,null,null,null,null,null,null,null,null,null,null,null,null,null,null,null,1,1]
[null,null,"Vodovodní řad PE D63x5,8 mm:",null,0,null,null,null,null,null,null,null,"Vodovodní řad PE D63x5,8 mm:"]
[null,null,"Komunikace KSS LK:240,00",null,240,null,null,null,null,null,null,null,"Komunikace KSS LK:240,00"]
[null,null,"Místní komunikace :310,00",null,310,null,null,null,null,null,null,null,"Místní komunikace :310,00"]
[28,"577131111RT2","Beton asfalt. ACO 11+ obrusný, š. do 3 m, tl. 4 cm plochy 201-1000 m2","m2",550,null,{"$f":"E135*F135","v":0},0,{"$f":"E135*H135","v":0},0,{"$f":"E135*J135","v":0},null,null,null,2,null,null,null,null,null,null,null,null,null,null,null,1,1,1,null,null,null,null,null,null,null,null,null,null,null,null,null,null,null,null,null,null,null,null,null,null,1,{"$f":"IF(AZ135=1,G135,0)","v":0},{"$f":"IF(AZ135=2,G135,0)","v":0},{"$f":"IF(AZ135=3,G135,0)","v":0},{"$f":"IF(AZ135=4,G135,0)","v":0},{"$f":"IF(AZ135=5,G135,0)","v":0},null,null,null,null,null,null,null,null,null,null,null,null,null,null,null,null,null,null,null,null,null,1,1]
[null,null,"Vodovodní řad PE D63x5,8 mm:",null,0,null,null,null,null,null,null,null,"Vodovodní řad PE D63x5,8 mm:"]
[null,null,"Komunikace KSS LK:240,00",null,240,null,null,null,null,null,null,null,"Komunikace KSS LK:240,00"]
[null,null,"Místní komunikace :310,00",null,310,null,null,null,null,null,null,null,"Místní komunikace :310,00"]
[29,"599142111RRX","Úprava zálivky pracovní spáry ","m",60,null,{"$f":"E139*F139","v":0},2.2399999999999998E-3,{"$f":"E139*H139","v":0.13439999999999999},0,{"$f":"E139*J139","v":0},null,null,null,2,null,null,null,null,null,null,null,null,null,null,null,1,1,1,null,null,null,null,null,null,null,null,null,null,null,null,null,null,null,null,null,null,null,null,null,null,1,{"$f":"IF(AZ139=1,G139,0)","v":0},{"$f":"IF(AZ139=2,G139,0)","v":0},{"$f":"IF(AZ139=3,G139,0)","v":0},{"$f":"IF(AZ139=4,G139,0)","v":0},{"$f":"IF(AZ139=5,G139,0)","v":0},null,null,null,null,null,null,null,null,null,null,null,null,null,null,null,null,null,null,null,null,null,1,1]
[null,null,"Včetně vyčištění spár, zalití spár asfaltovou zálivkou, nátěru asfaltovým lakem a posyp drtí.",null,null,null,null,null,null,null,null,"Včetně vyčištění spár, zalití spár asfaltovou zálivkou, nátěru asfaltovým lakem a posyp drtí.",null,null,3]
[null,null,"Vodovodní řad PE D63x5,8 mm:",null,0,null,null,null,null,null,null,null,"Vodovodní řad PE D63x5,8 mm:"]
[null,null,"Komunikace KSS LK :60,00",null,60,null,null,null,null,null,null,null,"Komunikace KSS LK :60,00"]
[30,"919731121R00","Zarovnání styčné plochy živičné tl. do 5 cm ","m",60,null,{"$f":"E143*F143","v":0},0,{"$f":"E143*H143","v":0},0,{"$f":"E143*J143","v":0},null,null,null,2,null,null,null,null,null,null,null,null,null,null,null,1,1,1,null,null,null,null,null,null,null,null,null,null,null,null,null,null,null,null,null,null,null,null,null,null,1,{"$f":"IF(AZ143=1,G143,0)","v":0},{"$f":"IF(AZ143=2,G143,0)","v":0},{"$f":"IF(AZ143=3,G143,0)","v":0},{"$f":"IF(AZ143=4,G143,0)","v":0},{"$f":"IF(AZ143=5,G143,0)","v":0},null,null,null,null,null,null,null,null,null,null,null,null,null,null,null,null,null,null,null,null,null,1,1]
[null,null,"Vodovodní řad PE D63x5,8 mm:",null,0,null,null,null,null,null,null,null,"Vodovodní řad PE D63x5,8 mm:"]
[null,null,"Komunikace KSS LK :60,00",null,60,null,null,null,null,null,null,null,"Komunikace KSS LK :60,00"]
[null,"Celkem za","5 Komunikace",null,null,null,{"$f":"SUM(G117:G145)","v":0},null,{"$f":"SUM(I117:I145)","v":109.47847},null,{"$f":"SUM(K117:K145)","v":0},null,null,null,4,null,null,null,null,null,null,null,null,null,null,null,null,null,null,null,null,null,null,null,null,null,null,null,null,null,null,null,null,null,null,null,null,null,null,null,null,null,{"$f":"SUM(BA117:BA145)","v":0},{"$f":"SUM(BB117:BB145)","v":0},{"$f":"SUM(BC117:BC145)","v":0},{"$f":"SUM(BD117:BD145)","v":0},{"$f":"SUM(BE117:BE145)","v":0}]
["Díl:","8","Trubní vedení",null,null,null,null,null,null,null,null,null,null,null,1]
[31,"850245121R00","Výřez nebo výsek na potrubí litinovém DN 80 ","kus",1,null,{"$f":"E148*F148","v":0},0,{"$f":"E148*H148","v":0},0,{"$f":"E148*J148","v":0},null,null,null,2,null,null,null,null,null,null,null,null,null,null,null,1,1,1,null,null,null,null,null,null,null,null,null,null,null,null,null,null,null,null,null,null,null,null,null,null,1,{"$f":"IF(AZ148=1,G148,0)","v":0},{"$f":"IF(AZ148=2,G148,0)","v":0},{"$f":"IF(AZ148=3,G148,0)","v":0},{"$f":"IF(AZ148=4,G148,0)","v":0},{"$f":"IF(AZ148=5,G148,0)","v":0},null,null,null,null,null,null,null,null,null,null,null,null,null,null,null,null,null,null,null,null,null,1,1]
[null,null,"Položky výřezu nebo výseku na potrubí z trub litinových tlakových jsou určeny pro dva řezy nebo seky prováděné na potrubí dodatečně. V položkách jsou zakalkulovány náklady na",null,null,null,null,null,null,null,null,"Položky výřezu nebo výseku na potrubí z trub litinových tlakových jsou určeny pro dva řezy nebo seky prováděné na potrubí dodatečně. V položkách jsou zakalkulovány náklady na",null,null,3]
[null,null,"- ohlášení uzavírání vody",null,null,null,null,null,null,null,null,"- ohlášení uzavírání vody",null,null,3]
[null,null,"- uzavření a otevření šoupat",null,null,null,null,null,null,null,null,"- uzavření a otevření šoupat",null,null,3]
[null,null,"- vypuštění a napuštění vody",null,null,null,null,null,null,null,null,"- vypuštění a napuštění vody",null,null,3]
[null,null,"- odvzdušnění potrubí",null,null,null,null,null,null,null,null,"- odvzdušnění potrubí",null,null,3]
[null,null,"- strojní nebo ruční výřez potrubí",null,null,null,null,null,null,null,null,"- strojní nebo ruční výřez potrubí",null,null,3]
[null,null,"- nutné úpravy výkopu v prostoru provádění",null,null,null,null,null,null,null,null,"- nutné úpravy výkopu v prostoru provádění",null,null,3]
[null,null,"- montáž tvarovek",null,null,null,null,null,null,null,null,"- montáž tvarovek",null,null,3]
[null,null,"Vodovodní řad PE D63x5,8 mm:",null,0,null,null,null,null,null,null,null,"Vodovodní řad PE D63x5,8 mm:"]
[null,null,"Přerušení stávajícího vodovodního řadu:1",null,1,null,null,null,null,null,null,null,"Přerušení stávajícího vodovodního řadu:1"]
[32,"857242121R00","Montáž tvarovek litin. jednoos.přír. výkop DN 80 včetně nerezových spoj. prvků a obandážování spoje","kus",9,null,{"$f":"E159*F159","v":0},2.2000000000000001E-4,{"$f":"E159*H159","v":1.98E-3},0,{"$f":"E159*J159","v":0},null,null,null,2,null,null,null,null,null,null,null,null,null,null,null,1,1,1,null,null,null,null,null,null,null,null,null,null,null,null,null,null,null,null,null,null,null,null,null,null,1,{"$f":"IF(AZ159=1,G159,0)","v":0},{"$f":"IF(AZ159=2,G159,0)","v":0},{"$f":"IF(AZ159=3,G159,0)","v":0},{"$f":"IF(AZ159=4,G159,0)","v":0},{"$f":"IF(AZ159=5,G159,0)","v":0},null,null,null,null,null,null,null,null,null,null,null,null,null,null,null,null,null,null,null,null,null,1,1]
[null,null,"Položka je určena pro montáž litinových tvarovek na potrubí litinovém tlakovém přírubovém jednoosých v otevřeném výkopu, v otevřeném kanálu nebo v šachtě.",null,null,null,null,null,null,null,null,"Položka je určena pro montáž litinových tvarovek na potrubí litinovém tlakovém přírubovém jednoosých v otevřeném výkopu, v otevřeném kanálu nebo v šachtě.",null,null,3]
[null,null,"Součástí položky je i dodávka nerezových spojovacích prvků (šrouby, podložky, matky) a kompletního obandážování spojů. ",null,null,null,null,null,null,null,null,"Součástí položky je i dodávka nerezových spojovacích prvků (šrouby, podložky, matky) a kompletního obandážování spojů. ",null,null,3]
[null,null,"Vodovodní řad PE D63x5,8 mm:",null,0,null,null,null,null,null,null,null,"Vodovodní řad PE D63x5,8 mm:"]
[null,null,"Q DN50:1",null,1,null,null,null,null,null,null,null,"Q DN50:1"]
[null,null,"LN + TP D63/DN50:4",null,4,null,null,null,null,null,null,null,"LN + TP D63/DN50:4"]
[null,null,"N DN50:2",null,2,null,null,null,null,null,null,null,"N DN50:2"]
[null,null,"FF DN50/300:2",null,2,null,null,null,null,null,null,null,"FF DN50/300:2"]
[33,"857244121R00","Montáž tvarovek litin. odboč. přír. výkop DN 80 včetně nerezových spoj. prvků a obandážování spoje","kus",2,null,{"$f":"E167*F167","v":0},3.2000000000000003E-4,{"$f":"E167*H167","v":6.4000000000000005E-4},0,{"$f":"E167*J167","v":0},null,null,null,2,null,null,null,null,null,null,null,null,null,null,null,1,1,1,null,null,null,null,null,null,null,null,null,null,null,null,null,null,null,null,null,null,null,null,null,null,1,{"$f":"IF(AZ167=1,G167,0)","v":0},{"$f":"IF(AZ167=2,G167,0)","v":0},{"$f":"IF(AZ167=3,G167,0)","v":0},{"$f":"IF(AZ167=4,G167,0)","v":0},{"$f":"IF(AZ167=5,G167,0)","v":0},null,null,null,null,null,null,null,null,null,null,null,null,null,null,null,null,null,null,null,null,null,1,1]
[null,null,"Položka je určena pro montáž litinových tvarovek na potrubí litinovém tlakovém přírubovém, odbočných, v otevřeném výkopu, v otevřeném kanálu nebo v šachtě.",null,null,null,null,null,null,null,null,"Položka je určena pro montáž litinových tvarovek na potrubí litinovém tlakovém přírubovém, odbočných, v otevřeném výkopu, v otevřeném kanálu nebo v šachtě.",null,null,3]
[null,null,"Součástí položky je i dodávka nerezových spojovacích prvků (šrouby, podložky, matky) a kompletního obandážování spojů. ",null,null,null,null,null,null,null,null,"Součástí položky je i dodávka nerezových spojovacích prvků (šrouby, podložky, matky) a kompletního obandážování spojů. ",null,null,3]
[null,null,"Vodovodní řad PE D63x5,8 mm:",null,0,null,null,null,null,null,null,null,"Vodovodní řad PE D63x5,8 mm:"]
[null,null,"T DN50/50:2",null,2,null,null,null,null,null,null,null,"T DN50/50:2"]
[34,"871211121R00","Montáž trubek polyetylenových ve výkopu d 63 mm ","m",161.6,null,{"$f":"E172*F172","v":0},0,{"$f":"E172*H172","v":0},0,{"$f":"E172*J172","v":0},null,null,null,2,null,null,null,null,null,null,null,null,null,null,null,1,1,1,null,null,null,null,null,null,null,null,null,null,null,null,null,null,null,null,null,null,null,null,null,null,1,{"$f":"IF(AZ172=1,G172,0)","v":0},{"$f":"IF(AZ172=2,G172,0)","v":0},{"$f":"IF(AZ172=3,G172,0)","v":0},{"$f":"IF(AZ172=4,G172,0)","v":0},{"$f":"IF(AZ172=5,G172,0)","v":0},null,null,null,null,null,null,null,null,null,null,null,null,null,null,null,null,null,null,null,null,null,1,1]
[null,null,"V položce je uvažováno použití svitku.",null,null,null,null,null,null,null,null,"V položce je uvažováno použití svitku.",null,null,3]
[null,null,"Vodovodní řad PE D63x5,8 mm:161,60",null,161.6,null,null,null,null,null,null,null,"Vodovodní řad PE D63x5,8 mm:161,60"]
[35,"877212121R00","Přirážka za 1 spoj elektrotvarovky d 63 mm ","kus",21,null,{"$f":"E175*F175","v":0},0,{"$f":"E175*H175","v":0},0,{"$f":"E175*J175","v":0},null,null,null,2,null,null,null,null,null,null,null,null,null,null,null,1,1,1,null,null,null,null,null,null,null,null,null,null,null,null,null,null,null,null,null,null,null,null,null,null,1,{"$f":"IF(AZ175=1,G175,0)","v":0},{"$f":"IF(AZ175=2,G175,0)","v":0},{"$f":"IF(AZ175=3,G175,0)","v":0},{"$f":"IF(AZ175=4,G175,0)","v":0},{"$f":"IF(AZ175=5,G175,0)","v":0},null,null,null,null,null,null,null,null,null,null,null,null,null,null,null,null,null,null,null,null,null,1,1]
[null,null,"Vodovodní řad PE D63x5,8 mm:",null,0,null,null,null,null,null,null,null,"Vodovodní řad PE D63x5,8 mm:"]
[null,null,"Elektrospojky PE D63:16",null,16,null,null,null,null,null,null,null,"Elektrospojky PE D63:16"]
[null,null,"Oblouk PE D63/45°:4",null,4,null,null,null,null,null,null,null,"Oblouk PE D63/45°:4"]
[null,null,"Oblouk PE D63/30°:1",null,1,null,null,null,null,null,null,null,"Oblouk PE D63/30°:1"]
[36,"891211111R00","Montáž vodovodních šoupátek ve výkopu DN 50 včetně nerezových spoj. prvků a obandážování spoje","kus",2,null,{"$f":"E180*F180","v":0},2.1000000000000001E-4,{"$f":"E180*H180","v":4.2000000000000002E-4},0,{"$f":"E180*J180","v":0},null,null,null,2,null,null,null,null,null,null,null,null,null,null,null,1,1,1,null,null,null,null,null,null,null,null,null,null,null,null,null,null,null,null,null,null,null,null,null,null,1,{"$f":"IF(AZ180=1,G180,0)","v":0},{"$f":"IF(AZ180=2,G180,0)","v":0},{"$f":"IF(AZ180=3,G180,0)","v":0},{"$f":"IF(AZ180=4,G180,0)","v":0},{"$f":"IF(AZ180=5,G180,0)","v":0},null,null,null,null,null,null,null,null,null,null,null,null,null,null,null,null,null,null,null,null,null,1,1]
[null,null,"Položka je určena pro montáž vodovodních šoupátek v otevřeném výkopu nebo v šachtách s osazením zemní soupravy (bez poklopů). V položce jsou zakalkulovány i náklady na vytvoření otvorů ve stropech šachet pro prostup zemních souprav šoupátek.",null,null,null,null,null,null,null,null,"Položka je určena pro montáž vodovodních šoupátek v otevřeném výkopu nebo v šachtách s osazením zemní soupravy (bez poklopů). V položce jsou zakalkulovány i náklady na vytvoření otvorů ve stropech šachet pro prostup zemních souprav šoupátek.",null,null,3]
[null,null,"Součástí položky je i dodávka nerezových spojovacích prvků (šrouby, podložky, matky) a kompletního obandážování spojů. ",null,null,null,null,null,null,null,null,"Součástí položky je i dodávka nerezových spojovacích prvků (šrouby, podložky, matky) a kompletního obandážování spojů. ",null,null,3]
[null,null,"Vodovodní řad PE D63x5,8 mm:",null,0,null,null,null,null,null,null,null,"Vodovodní řad PE D63x5,8 mm:"]
[null,null,"Šoupě DN50:2",null,2,null,null,null,null,null,null,null,"Šoupě DN50:2"]
[37,"891247111R00","Montáž hydrantů podzemních DN 80 včetně nerezových spoj. prvků a obandážování spoje","kus",2,null,{"$f":"E185*F185","v":0},1.1E-4,{"$f":"E185*H185","v":2.2000000000000001E-4},0,{"$f":"E185*J185","v":0},null,null,null,2,null,null,null,null,null,null,null,null,null,null,null,1,1,1,null,null,null,null,null,null,null,null,null,null,null,null,null,null,null,null,null,null,null,null,null,null,1,{"$f":"IF(AZ185=1,G185,0)","v":0},{"$f":"IF(AZ185=2,G185,0)","v":0},{"$f":"IF(AZ185=3,G185,0)","v":0},{"$f":"IF(AZ185=4,G185,0)","v":0},{"$f":"IF(AZ185=5,G185,0)","v":0},null,null,null,null,null,null,null,null,null,null,null,null,null,null,null,null,null,null,null,null,null,1,1]
[null,null,"Položka je určena pro montáž hydrantů podzemních (bez osazení poklopů) na potrubí včetně drenážního obalu.",null,null,null,null,null,null,null,null,"Položka je určena pro montáž hydrantů podzemních (bez osazení poklopů) na potrubí včetně drenážního obalu.",null,null,3]
[null,null,"Součástí položky je i dodávka nerezových spojovacích prvků (šrouby, podložky, matky) a kompletního obandážování spojů. ",null,null,null,null,null,null,null,null,"Součástí položky je i dodávka nerezových spojovacích prvků (šrouby, podložky, matky) a kompletního obandážování spojů. ",null,null,3]
[null,null,"Vodovodní řad PE D63x5,8 mm:",null,0,null,null,null,null,null,null,null,"Vodovodní řad PE D63x5,8 mm:"]
[null,null,"Proplachovací souprava D810 DN50/1,5:2",null,2,null,null,null,null,null,null,null,"Proplachovací souprava D810 DN50/1,5:2"]
[38,"891249111R00","Montáž navrtávacích pasů DN 80 s ventilem ","kus",5,null,{"$f":"E190*F190","v":0},0,{"$f":"E190*H190","v":0},0,{"$f":"E190*J190","v":0},null,null,null,2,null,null,null,null,null,null,null,null,null,null,null,1,1,1,null,null,null,null,null,null,null,null,null,null,null,null,null,null,null,null,null,null,null,null,null,null,1,{"$f":"IF(AZ190=1,G190,0)","v":0},{"$f":"IF(AZ190=2,G190,0)","v":0},{"$f":"IF(AZ190=3,G190,0)","v":0},{"$f":"IF(AZ190=4,G190,0)","v":0},{"$f":"IF(AZ190=5,G190,0)","v":0},null,null,null,null,null,null,null,null,null,null,null,null,null,null,null,null,null,null,null,null,null,1,1]
[null,null,"Vodovodní řad PE D63x5,8 mm:",null,0,null,null,null,null,null,null,null,"Vodovodní řad PE D63x5,8 mm:"]
[null,null,"DAV (KIT) PE D63/32 Pro VP:5",null,5,null,null,null,null,null,null,null,"DAV (KIT) PE D63/32 Pro VP:5"]
[39,"892233111R00","Desinfekce vodovodního potrubí DN 70 ","m",161.6,null,{"$f":"E193*F193","v":0},0,{"$f":"E193*H193","v":0},0,{"$f":"E193*J193","v":0},null,null,null,2,null,null,null,null,null,null,null,null,null,null,null,1,1,1,null,null,null,null,null,null,null,null,null,null,null,null,null,null,null,null,null,null,null,null,null,null,1,{"$f":"IF(AZ193=1,G193,0)","v":0},{"$f":"IF(AZ193=2,G193,0)","v":0},{"$f":"IF(AZ193=3,G193,0)","v":0},{"$f":"IF(AZ193=4,G193,0)","v":0},{"$f":"IF(AZ193=5,G193,0)","v":0},null,null,null,null,null,null,null,null,null,null,null,null,null,null,null,null,null,null,null,null,null,1,1]
[null,null,"V položce jsou zakalkulovány náklady na napuštění a vypuštění vody, dodání vody a desinfekčního prostředku a na bakteriologický rozbor vody.",null,null,null,null,null,null,null,null,"V položce jsou zakalkulovány náklady na napuštění a vypuštění vody, dodání vody a desinfekčního prostředku a na bakteriologický rozbor vody.",null,null,3]
[null,null,"Vodovodní řad PE D63x5,8 mm:161,60",null,161.6,null,null,null,null,null,null,null,"Vodovodní řad PE D63x5,8 mm:161,60"]
[40,"892241111R00","Tlaková zkouška vodovodního potrubí DN 80 včetně zajištění konců potrubí","m",161.6,null,{"$f":"E196*F196","v":0},0,{"$f":"E196*H196","v":0},0,{"$f":"E196*J196","v":0},null,null,null,2,null,null,null,null,null,null,null,null,null,null,null,1,1,1,null,null,null,null,null,null,null,null,null,null,null,null,null,null,null,null,null,null,null,null,null,null,1,{"$f":"IF(AZ196=1,G196,0)","v":0},{"$f":"IF(AZ196=2,G196,0)","v":0},{"$f":"IF(AZ196=3,G196,0)","v":0},{"$f":"IF(AZ196=4,G196,0)","v":0},{"$f":"IF(AZ196=5,G196,0)","v":0},null,null,null,null,null,null,null,null,null,null,null,null,null,null,null,null,null,null,null,null,null,1,1]
[null,null,"V položce jsou započteny náklady na přísun, montáž, demontáž a odsun zkoušecího čerpadla, napuštění tlakovou vodou a dodání vody pro tlakovou zkoušku.",null,null,null,null,null,null,null,null,"V položce jsou započteny náklady na přísun, montáž, demontáž a odsun zkoušecího čerpadla, napuštění tlakovou vodou a dodání vody pro tlakovou zkoušku.",null,null,3]
[null,null,"Vodovodní řad PE D63x5,8 mm:161,60",null,161.6,null,null,null,null,null,null,null,"Vodovodní řad PE D63x5,8 mm:161,60"]
[41,"899713111RRX","Orientační tabulky na sloupku ocelovém, betonovém ","kus",9,null,{"$f":"E199*F199","v":0},2.4000000000000001E-4,{"$f":"E199*H199","v":2.16E-3},0,{"$f":"E199*J199","v":0},null,null,null,2,null,null,null,null,null,null,null,null,null,null,null,1,1,1,null,null,null,null,null,null,null,null,null,null,null,null,null,null,null,null,null,null,null,null,null,null,1,{"$f":"IF(AZ199=1,G199,0)","v":0},{"$f":"IF(AZ199=2,G199,0)","v":0},{"$f":"IF(AZ199=3,G199,0)","v":0},{"$f":"IF(AZ199=4,G199,0)","v":0},{"$f":"IF(AZ199=5,G199,0)","v":0},null,null,null,null,null,null,null,null,null,null,null,null,null,null,null,null,null,null,null,null,null,1,1]
[null,null,"Položka platí pro orientační tabulky na vodovodních a kanalizačních řadech. V položce jsou zakalkulovány náklady na dodání a připevnění tabulky a na osazení sloupku. V položce jsou zakalkulovány náklady na zemní práce a na dodání sloupků (betonových nebo ocelových s betonovými patkami)",null,null,null,null,null,null,null,null,"Položka platí pro orientační tabulky na vodovodních a kanalizačních řadech. V položce jsou zakalkulovány náklady na dodání a připevnění tabulky a na osazení sloupku. V položce jsou zakalkulovány náklady na zemní práce a na dodání sloupků (betonových nebo ocelových s betonovými patkami)",null,null,3]
[null,null,"Vodovodní řad PE D63x5,8 mm:",null,0,null,null,null,null,null,null,null,"Vodovodní řad PE D63x5,8 mm:"]
[null,null,"Pro Šoupě DN50:2",null,2,null,null,null,null,null,null,null,"Pro Šoupě DN50:2"]
[null,null,"Pro Proplachovací souprava D810 DN50/1,5:2",null,2,null,null,null,null,null,null,null,"Pro Proplachovací souprava D810 DN50/1,5:2"]
[null,null,"Pro DAV (KIT) PE D63/32 Pro VP:5",null,5,null,null,null,null,null,null,null,"Pro DAV (KIT) PE D63/32 Pro VP:5"]
[42,"899721112R00","Fólie výstražná z PVC bílá, šířka 30 cm ","m",161.6,null,{"$f":"E205*F205","v":0},0,{"$f":"E205*H205","v":0},0,{"$f":"E205*J205","v":0},null,null,null,2,null,null,null,null,null,null,null,null,null,null,null,1,1,1,null,null,null,null,null,null,null,null,null,null,null,null,null,null,null,null,null,null,null,null,null,null,1,{"$f":"IF(AZ205=1,G205,0)","v":0},{"$f":"IF(AZ205=2,G205,0)","v":0},{"$f":"IF(AZ205=3,G205,0)","v":0},{"$f":"IF(AZ205=4,G205,0)","v":0},{"$f":"IF(AZ205=5,G205,0)","v":0},null,null,null,null,null,null,null,null,null,null,null,null,null,null,null,null,null,null,null,null,null,1,1]
[null,null,"Vodovodní řad PE D63x5,8 mm:161,60",null,161.6,null,null,null,null,null,null,null,"Vodovodní řad PE D63x5,8 mm:161,60"]
[43,"899731114R00","Vodič signalizační CYY 6 mm2 ","m",197.6,null,{"$f":"E207*F207","v":0},8.0000000000000007E-5,{"$f":"E207*H207","v":1.5807999999999999E-2},0,{"$f":"E207*J207","v":0},null,null,null,2,null,null,null,null,null,null,null,null,null,null,null,1,1,1,null,null,null,null,null,null,null,null,null,null,null,null,null,null,null,null,null,null,null,null,null,null,1,{"$f":"IF(AZ207=1,G207,0)","v":0},{"$f":"IF(AZ207=2,G207,0)","v":0},{"$f":"IF(AZ207=3,G207,0)","v":0},{"$f":"IF(AZ207=4,G207,0)","v":0},{"$f":"IF(AZ207=5,G207,0)","v":0},null,null,null,null,null,null,null,null,null,null,null,null,null,null,null,null,null,null,null,null,null,1,1]
[null,null,"Součástí položky je zajištění proměření vodiče a výchozí zevize.",null,null,null,null,null,null,null,null,"Součástí položky je zajištění proměření vodiče a výchozí zevize.",null,null,3]
[null,null,"Vodovodní řad PE D63x5,8 mm:161,60",null,161.6,null,null,null,null,null,null,null,"Vodovodní řad PE D63x5,8 mm:161,60"]
[null,null,"Vyvedení:",null,0,null,null,null,null,null,null,null,"Vyvedení:"]
[null,null,"Pro Šoupě DN50:2,00*2*2",null,8,null,null,null,null,null,null,null,"Pro Šoupě DN50:2,00*2*2"]
[null,null,"Pro Proplachovací souprava D810 DN50/1,5:2,00*2*2",null,8,null,null,null,null,null,null,null,"Pro Proplachovací souprava D810 DN50/1,5:2,00*2*2"]
[null,null,"Pro DAV (KIT) PE D63/32 Pro VP:2,00*2*5",null,20,null,null,null,null,null,null,null,"Pro DAV (KIT) PE D63/32 Pro VP:2,00*2*5"]
[44,"28613070.DAV.R","T-kus odbočkový navrtávací DAV (KIT) D63/32","kus",5,null,{"$f":"E214*F214","v":0},0,{"$f":"E214*H214","v":0},null,{"$f":"E214*J214","v":0},null,null,null,2,null,null,null,null,null,null,null,null,null,null,null,3,1,"28613070.DAV.R",null,null,null,null,null,null,null,null,null,null,null,null,null,null,null,null,null,null,null,null,null,null,1,{"$f":"IF(AZ214=1,G214,0)","v":0},{"$f":"IF(AZ214=2,G214,0)","v":0},{"$f":"IF(AZ214=3,G214,0)","v":0},{"$f":"IF(AZ214=4,G214,0)","v":0},{"$f":"IF(AZ214=5,G214,0)","v":0},null,null,null,null,null,null,null,null,null,null,null,null,null,null,null,null,null,null,null,null,null,3,1]
[null,null,"Vodovodní řad PE D63x5,8 mm:",null,0,null,null,null,null,null,null,null,"Vodovodní řad PE D63x5,8 mm:"]
[null,null,"DAV (KIT) PE D63/32 Pro VP:5",null,5,null,null,null,null,null,null,null,"DAV (KIT) PE D63/32 Pro VP:5"]
[45,"28613090.EBS.R","Zemní souprava EBS 1,1-1,8 pro DAV (KIT)","kus",5,null,{"$f":"E217*F217","v":0},0,{"$f":"E217*H217","v":0},null,{"$f":"E217*J217","v":0},null,null,null,2,null,null,null,null,null,null,null,null,null,null,null,3,1,"28613090.EBS.R",null,null,null,null,null,null,null,null,null,null,null,null,null,null,null,null,null,null,null,null,null,null,1,{"$f":"IF(AZ217=1,G217,0)","v":0},{"$f":"IF(AZ217=2,G217,0)","v":0},{"$f":"IF(AZ217=3,G217,0)","v":0},{"$f":"IF(AZ217=4,G217,0)","v":0},{"$f":"IF(AZ217=5,G217,0)","v":0},null,null,null,null,null,null,null,null,null,null,null,null,null,null,null,null,null,null,null,null,null,3,1]
[null,null,"Vodovodní řad PE D63x5,8 mm:",null,0,null,null,null,null,null,null,null,"Vodovodní řad PE D63x5,8 mm:"]
[null,null,"Pro DAV (KIT) PE D63/32 Pro VP:5",null,5,null,null,null,null,null,null,null,"Pro DAV (KIT) PE D63/32 Pro VP:5"]
[46,"286134205.R","Trubka tlaková AQUALINE RC2 PE100 63x5,8 mm PN16 návin L=100 m","m",164.024,null,{"$f":"E220*F220","v":0},1.47E-3,{"$f":"E220*H220","v":0.24111527999999999},null,{"$f":"E220*J220","v":0},null,null,null,2,null,null,null,null,null,null,null,null,null,null,null,3,1,"286134205.R",null,null,null,null,null,null,null,null,null,null,null,null,null,null,null,null,null,null,null,null,null,null,1,{"$f":"IF(AZ220=1,G220,0)","v":0},{"$f":"IF(AZ220=2,G220,0)","v":0},{"$f":"IF(AZ220=3,G220,0)","v":0},{"$f":"IF(AZ220=4,G220,0)","v":0},{"$f":"IF(AZ220=5,G220,0)","v":0},null,null,null,null,null,null,null,null,null,null,null,null,null,null,null,null,null,null,null,null,null,3,1]
[null,null,"Vodovodní řad PE D63x5,8 mm:161,60*1,015",null,164.024,null,null,null,null,null,null,null,"Vodovodní řad PE D63x5,8 mm:161,60*1,015"]
[47,"28653080.07.R","Elektrospojka d 63 mm PE 100 SDR11","kus",16.239999999999998,null,{"$f":"E222*F222","v":0},1.2999999999999999E-3,{"$f":"E222*H222","v":2.1111999999999995E-2},null,{"$f":"E222*J222","v":0},null,null,null,2,null,null,null,null,null,null,null,null,null,null,null,3,1,"28653080.07.R",null,null,null,null,null,null,null,null,null,null,null,null,null,null,null,null,null,null,null,null,null,null,1,{"$f":"IF(AZ222=1,G222,0)","v":0},{"$f":"IF(AZ222=2,G222,0)","v":0},{"$f":"IF(AZ222=3,G222,0)","v":0},{"$f":"IF(AZ222=4,G222,0)","v":0},{"$f":"IF(AZ222=5,G222,0)","v":0},null,null,null,null,null,null,null,null,null,null,null,null,null,null,null,null,null,null,null,null,null,3,1]
[null,null,"Vodovodní řad PE D63x5,8 mm:",null,0,null,null,null,null,null,null,null,"Vodovodní řad PE D63x5,8 mm:"]
[null,null,"Elektrospojky PE D63:16*1,015",null,16.239999999999998,null,null,null,null,null,null,null,"Elektrospojky PE D63:16*1,015"]
[48,"28653437.A.R","Oblouk 45° PE d 63 mm PE100 SDR11","kus",4.0599999999999996,null,{"$f":"E225*F225","v":0},1.0499999999999999E-3,{"$f":"E225*H225","v":4.2629999999999994E-3},null,{"$f":"E225*J225","v":0},null,null,null,2,null,null,null,null,null,null,null,null,null,null,null,3,1,"28653437.A.R",null,null,null,null,null,null,null,null,null,null,null,null,null,null,null,null,null,null,null,null,null,null,1,{"$f":"IF(AZ225=1,G225,0)","v":0},{"$f":"IF(AZ225=2,G225,0)","v":0},{"$f":"IF(AZ225=3,G225,0)","v":0},{"$f":"IF(AZ225=4,G225,0)","v":0},{"$f":"IF(AZ225=5,G225,0)","v":0},null,null,null,null,null,null,null,null,null,null,null,null,null,null,null,null,null,null,null,null,null,3,1]
[null,null,"Vodovodní řad PE D63x5,8 mm:",null,0,null,null,null,null,null,null,null,"Vodovodní řad PE D63x5,8 mm:"]
[null,null,"Oblouk PE D63/45°:4*1,015",null,4.0599999999999996,null,null,null,null,null,null,null,"Oblouk PE D63/45°:4*1,015"]
[49,"28653438.A.R","Oblouk 30° PE d 63 mm PE100 SDR11","kus",1.0149999999999999,null,{"$f":"E228*F228","v":0},1.0499999999999999E-3,{"$f":"E228*H228","v":1.0657499999999999E-3},null,{"$f":"E228*J228","v":0},null,null,null,2,null,null,null,null,null,null,null,null,null,null,null,3,1,"28653438.A.R",null,null,null,null,null,null,null,null,null,null,null,null,null,null,null,null,null,null,null,null,null,null,1,{"$f":"IF(AZ228=1,G228,0)","v":0},{"$f":"IF(AZ228=2,G228,0)","v":0},{"$f":"IF(AZ228=3,G228,0)","v":0},{"$f":"IF(AZ228=4,G228,0)","v":0},{"$f":"IF(AZ228=5,G228,0)","v":0},null,null,null,null,null,null,null,null,null,null,null,null,null,null,null,null,null,null,null,null,null,3,1]
[null,null,"Vodovodní řad PE D63x5,8 mm:",null,0,null,null,null,null,null,null,null,"Vodovodní řad PE D63x5,8 mm:"]
[null,null,"Oblouk PE D63/30°:1*1,015",null,1.0149999999999999,null,null,null,null,null,null,null,"Oblouk PE D63/30°:1*1,015"]
[50,"28653756.R","LN + TP D63/DN50 PE100 SDR11","kus",4.0599999999999996,null,{"$f":"E231*F231","v":0},3.5E-4,{"$f":"E231*H231","v":1.421E-3},null,{"$f":"E231*J231","v":0},null,null,null,2,null,null,null,null,null,null,null,null,null,null,null,3,1,"28653756.R",null,null,null,null,null,null,null,null,null,null,null,null,null,null,null,null,null,null,null,null,null,null,1,{"$f":"IF(AZ231=1,G231,0)","v":0},{"$f":"IF(AZ231=2,G231,0)","v":0},{"$f":"IF(AZ231=3,G231,0)","v":0},{"$f":"IF(AZ231=4,G231,0)","v":0},{"$f":"IF(AZ231=5,G231,0)","v":0},null,null,null,null,null,null,null,null,null,null,null,null,null,null,null,null,null,null,null,null,null,3,1]
[null,null,"Vodovodní řad PE D63x5,8 mm:",null,0,null,null,null,null,null,null,null,"Vodovodní řad PE D63x5,8 mm:"]
[null,null,"LN + TP D63/DN50:4*1,015",null,4.0599999999999996,null,null,null,null,null,null,null,"LN + TP D63/DN50:4*1,015"]
[51,"42200810.03.R","Proplachovací souprava D810 DN50/1,5","kus",2,null,{"$f":"E234*F234","v":0},2.0250000000000001E-2,{"$f":"E234*H234","v":4.0500000000000001E-2},null,{"$f":"E234*J234","v":0},null,null,null,2,null,null,null,null,null,null,null,null,null,null,null,3,1,"42200810.03.R",null,null,null,null,null,null,null,null,null,null,null,null,null,null,null,null,null,null,null,null,null,null,1,{"$f":"IF(AZ234=1,G234,0)","v":0},{"$f":"IF(AZ234=2,G234,0)","v":0},{"$f":"IF(AZ234=3,G234,0)","v":0},{"$f":"IF(AZ234=4,G234,0)","v":0},{"$f":"IF(AZ234=5,G234,0)","v":0},null,null,null,null,null,null,null,null,null,null,null,null,null,null,null,null,null,null,null,null,null,3,1]
[null,null,"Vodovodní řad PE D63x5,8 mm:",null,0,null,null,null,null,null,null,null,"Vodovodní řad PE D63x5,8 mm:"]
[null,null,"Proplachovací souprava D810 DN50/1,5:2",null,2,null,null,null,null,null,null,null,"Proplachovací souprava D810 DN50/1,5:2"]
[52,"42209999.R","Drenážní obal","kus",2,null,{"$f":"E237*F237","v":0},4.7999999999999996E-3,{"$f":"E237*H237","v":9.5999999999999992E-3},null,{"$f":"E237*J237","v":0},null,null,null,2,null,null,null,null,null,null,null,null,null,null,null,3,1,"42209999.R",null,null,null,null,null,null,null,null,null,null,null,null,null,null,null,null,null,null,null,null,null,null,1,{"$f":"IF(AZ237=1,G237,0)","v":0},{"$f":"IF(AZ237=2,G237,0)","v":0},{"$f":"IF(AZ237=3,G237,0)","v":0},{"$f":"IF(AZ237=4,G237,0)","v":0},{"$f":"IF(AZ237=5,G237,0)","v":0},null,null,null,null,null,null,null,null,null,null,null,null,null,null,null,null,null,null,null,null,null,3,1]
[null,null,"Vodovodní řad PE D63x5,8 mm:",null,0,null,null,null,null,null,null,null,"Vodovodní řad PE D63x5,8 mm:"]
[null,null,"Pro Proplachovací souprava D810 DN50/1,5:2",null,2,null,null,null,null,null,null,null,"Pro Proplachovací souprava D810 DN50/1,5:2"]
[53,"42228300.R","Šoupátko 4000E3 DN 50 přírubové, voda PN16","kus",2,null,{"$f":"E240*F240","v":0},1.0500000000000001E-2,{"$f":"E240*H240","v":2.1000000000000001E-2},null,{"$f":"E240*J240","v":0},null,null,null,2,null,null,null,null,null,null,null,null,null,null,null,3,1,"42228300.R",null,null,null,null,null,null,null,null,null,null,null,null,null,null,null,null,null,null,null,null,null,null,1,{"$f":"IF(AZ240=1,G240,0)","v":0},{"$f":"IF(AZ240=2,G240,0)","v":0},{"$f":"IF(AZ240=3,G240,0)","v":0},{"$f":"IF(AZ240=4,G240,0)","v":0},{"$f":"IF(AZ240=5,G240,0)","v":0},null,null,null,null,null,null,null,null,null,null,null,null,null,null,null,null,null,null,null,null,null,3,1]
[null,null,"Šoupátko přírubové krkové - měkcetěsnící klínové šoupátko s hladkým a volným průtokovým kanálem",null,null,null,null,null,null,null,null,"Šoupátko přírubové krkové - měkcetěsnící klínové šoupátko s hladkým a volným průtokovým kanálem",null,null,3]
[null,null,"č. 4000E3",null,null,null,null,null,null,null,null,"č. 4000E3",null,null,3]
[null,null,"PN 16",null,null,null,null,null,null,null,null,"PN 16",null,null,3]
[null,null,"DN 50",null,null,null,null,null,null,null,null,"DN 50",null,null,3]
[null,null,"těleso a víko: tvárná litina GGG 400 - DIN 1693",null,null,null,null,null,null,null,null,"těleso a víko: tvárná litina GGG 400 - DIN 1693",null,null,3]
[null,null,"medium: pitná voda, neagresivní odpadní voda",null,null,null,null,null,null,null,null,"medium: pitná voda, neagresivní odpadní voda",null,null,3]
[null,null,"Vodovodní řad PE D63x5,8 mm:",null,0,null,null,null,null,null,null,null,"Vodovodní řad PE D63x5,8 mm:"]
[null,null,"Šoupě DN50:2",null,2,null,null,null,null,null,null,null,"Šoupě DN50:2"]
[54,"42293250.R","Souprava zemní tel.9502E2/E3 DN50 -100, 1,3-1,8m","kus",2,null,{"$f":"E249*F249","v":0},7.3000000000000001E-3,{"$f":"E249*H249","v":1.46E-2},null,{"$f":"E249*J249","v":0},null,null,null,2,null,null,null,null,null,null,null,null,null,null,null,3,1,"42293250.R",null,null,null,null,null,null,null,null,null,null,null,null,null,null,null,null,null,null,null,null,null,null,1,{"$f":"IF(AZ249=1,G249,0)","v":0},{"$f":"IF(AZ249=2,G249,0)","v":0},{"$f":"IF(AZ249=3,G249,0)","v":0},{"$f":"IF(AZ249=4,G249,0)","v":0},{"$f":"IF(AZ249=5,G249,0)","v":0},null,null,null,null,null,null,null,null,null,null,null,null,null,null,null,null,null,null,null,null,null,3,1]
[null,null,"Vodovodní řad PE D63x5,8 mm:",null,0,null,null,null,null,null,null,null,"Vodovodní řad PE D63x5,8 mm:"]
[null,null,"Pro Šoupě DN50:2",null,2,null,null,null,null,null,null,null,"Pro Šoupě DN50:2"]
[55,"5525121013.R","Trouba přír.litin. FF DN 50 mm dl. 300 mm","kus",2,null,{"$f":"E252*F252","v":0},8.0000000000000002E-3,{"$f":"E252*H252","v":1.6E-2},null,{"$f":"E252*J252","v":0},null,null,null,2,null,null,null,null,null,null,null,null,null,null,null,3,1,"5525121013.R",null,null,null,null,null,null,null,null,null,null,null,null,null,null,null,null,null,null,null,null,null,null,1,{"$f":"IF(AZ252=1,G252,0)","v":0},{"$f":"IF(AZ252=2,G252,0)","v":0},{"$f":"IF(AZ252=3,G252,0)","v":0},{"$f":"IF(AZ252=4,G252,0)","v":0},{"$f":"IF(AZ252=5,G252,0)","v":0},null,null,null,null,null,null,null,null,null,null,null,null,null,null,null,null,null,null,null,null,null,3,1]
[null,null,"Vodovodní řad PE D63x5,8 mm:",null,0,null,null,null,null,null,null,null,"Vodovodní řad PE D63x5,8 mm:"]
[null,null,"FF DN50/300:2",null,2,null,null,null,null,null,null,null,"FF DN50/300:2"]
[56,"55255716.A.R","Koleno přírubové s patkou N DN 50","kus",2,null,{"$f":"E255*F255","v":0},1.3899999999999999E-2,{"$f":"E255*H255","v":2.7799999999999998E-2},null,{"$f":"E255*J255","v":0},null,null,null,2,null,null,null,null,null,null,null,null,null,null,null,3,1,"55255716.A.R",null,null,null,null,null,null,null,null,null,null,null,null,null,null,null,null,null,null,null,null,null,null,1,{"$f":"IF(AZ255=1,G255,0)","v":0},{"$f":"IF(AZ255=2,G255,0)","v":0},{"$f":"IF(AZ255=3,G255,0)","v":0},{"$f":"IF(AZ255=4,G255,0)","v":0},{"$f":"IF(AZ255=5,G255,0)","v":0},null,null,null,null,null,null,null,null,null,null,null,null,null,null,null,null,null,null,null,null,null,3,1]
[null,null,"Vodovodní řad PE D63x5,8 mm:",null,0,null,null,null,null,null,null,null,"Vodovodní řad PE D63x5,8 mm:"]
[null,null,"N DN50:2",null,2,null,null,null,null,null,null,null,"N DN50:2"]
[57,"552599811.R","Koleno přírubové Q DN 50-90°","kus",1,null,{"$f":"E258*F258","v":0},7.0000000000000001E-3,{"$f":"E258*H258","v":7.0000000000000001E-3},null,{"$f":"E258*J258","v":0},null,null,null,2,null,null,null,null,null,null,null,null,null,null,null,3,1,"552599811.R",null,null,null,null,null,null,null,null,null,null,null,null,null,null,null,null,null,null,null,null,null,null,1,{"$f":"IF(AZ258=1,G258,0)","v":0},{"$f":"IF(AZ258=2,G258,0)","v":0},{"$f":"IF(AZ258=3,G258,0)","v":0},{"$f":"IF(AZ258=4,G258,0)","v":0},{"$f":"IF(AZ258=5,G258,0)","v":0},null,null,null,null,null,null,null,null,null,null,null,null,null,null,null,null,null,null,null,null,null,3,1]
[null,null,"Vodovodní řad PE D63x5,8 mm:",null,0,null,null,null,null,null,null,null,"Vodovodní řad PE D63x5,8 mm:"]
[null,null,"Q DN50:1",null,1,null,null,null,null,null,null,null,"Q DN50:1"]
[58,"552599932.R","Tvarovka přír. s přír. odb. T DN 50/50","kus",2,null,{"$f":"E261*F261","v":0},1.21E-2,{"$f":"E261*H261","v":2.4199999999999999E-2},null,{"$f":"E261*J261","v":0},null,null,null,2,null,null,null,null,null,null,null,null,null,null,null,3,1,"552599932.R",null,null,null,null,null,null,null,null,null,null,null,null,null,null,null,null,null,null,null,null,null,null,1,{"$f":"IF(AZ261=1,G261,0)","v":0},{"$f":"IF(AZ261=2,G261,0)","v":0},{"$f":"IF(AZ261=3,G261,0)","v":0},{"$f":"IF(AZ261=4,G261,0)","v":0},{"$f":"IF(AZ261=5,G261,0)","v":0},null,null,null,null,null,null,null,null,null,null,null,null,null,null,null,null,null,null,null,null,null,3,1]
[null,null,"Vodovodní řad PE D63x5,8 mm:",null,0,null,null,null,null,null,null,null,"Vodovodní řad PE D63x5,8 mm:"]
[null,null,"T DN50/50:2",null,2,null,null,null,null,null,null,null,"T DN50/50:2"]
[null,"Celkem za","8 Trubní vedení",null,null,null,{"$f":"SUM(G147:G263)","v":0},null,{"$f":"SUM(I147:I263)","v":0.45090503000000004},null,{"$f":"SUM(K147:K263)","v":0},null,null,null,4,null,null,null,null,null,null,null,null,null,null,null,null,null,null,null,null,null,null,null,null,null,null,null,null,null,null,null,null,null,null,null,null,null,null,null,null,null,{"$f":"SUM(BA147:BA263)","v":0},{"$f":"SUM(BB147:BB263)","v":0},{"$f":"SUM(BC147:BC263)","v":0},{"$f":"SUM(BD147:BD263)","v":0},{"$f":"SUM(BE147:BE263)","v":0}]
["Díl:","93","Dokončovací práce inženýrských staveb",null,null,null,null,null,null,null,null,null,null,null,1]
[59,"939421121RT1","Osazení samonivelač.vodovod.poklopu za finišerem bez dodávky poklopu","kus",7,null,{"$f":"E266*F266","v":0},5.2499999999999998E-2,{"$f":"E266*H266","v":0.36749999999999999},0,{"$f":"E266*J266","v":0},null,null,null,2,null,null,null,null,null,null,null,null,null,null,null,1,0,0,null,null,null,null,null,null,null,null,null,null,null,null,null,null,null,null,null,null,null,null,null,null,1,{"$f":"IF(AZ266=1,G266,0)","v":0},{"$f":"IF(AZ266=2,G266,0)","v":0},{"$f":"IF(AZ266=3,G266,0)","v":0},{"$f":"IF(AZ266=4,G266,0)","v":0},{"$f":"IF(AZ266=5,G266,0)","v":0},null,null,null,null,null,null,null,null,null,null,null,null,null,null,null,null,null,null,null,null,null,1,0]
[null,null,"Položka obsahuje:",null,null,null,null,null,null,null,null,"Položka obsahuje:",null,null,3]
[null,null,"- osazení prefabrikovaného betonového prstence do rychletuhnoucí malty (s dodávkou hmot)",null,null,null,null,null,null,null,null,"- osazení prefabrikovaného betonového prstence do rychletuhnoucí malty (s dodávkou hmot)",null,null,3]
[null,null,"- zalití prstence rychletuhnoucí zálivkou do výše prstence (s dodávkou hmoty)",null,null,null,null,null,null,null,null,"- zalití prstence rychletuhnoucí zálivkou do výše prstence (s dodávkou hmoty)",null,null,3]
[null,null,"- vložení kruhového bednění",null,null,null,null,null,null,null,null,"- vložení kruhového bednění",null,null,3]
[null,null,"- doplnění mezikruží asfaltovou směsí do výšky současné podkladní vrstvy, zhutnění",null,null,null,null,null,null,null,null,"- doplnění mezikruží asfaltovou směsí do výšky současné podkladní vrstvy, zhutnění",null,null,3]
[null,null,"- vyjmutí kruhového bednění",null,null,null,null,null,null,null,null,"- vyjmutí kruhového bednění",null,null,3]
[null,null,"- osazení poklopu a zatlačení",null,null,null,null,null,null,null,null,"- osazení poklopu a zatlačení",null,null,3]
[null,null,"  (následuje pokládka finální vrstvy vozovky - není součástí položky)",null,null,null,null,null,null,null,null,"  (následuje pokládka finální vrstvy vozovky - není součástí položky)",null,null,3]
[null,null,"- povytažení poklopu",null,null,null,null,null,null,null,null,"- povytažení poklopu",null,null,3]
[null,null,"- podsyp asfaltovou směsí, spuštění poklopu a zhutnění směsi",null,null,null,null,null,null,null,null,"- podsyp asfaltovou směsí, spuštění poklopu a zhutnění směsi",null,null,3]
[null,null,"Položka neobsahuje:",null,null,null,null,null,null,null,null,"Položka neobsahuje:",null,null,3]
[null,null,"- dodávku samonivelačního poklopu - oceňuje se ve specifikaci",null,null,null,null,null,null,null,null,"- dodávku samonivelačního poklopu - oceňuje se ve specifikaci",null,null,3]
[null,null,"- pokládku krycí vrstvy komunikace, oceňuje se samostatně",null,null,null,null,null,null,null,null,"- pokládku krycí vrstvy komunikace, oceňuje se samostatně",null,null,3]
[null,null,"Vodovodní řad PE D63x5,8 mm:",null,0,null,null,null,null,null,null,null,"Vodovodní řad PE D63x5,8 mm:"]
[null,null,"Pro Šoupě DN50:2",null,2,null,null,null,null,null,null,null,"Pro Šoupě DN50:2"]
[null,null,"Pro DAV (KIT) PE D63/32 Pro VP:5",null,5,null,null,null,null,null,null,null,"Pro DAV (KIT) PE D63/32 Pro VP:5"]
[60,"939421131RT1","Osazení samonivelač.hydrant.poklopu za finišerem bez dodávky poklopu","kus",2,null,{"$f":"E283*F283","v":0},6.8250000000000005E-2,{"$f":"E283*H283","v":0.13650000000000001},0,{"$f":"E283*J283","v":0},null,null,null,2,null,null,null,null,null,null,null,null,null,null,null,1,1,1,null,null,null,null,null,null,null,null,null,null,null,null,null,null,null,null,null,null,null,null,null,null,1,{"$f":"IF(AZ283=1,G283,0)","v":0},{"$f":"IF(AZ283=2,G283,0)","v":0},{"$f":"IF(AZ283=3,G283,0)","v":0},{"$f":"IF(AZ283=4,G283,0)","v":0},{"$f":"IF(AZ283=5,G283,0)","v":0},null,null,null,null,null,null,null,null,null,null,null,null,null,null,null,null,null,null,null,null,null,1,1]
[null,null,"Položka obsahuje:",null,null,null,null,null,null,null,null,"Položka obsahuje:",null,null,3]
[null,null,"- osazení prefabrikovaného betonového prstence do rychletuhnoucí malty (s dodávkou hmot)",null,null,null,null,null,null,null,null,"- osazení prefabrikovaného betonového prstence do rychletuhnoucí malty (s dodávkou hmot)",null,null,3]
[null,null,"- zalití prstence rychletuhnoucí zálivkou do výše prstence (s dodávkou hmoty)",null,null,null,null,null,null,null,null,"- zalití prstence rychletuhnoucí zálivkou do výše prstence (s dodávkou hmoty)",null,null,3]
[null,null,"- vložení kruhového bednění",null,null,null,null,null,null,null,null,"- vložení kruhového bednění",null,null,3]
[null,null,"- doplnění mezikruží asfaltovou směsí do výšky současné podkladní vrstvy, zhutnění",null,null,null,null,null,null,null,null,"- doplnění mezikruží asfaltovou směsí do výšky současné podkladní vrstvy, zhutnění",null,null,3]
[null,null,"- vyjmutí kruhového bednění",null,null,null,null,null,null,null,null,"- vyjmutí kruhového bednění",null,null,3]
[null,null,"- osazení poklopu a zatlačení",null,null,null,null,null,null,null,null,"- osazení poklopu a zatlačení",null,null,3]
[null,null,"  (následuje pokládka finální vrstvy vozovky - není součástí položky)",null,null,null,null,null,null,null,null,"  (následuje pokládka finální vrstvy vozovky - není součástí položky)",null,null,3]
[null,null,"- povytažení poklopu",null,null,null,null,null,null,null,null,"- povytažení poklopu",null,null,3]
[null,null,"- podsyp asfaltovou směsí, spuštění poklopu a zhutnění směsi",null,null,null,null,null,null,null,null,"- podsyp asfaltovou směsí, spuštění poklopu a zhutnění směsi",null,null,3]
[null,null,"Položka neobsahuje:",null,null,null,null,null,null,null,null,"Položka neobsahuje:",null,null,3]
[null,null,"- dodávku samonivelačního poklopu - oceňuje se ve specifikaci",null,null,null,null,null,null,null,null,"- dodávku samonivelačního poklopu - oceňuje se ve specifikaci",null,null,3]
[null,null,"- pokládku krycí vrstvy komunikace, oceňuje se samostatně",null,null,null,null,null,null,null,null,"- pokládku krycí vrstvy komunikace, oceňuje se samostatně",null,null,3]
[null,null,"Vodovodní řad PE D63x5,8 mm:",null,0,null,null,null,null,null,null,null,"Vodovodní řad PE D63x5,8 mm:"]
[null,null,"Pro Proplachovací souprava D810 DN50/1,5:2",null,2,null,null,null,null,null,null,null,"Pro Proplachovací souprava D810 DN50/1,5:2"]
[61,"422913520.R","Poklop luliční samonivelační přípojkový D400","kus",5,null,{"$f":"E299*F299","v":0},1.2E-2,{"$f":"E299*H299","v":0.06},null,{"$f":"E299*J299","v":0},null,null,null,2,null,null,null,null,null,null,null,null,null,null,null,3,1,"422913520.R",null,null,null,null,null,null,null,null,null,null,null,null,null,null,null,null,null,null,null,null,null,null,1,{"$f":"IF(AZ299=1,G299,0)","v":0},{"$f":"IF(AZ299=2,G299,0)","v":0},{"$f":"IF(AZ299=3,G299,0)","v":0},{"$f":"IF(AZ299=4,G299,0)","v":0},{"$f":"IF(AZ299=5,G299,0)","v":0},null,null,null,null,null,null,null,null,null,null,null,null,null,null,null,null,null,null,null,null,null,3,1]
[null,null,"Uliční samonivelační poklop přípojkový z tvárné litiny dle ČSN EN 124",null,null,null,null,null,null,null,null,"Uliční samonivelační poklop přípojkový z tvárné litiny dle ČSN EN 124",null,null,3]
[null,null,"Rozpětí stavební výšky 195 - 285 mm s fixací polohy",null,null,null,null,null,null,null,null,"Rozpětí stavební výšky 195 - 285 mm s fixací polohy",null,null,3]
[null,null,"Výklopové víko spojeno s rámem čepem a opatřeno ochrannou a těsnící vrstvou proti vnikání nečistot",null,null,null,null,null,null,null,null,"Výklopové víko spojeno s rámem čepem a opatřeno ochrannou a těsnící vrstvou proti vnikání nečistot",null,null,3]
[null,null,"Tlumicí vložka z elastomeru a PUR",null,null,null,null,null,null,null,null,"Tlumicí vložka z elastomeru a PUR",null,null,3]
[null,null,"Možnost vlastního loga a barevného provedení",null,null,null,null,null,null,null,null,"Možnost vlastního loga a barevného provedení",null,null,3]
[null,null,"Vodovodní řad PE D63x5,8 mm:",null,0,null,null,null,null,null,null,null,"Vodovodní řad PE D63x5,8 mm:"]
[null,null,"Pro DAV (KIT) PE D63/32 Pro VP:5",null,5,null,null,null,null,null,null,null,"Pro DAV (KIT) PE D63/32 Pro VP:5"]
[62,"422913521.R","Poklop litinový samonivelační šoupátkový D400","kus",2,null,{"$f":"E307*F307","v":0},1.2E-2,{"$f":"E307*H307","v":2.4E-2},null,{"$f":"E307*J307","v":0},null,null,null,2,null,null,null,null,null,null,null,null,null,null,null,3,1,"422913521.R",null,null,null,null,null,null,null,null,null,null,null,null,null,null,null,null,null,null,null,null,null,null,1,{"$f":"IF(AZ307=1,G307,0)","v":0},{"$f":"IF(AZ307=2,G307,0)","v":0},{"$f":"IF(AZ307=3,G307,0)","v":0},{"$f":"IF(AZ307=4,G307,0)","v":0},{"$f":"IF(AZ307=5,G307,0)","v":0},null,null,null,null,null,null,null,null,null,null,null,null,null,null,null,null,null,null,null,null,null,3,1]
[null,null,"Uliční samonivelační šoupátkový poklop z tvárné litiny dle ČSN EN 124",null,null,null,null,null,null,null,null,"Uliční samonivelační šoupátkový poklop z tvárné litiny dle ČSN EN 124",null,null,3]
[null,null,"Rozpětí stavební výšky 195 - 285 mm s fixací polohy",null,null,null,null,null,null,null,null,"Rozpětí stavební výšky 195 - 285 mm s fixací polohy",null,null,3]
[null,null,"Výklopové víko spojeno s rámem čepem a opatřeno ochrannou a těsnící vrstvou proti vnikání nečistot",null,null,null,null,null,null,null,null,"Výklopové víko spojeno s rámem čepem a opatřeno ochrannou a těsnící vrstvou proti vnikání nečistot",null,null,3]
[null,null,"Tlumicí vložka z elastomeru a PUR",null,null,null,null,null,null,null,null,"Tlumicí vložka z elastomeru a PUR",null,null,3]
[null,null,"Možnost vlastního loga a barevného provedení",null,null,null,null,null,null,null,null,"Možnost vlastního loga a barevného provedení",null,null,3]
[null,null,"Vodovodní řad PE D63x5,8 mm:",null,0,null,null,null,null,null,null,null,"Vodovodní řad PE D63x5,8 mm:"]
[null,null,"Pro Šoupě DN50:2",null,2,null,null,null,null,null,null,null,"Pro Šoupě DN50:2"]
[63,"422914522.R","Poklop litinový hydrantový samonivelační D400","kus",2,null,{"$f":"E315*F315","v":0},2.4E-2,{"$f":"E315*H315","v":4.8000000000000001E-2},null,{"$f":"E315*J315","v":0},null,null,null,2,null,null,null,null,null,null,null,null,null,null,null,3,1,"422914522.R",null,null,null,null,null,null,null,null,null,null,null,null,null,null,null,null,null,null,null,null,null,null,1,{"$f":"IF(AZ315=1,G315,0)","v":0},{"$f":"IF(AZ315=2,G315,0)","v":0},{"$f":"IF(AZ315=3,G315,0)","v":0},{"$f":"IF(AZ315=4,G315,0)","v":0},{"$f":"IF(AZ315=5,G315,0)","v":0},null,null,null,null,null,null,null,null,null,null,null,null,null,null,null,null,null,null,null,null,null,3,1]
[null,null,"Uliční samonivelační hydrantový poklop z tvárné litiny dle ČSN EN 124",null,null,null,null,null,null,null,null,"Uliční samonivelační hydrantový poklop z tvárné litiny dle ČSN EN 124",null,null,3]
[null,null,"Rozpětí stavební výšky 200 - 285 mm s fixací polohy",null,null,null,null,null,null,null,null,"Rozpětí stavební výšky 200 - 285 mm s fixací polohy",null,null,3]
[null,null,"Výklopové víko spojeno s rámem čepem a opatřeno ochrannou a těsnící vrstvou proti vnikání nečistot",null,null,null,null,null,null,null,null,"Výklopové víko spojeno s rámem čepem a opatřeno ochrannou a těsnící vrstvou proti vnikání nečistot",null,null,3]
[null,null,"Tlumicí vložka z elastomeru a PUR",null,null,null,null,null,null,null,null,"Tlumicí vložka z elastomeru a PUR",null,null,3]
[null,null,"Možnost vlastního loga a barevného provedení",null,null,null,null,null,null,null,null,"Možnost vlastního loga a barevného provedení",null,null,3]
[null,null,"Vodovodní řad PE D63x5,8 mm:",null,0,null,null,null,null,null,null,null,"Vodovodní řad PE D63x5,8 mm:"]
[null,null,"Pro Proplachovací souprava D810 DN50/1,5:2",null,2,null,null,null,null,null,null,null,"Pro Proplachovací souprava D810 DN50/1,5:2"]
[null,"Celkem za","93 Dokončovací práce inženýrských staveb",null,null,null,{"$f":"SUM(G265:G322)","v":0},null,{"$f":"SUM(I265:I322)","v":0.63600000000000012},null,{"$f":"SUM(K265:K322)","v":0},null,null,null,4,null,null,null,null,null,null,null,null,null,null,null,null,null,null,null,null,null,null,null,null,null,null,null,null,null,null,null,null,null,null,null,null,null,null,null,null,null,{"$f":"SUM(BA265:BA322)","v":0},{"$f":"SUM(BB265:BB322)","v":0},{"$f":"SUM(BC265:BC322)","v":0},{"$f":"SUM(BD265:BD322)","v":0},{"$f":"SUM(BE265:BE322)","v":0}]
["Díl:","99","Staveništní přesun hmot",null,null,null,null,null,null,null,null,null,null,null,1]
[64,"998276101RXX","Přesun hmot, trubní vedení plastová, otevř. výkop pro celý rozsah objektu","t",406.88997023000002,null,{"$f":"E325*F325","v":0},0,{"$f":"E325*H325","v":0},null,{"$f":"E325*J325","v":0},null,null,null,2,null,null,null,null,null,null,null,null,null,null,null,7,1,2,null,null,null,null,null,null,null,null,null,null,null,null,null,null,null,null,null,null,null,null,null,null,1,{"$f":"IF(AZ325=1,G325,0)","v":0},{"$f":"IF(AZ325=2,G325,0)","v":0},{"$f":"IF(AZ325=3,G325,0)","v":0},{"$f":"IF(AZ325=4,G325,0)","v":0},{"$f":"IF(AZ325=5,G325,0)","v":0},null,null,null,null,null,null,null,null,null,null,null,null,null,null,null,null,null,null,null,null,null,7,1]
[null,null,"Staveništní doprava pro celý rozsah objektu - doprava zmeziskládek vybudovaného zařízení staveniště zhotovitele na jednotlivé části staveniště.",null,null,null,null,null,null,null,null,"Staveništní doprava pro celý rozsah objektu - doprava zmeziskládek vybudovaného zařízení staveniště zhotovitele na jednotlivé části staveniště.",null,null,3]
[null,"Celkem za","99 Staveništní přesun hmot",null,null,null,{"$f":"SUM(G324:G326)","v":0},null,{"$f":"SUM(I324:I326)","v":0},null,{"$f":"SUM(K324:K326)","v":0},null,null,null,4,null,null,null,null,null,null,null,null,null,null,null,null,null,null,null,null,null,null,null,null,null,null,null,null,null,null,null,null,null,null,null,null,null,null,null,null,null,{"$f":"SUM(BA324:BA326)","v":0},{"$f":"SUM(BB324:BB326)","v":0},{"$f":"SUM(BC324:BC326)","v":0},{"$f":"SUM(BD324:BD326)","v":0},{"$f":"SUM(BE324:BE326)","v":0}]

{"sheet":"310 3410310 KL","index":4,"n_rows":45,"n_cols":8,"rows_kept":45,"cut":false,"hidden":false,"merged":[[50,1,50,6],[29,5,29,6],[30,5,30,6],[31,5,31,6],[32,5,32,6],[33,5,33,6],[36,1,44,6],[45,1,45,6],[46,1,46,6],[47,1,47,6],[48,1,48,6],[49,1,49,6],[22,0,22,1],[7,2,7,4],[8,2,8,4],[9,2,9,4],[10,2,10,4],[11,2,11,4]]}
["POLOŽKOVÝ ROZPOČET"]
["Rozpočet",null,"3410/310","Vodovodní přípojky",null,"JKSO ","827.19.A1"]
[]
["Objekt",null,null,null,null,"SKP "]
["310",null,"Vodovodní přípojky",null,null,"Měrná jednotka","m"]
["Stavba",null,null,null,null,"Počet jednotek",0]
["3410",null,"Prodloužení vodovodního řadu, Vyskeř - Drahoňovice",null,null,"Náklady na m.j.",{"$f":"IF(G6=0,,ROUND((F30+F32)/G6,1))","v":0}]
["Projektant",null,"PVK Projekt s.r.o.",null,null,"Typ rozpočtu"]
["Zpracovatel projektu"]
["Objednatel",null,"Vodohospodářské sdružení Turnov"]
["Dodavatel",null,".",null,null,"Zakázkové číslo "]
["Rozpočtoval",null,null,null,null,"Počet listů"]
["ROZPOČTOVÉ NÁKLADY"]
["Základní rozpočtové náklady"]
[null,"HSV celkem",{"$f":"'310 3410310 Rek'!E12","v":0}]
["Z","PSV celkem",{"$f":"'310 3410310 Rek'!F12","v":0}]
["R","M práce celkem",{"$f":"'310 3410310 Rek'!H12","v":0}]
["N","M dodávky celkem",{"$f":"'310 3410310 Rek'!G12","v":0}]
["ZRN celkem",null,{"$f":"SUM(C15:C18)","v":0}]
[]
["HZS",null,{"$f":"'310 3410310 Rek'!I12","v":0}]
["ZRN+HZS",null,{"$f":"C19+C21","v":0}]
["ZRN+ost.náklady+HZS",null,{"$f":"C22+G23","v":0}]
["Vypracoval",null,null,"Za zhotovitele",null,"Za objednatele"]
["Jméno :",null,null,"Jméno :",null,"Jméno :"]
["Datum :",null,null,"Datum :",null,"Datum :"]
[]
["Podpis :",null,null,"Podpis:",null,"Podpis:"]
[]
["Základ pro DPH",null,21,"%  ",null,{"$f":"C23-F32","v":0}]
["DPH",null,{"$f":"C30","v":21},"% ",null,{"$f":"ROUND(PRODUCT(F30,C31/100),0)","v":0}]
["Základ pro DPH",null,0,"% ",null,0]
["DPH",null,{"$f":"C32","v":0},"% ",null,{"$f":"ROUND(PRODUCT(F32,C33/100),0)","v":0}]
["CENA ZA OBJEKT CELKEM",null,null,null,null,{"$f":"ROUND(SUM(F30:F33),0)","v":0}]
[]
["Poznámka :",null,null,null,null,null,null," "]
[null,null,null,null,null,null,null," "]
[null,null,null,null,null,null,null," "]
[null,null,null,null,null,null,null," "]
[null,null,null,null,null,null,null," "]
[null,null,null,null,null,null,null," "]
[null,null,null,null,null,null,null," "]
[null,null,null,null,null,null,null," "]
[null,null,null,null,null,null,null," "]
[null,null,null,null,null,null,null," "]

{"sheet":"310 3410310 Rek","index":5,"n_rows":12,"n_cols":9,"rows_kept":12,"cut":false,"hidden":false,"merged":[[0,0,0,1],[1,0,1,1],[1,6,1,8]]}
["Stavba :",null,"3410 Prodloužení vodovodního řadu, Vyskeř - Drahoňovice",null,null,null,"Rozpočet :","3410/310"]
["Objekt :",null,"310 Vodovodní přípojky",null,null,null,"Vodovodní přípojky"]
[]
["REKAPITULACE  STAVEBNÍCH  DÍLŮ"]
[]
[null,"Stavební díl",null,null,"HSV","PSV","Dodávka","Montáž","HZS"]
[{"$f":"'310 3410310 Pol'!B7","v":"1"},{"$f":"'310 3410310 Pol'!C7","v":"Zemní práce"},null,null,{"$f":"'310 3410310 Pol'!BA160","v":0},{"$f":"'310 3410310 Pol'!BB160","v":0},{"$f":"'310 3410310 Pol'!BC160","v":0},{"$f":"'310 3410310 Pol'!BD160","v":0},{"$f":"'310 3410310 Pol'!BE160","v":0}]
[{"$f":"'310 3410310 Pol'!B161","v":"45"},{"$f":"'310 3410310 Pol'!C161","v":"Podkladní a vedlejší konstrukce"},null,null,{"$f":"'310 3410310 Pol'!BA169","v":0},{"$f":"'310 3410310 Pol'!BB169","v":0},{"$f":"'310 3410310 Pol'!BC169","v":0},{"$f":"'310 3410310 Pol'!BD169","v":0},{"$f":"'310 3410310 Pol'!BE169","v":0}]
[{"$f":"'310 3410310 Pol'!B170","v":"5"},{"$f":"'310 3410310 Pol'!C170","v":"Komunikace"},null,null,{"$f":"'310 3410310 Pol'!BA177","v":0},{"$f":"'310 3410310 Pol'!BB177","v":0},{"$f":"'310 3410310 Pol'!BC177","v":0},{"$f":"'310 3410310 Pol'!BD177","v":0},{"$f":"'310 3410310 Pol'!BE177","v":0}]
[{"$f":"'310 3410310 Pol'!B178","v":"8"},{"$f":"'310 3410310 Pol'!C178","v":"Trubní vedení"},null,null,{"$f":"'310 3410310 Pol'!BA274","v":0},{"$f":"'310 3410310 Pol'!BB274","v":0},{"$f":"'310 3410310 Pol'!BC274","v":0},{"$f":"'310 3410310 Pol'!BD274","v":0},{"$f":"'310 3410310 Pol'!BE274","v":0}]
[{"$f":"'310 3410310 Pol'!B275","v":"99"},{"$f":"'310 3410310 Pol'!C275","v":"Staveništní přesun hmot"},null,null,{"$f":"'310 3410310 Pol'!BA278","v":0},{"$f":"'310 3410310 Pol'!BB278","v":0},{"$f":"'310 3410310 Pol'!BC278","v":0},{"$f":"'310 3410310 Pol'!BD278","v":0},{"$f":"'310 3410310 Pol'!BE278","v":0}]
[null,"CELKEM  OBJEKT",null,null,{"$f":"SUM(E7:E11)","v":0},{"$f":"SUM(F7:F11)","v":0},{"$f":"SUM(G7:G11)","v":0},{"$f":"SUM(H7:H11)","v":0},{"$f":"SUM(I7:I11)","v":0}]

{"sheet":"310 3410310 Pol","index":6,"n_rows":278,"n_cols":80,"rows_kept":278,"cut":false,"hidden":false,"merged":[[271,2,271,3],[272,2,272,3],[276,2,276,6],[265,2,265,6],[266,2,266,6],[267,2,267,3],[268,2,268,3],[269,2,269,3],[270,2,270,3],[257,2,257,3],[258,2,258,3],[260,2,260,3],[261,2,261,3],[263,2,263,6],[264,2,264,6],[250,2,250,3],[251,2,251,3],[253,2,253,3],[254,2,254,3],[255,2,255,3],[256,2,256,3],[243,2,243,3],[245,2,245,6],[246,2,246,3],[247,2,247,3],[248,2,248,3],[249,2,249,3],[236,2,236,3],[238,2,238,3],[239,2,239,3],[240,2,240,3],[241,2,241,3],[242,2,242,3],[230,2,230,6],[231,2,231,3],[232,2,232,3],[233,2,233,3],[234,2,234,3],[235,2,235,3],[223,2,223,3],[224,2,224,3],[225,2,225,3],[226,2,226,3],[227,2,227,3],[228,2,228,3],[216,2,216,3],[217,2,217,3],[218,2,218,3],[219,2,219,3],[221,2,221,6],[222,2,222,6],[209,2,209,3],[210,2,210,3],[211,2,211,3],[213,2,213,6],[214,2,214,3],[215,2,215,3],[202,2,202,3],[203,2,203,3],[205,2,205,6],[206,2,206,3],[207,2,207,3],[208,2,208,3],[195,2,195,3],[197,2,197,6],[198,2,198,3],[199,2,199,3],[200,2,200,3],[201,2,201,3],[188,2,188,3],[190,2,190,6],[191,2,191,3],[192,2,192,3],[193,2,193,3],[194,2,194,3],[179,2,179,6],[180,2,180,3],[181,2,181,3],[182,2,182,3],[183,2,183,3],[184,2,184,3],[185,2,185,3],[187,2,187,3],[171,2,171,3],[172,2,172,3],[174,2,174,3],[175,2,175,3],[162,2,162,3],[163,2,163,3],[164,2,164,3],[165,2,165,3],[166,2,166,3],[167,2,167,3],[153,2,153,3],[154,2,154,3],[155,2,155,3],[156,2,156,3],[157,2,157,3],[158,2,158,3],[146,2,146,3],[147,2,147,3],[148,2,148,3],[149,2,149,3],[150,2,150,3],[152,2,152,3],[135,2,135,3],[139,2,139,6],[141,2,141,3],[142,2,142,3],[143,2,143,3],[145,2,145,3],[127,2,127,3],[129,2,129,3],[130,2,130,3],[131,2,131,3],[132,2,132,3],[134,2,134,3],[120,2,120,3],[122,2,122,3],[123,2,123,3],[124,2,124,3],[125,2,125,3],[126,2,126,3],[114,2,114,3],[115,2,115,3],[116,2,116,3],[117,2,117,3],[118,2,118,3],[119,2,119,3],[108,2,108,3],[109,2,109,3],[110,2,110,3],[111,2,111,3],[112,2,112,3],[113,2,113,3],[102,2,102,3],[103,2,103,3],[104,2,104,3],[105,2,105,3],[106,2,106,3],[107,2,107,3],[96,2,96,3],[97,2,97,3],[98,2,98,3],[99,2,99,3],[100,2,100,3],[101,2,101,3],[89,2,89,3],[90,2,90,3],[91,2,91,3],[93,2,93,6],[94,2,94,6],[95,2,95,3],[82,2,82,3],[83,2,83,3],[84,2,84,3],[85,2,85,3],[86,2,86,3],[88,2,88,3],[75,2,75,3],[76,2,76,3],[77,2,77,3],[79,2,79,3],[80,2,80,3],[81,2,81,3],[68,2,68,3],[70,2,70,3],[71,2,71,3],[72,2,72,3],[73,2,73,3],[74,2,74,3],[62,2,62,6],[63,2,63,6],[64,2,64,6],[65,2,65,6],[66,2,66,3],[67,2,67,3],[55,2,55,3],[57,2,57,6],[58,2,58,6],[59,2,59,6],[60,2,60,6],[61,2,61,6],[48,2,48,6],[49,2,49,3],[50,2,50,3],[51,2,51,3],[53,2,53,3],[54,2,54,3],[40,2,40,3],[41,2,41,3],[42,2,42,3],[44,2,44,3],[45,2,45,3],[46,2,46,3],[34,2,34,3],[35,2,35,3],[36,2,36,3],[37,2,37,3],[38,2,38,3],[39,2,39,3],[28,2,28,3],[29,2,29,3],[30,2,30,3],[31,2,31,3],[32,2,32,3],[33,2,33,3],[21,2,21,6],[22,2,22,3],[23,2,23,3],[24,2,24,3],[26,2,26,6],[27,2,27,3],[14,2,14,3],[15,2,15,3],[16,2,16,3],[17,2,17,3],[18,2,18,3],[19,2,19,3],[0,0,0,6],[2,0,2,1],[3,0,3,1],[3,4,3,6],[8,2,8,3],[9,2,9,3],[11,2,11,3],[12,2,12,3]]}
["Položkový rozpočet "]
[]
["Stavba :",null,"3410 Prodloužení vodovodního řadu, Vyskeř - Drahoňovice",null,"Rozpočet:",{"$f":"'310 3410310 Rek'!H1","v":"3410/310"}]
["Objekt :",null,"310 Vodovodní přípojky",null,{"$f":"'310 3410310 Rek'!G2","v":"Vodovodní přípojky"}]
[]
["P.č.","Číslo položky","Název položky","MJ","množství","cena / MJ","celkem (Kč)","Jednotková hmotnost","Celková hmotnost","Jednotková dem.hmot.","Celková dem.hmot."]
["Díl:","1","Zemní práce",null,null,null,null,null,null,null,null,null,null,null,1]
[1,"113107625R00","Odstranění podkladu nad 50 m2,kam.drcené tl.25 cm ","m2",2.1,null,{"$f":"E8*F8","v":0},0,{"$f":"E8*H8","v":0},-0.55000000000000004,{"$f":"E8*J8","v":-1.1550000000000002},null,null,null,2,null,null,null,null,null,null,null,null,null,null,null,1,1,1,null,null,null,null,null,null,null,null,null,null,null,null,null,null,null,null,null,null,null,null,null,null,1,{"$f":"IF(AZ8=1,G8,0)","v":0},{"$f":"IF(AZ8=2,G8,0)","v":0},{"$f":"IF(AZ8=3,G8,0)","v":0},{"$f":"IF(AZ8=4,G8,0)","v":0},{"$f":"IF(AZ8=5,G8,0)","v":0},null,null,null,null,null,null,null,null,null,null,null,null,null,null,null,null,null,null,null,null,null,1,1]
[null,null,"Vodovodní přípojky PE D32x3,0 mm:",null,0,null,null,null,null,null,null,null,"Vodovodní přípojky PE D32x3,0 mm:"]
[null,null,"VP pro ppč. 3778:3,00*0,70",null,2.1,null,null,null,null,null,null,null,"VP pro ppč. 3778:3,00*0,70"]
[2,"113108410R00","Odstranění asfaltové vrstvy pl.nad 50 m2, tl.10 cm ","m2",2.1,null,{"$f":"E11*F11","v":0},0,{"$f":"E11*H11","v":0},-0.22,{"$f":"E11*J11","v":-0.46200000000000002},null,null,null,2,null,null,null,null,null,null,null,null,null,null,null,1,1,1,null,null,null,null,null,null,null,null,null,null,null,null,null,null,null,null,null,null,null,null,null,null,1,{"$f":"IF(AZ11=1,G11,0)","v":0},{"$f":"IF(AZ11=2,G11,0)","v":0},{"$f":"IF(AZ11=3,G11,0)","v":0},{"$f":"IF(AZ11=4,G11,0)","v":0},{"$f":"IF(AZ11=5,G11,0)","v":0},null,null,null,null,null,null,null,null,null,null,null,null,null,null,null,null,null,null,null,null,null,1,1]
[null,null,"Vodovodní přípojky PE D32x3,0 mm:",null,0,null,null,null,null,null,null,null,"Vodovodní přípojky PE D32x3,0 mm:"]
[null,null,"VP pro ppč. 3778:3,00*0,70",null,2.1,null,null,null,null,null,null,null,"VP pro ppč. 3778:3,00*0,70"]
[3,"121100002RAA","Sejmutí ornice a uložení na deponii zpětný přesun, rozprostření v tl. 20 cm","m3",45.48,null,{"$f":"E14*F14","v":0},0,{"$f":"E14*H14","v":0},0,{"$f":"E14*J14","v":0},null,null,null,2,null,null,null,null,null,null,null,null,null,null,null,1,1,1,null,null,null,null,null,null,null,null,null,null,null,null,null,null,null,null,null,null,null,null,null,null,1,{"$f":"IF(AZ14=1,G14,0)","v":0},{"$f":"IF(AZ14=2,G14,0)","v":0},{"$f":"IF(AZ14=3,G14,0)","v":0},{"$f":"IF(AZ14=4,G14,0)","v":0},{"$f":"IF(AZ14=5,G14,0)","v":0},null,null,null,null,null,null,null,null,null,null,null,null,null,null,null,null,null,null,null,null,null,1,1]
[null,null,"Vodovodní přípojky PE D32x3,0 mm:",null,0,null,null,null,null,null,null,null,"Vodovodní přípojky PE D32x3,0 mm:"]
[null,null,"VP pro ppč. 3778:(8,80+2,00-3,00)*2,00*0,20",null,3.12,null,null,null,null,null,null,null,"VP pro ppč. 3778:(8,80+2,00-3,00)*2,00*0,20"]
[null,null,"VP pro čp. 8:(2,80+2,00)*2,00*0,20",null,1.92,null,null,null,null,null,null,null,"VP pro čp. 8:(2,80+2,00)*2,00*0,20"]
[null,null,"VP pro čp. 6:(4,60+59,90)*2,00*0,20",null,25.8,null,null,null,null,null,null,null,"VP pro čp. 6:(4,60+59,90)*2,00*0,20"]
[null,null,"VP pro čp. 2:(5,00+21,70)*2,00*0,20",null,10.68,null,null,null,null,null,null,null,"VP pro čp. 2:(5,00+21,70)*2,00*0,20"]
[null,null,"VP pro čp. 55:(15,90-6,00)*2,00*0,20",null,3.96,null,null,null,null,null,null,null,"VP pro čp. 55:(15,90-6,00)*2,00*0,20"]
[4,"130001101RRX","Příplatek za ztížené hloubení v blízkosti vedení ","m3",17.625800000000002,null,{"$f":"E21*F21","v":0},0,{"$f":"E21*H21","v":0},0,{"$f":"E21*J21","v":0},null,null,null,2,null,null,null,null,null,null,null,null,null,null,null,1,1,1,null,null,null,null,null,null,null,null,null,null,null,null,null,null,null,null,null,null,null,null,null,null,1,{"$f":"IF(AZ21=1,G21,0)","v":0},{"$f":"IF(AZ21=2,G21,0)","v":0},{"$f":"IF(AZ21=3,G21,0)","v":0},{"$f":"IF(AZ21=4,G21,0)","v":0},{"$f":"IF(AZ21=5,G21,0)","v":0},null,null,null,null,null,null,null,null,null,null,null,null,null,null,null,null,null,null,null,null,null,1,1]
[null,null,"Včetně případných nutných dokopávem a ručního výkopu podél sousedících inženýrských sítí",null,null,null,null,null,null,null,null,"Včetně případných nutných dokopávem a ručního výkopu podél sousedících inženýrských sítí",null,null,3]
[null,null,"Výkopy - průměrná hl. výkopů 1,60 m:",null,0,null,null,null,null,null,null,null,"Výkopy - průměrná hl. výkopů 1,60 m:"]
[null,null,"Vodovodní přípojky PE D32x3,0 mm:",null,0,null,null,null,null,null,null,null,"Vodovodní přípojky PE D32x3,0 mm:"]
[null,null,"V hornině tř. 3 - 4 - 14%:125,8985*0,14",null,17.625800000000002,null,null,null,null,null,null,null,"V hornině tř. 3 - 4 - 14%:125,8985*0,14"]
[5,"132201212R00","Hloubení rýh š.do 200 cm hor.3 do 1000m3,STROJNĚ ","m3",62.949199999999998,null,{"$f":"E26*F26","v":0},0,{"$f":"E26*H26","v":0},0,{"$f":"E26*J26","v":0},null,null,null,2,null,null,null,null,null,null,null,null,null,null,null,1,1,1,null,null,null,null,null,null,null,null,null,null,null,null,null,null,null,null,null,null,null,null,null,null,1,{"$f":"IF(AZ26=1,G26,0)","v":0},{"$f":"IF(AZ26=2,G26,0)","v":0},{"$f":"IF(AZ26=3,G26,0)","v":0},{"$f":"IF(AZ26=4,G26,0)","v":0},{"$f":"IF(AZ26=5,G26,0)","v":0},null,null,null,null,null,null,null,null,null,null,null,null,null,null,null,null,null,null,null,null,null,1,1]
[null,null,"Položka obsahuje hloubení rýh traktorbagrem, naložení výkopku na dopravní prostředek pro svislé, nebo vodorovné přemístění, popř. přemístění výkopku do 3 m (po povrchu území), případné zajištění rypadel polštáři, udržování pracoviště a ochranu výkopiště proti stékání srážkové vody z okolního terénu i s jejím odvodněním, nebo odvedením, přesekání a odstranění kořenů ve výkopišti, odstranění napadávek, urovnání dna výkopu.",null,null,null,null,null,null,null,null,"Položka obsahuje hloubení rýh traktorbagrem, naložení výkopku na dopravní prostředek pro svislé, nebo vodorovné přemístění, popř. přemístění výkopku do 3 m (po povrchu území), případné zajištění rypadel polštáři, udržování pracoviště a ochranu výkopiště proti stékání srážkové vody z okolního terénu i s jejím odvodněním, nebo odvedením, přesekání a odstranění kořenů ve výkopišti, odstranění napadávek, urovnání dna výkopu.",null,null,3]
[null,null,"Výkopy - průměrná hl. výkopů 1,60 m:",null,0,null,null,null,null,null,null,null,"Výkopy - průměrná hl. výkopů 1,60 m:"]
[null,null,"Vodovodní přípojky PE D32x3,0 mm:",null,0,null,null,null,null,null,null,null,"Vodovodní přípojky PE D32x3,0 mm:"]
[null,null,"Začátek provozního součtu",null,0,null,null,null,null,null,null,null,"Začátek provozního součtu"]
[null,null,"VP pro ppč. 3778:(8,80-3,00)*0,70*(1,60-0,20)+3,00*0,70*(1,60-0,35)",null,8.3089999999999993,null,null,null,null,null,null,null,"VP pro ppč. 3778:(8,80-3,00)*0,70*(1,60-0,20)+3,00*0,70*(1,60-0,35)"]
[null,null,"VP pro čp. 8:(2,80+2,00)*0,70*(1,60-0,20)",null,4.7039999999999997,null,null,null,null,null,null,null,"VP pro čp. 8:(2,80+2,00)*0,70*(1,60-0,20)"]
[null,null,"VP pro čp. 6:(4,60+59,90)*0,70*(1,60-0,20)",null,63.21,null,null,null,null,null,null,null,"VP pro čp. 6:(4,60+59,90)*0,70*(1,60-0,20)"]
[null,null,"VP pro čp. 2:(5,00+21,70)*0,70*(1,60-0,20)",null,26.166,null,null,null,null,null,null,null,"VP pro čp. 2:(5,00+21,70)*0,70*(1,60-0,20)"]
[null,null,"VP pro čp. 55:(15,90-6,00)*0,70*(1,60-0,20)",null,9.702,null,null,null,null,null,null,null,"VP pro čp. 55:(15,90-6,00)*0,70*(1,60-0,20)"]
[null,null,"Výkopy pro VŠ:",null,0,null,null,null,null,null,null,null,"Výkopy pro VŠ:"]
[null,null,"VP pro ppč. 3778:1,50*1,50*(1,95-0,20)",null,3.9375,null,null,null,null,null,null,null,"VP pro ppč. 3778:1,50*1,50*(1,95-0,20)"]
[null,null,"VP pro čp. 8:1,50*1,50*(1,95-0,20)-1,50*0,70*(1,60-0,20)",null,2.4674999999999998,null,null,null,null,null,null,null,"VP pro čp. 8:1,50*1,50*(1,95-0,20)-1,50*0,70*(1,60-0,20)"]
[null,null,"VP pro čp. 6:1,50*1,50*(1,95-0,20)-1,50*0,70*(1,60-0,20)",null,2.4674999999999998,null,null,null,null,null,null,null,"VP pro čp. 6:1,50*1,50*(1,95-0,20)-1,50*0,70*(1,60-0,20)"]
[null,null,"VP pro čp. 2:1,50*1,50*(1,95-0,20)-1,50*0,70*(1,60-0,20)",null,2.4674999999999998,null,null,null,null,null,null,null,"VP pro čp. 2:1,50*1,50*(1,95-0,20)-1,50*0,70*(1,60-0,20)"]
[null,null,"VP pro čp. 55:1,50*1,50*(1,95-0,20)-1,50*0,70*(1,60-0,20)",null,2.4674999999999998,null,null,null,null,null,null,null,"VP pro čp. 55:1,50*1,50*(1,95-0,20)-1,50*0,70*(1,60-0,20)"]
[null,null,"Konec provozního součtu",null,125.8985,null,null,null,null,null,null,null,"Konec provozního součtu"]
[null,null,"V hornině tř. 3 - 50%:125,8985*0,5",null,62.949199999999998,null,null,null,null,null,null,null,"V hornině tř. 3 - 50%:125,8985*0,5"]
[6,"132201219R00","Přípl.za lepivost,hloubení rýh 200cm,hor.3,STROJNĚ ","m3",31.474599999999999,null,{"$f":"E44*F44","v":0},0,{"$f":"E44*H44","v":0},0,{"$f":"E44*J44","v":0},null,null,null,2,null,null,null,null,null,null,null,null,null,null,null,1,1,1,null,null,null,null,null,null,null,null,null,null,null,null,null,null,null,null,null,null,null,null,null,null,1,{"$f":"IF(AZ44=1,G44,0)","v":0},{"$f":"IF(AZ44=2,G44,0)","v":0},{"$f":"IF(AZ44=3,G44,0)","v":0},{"$f":"IF(AZ44=4,G44,0)","v":0},{"$f":"IF(AZ44=5,G44,0)","v":0},null,null,null,null,null,null,null,null,null,null,null,null,null,null,null,null,null,null,null,null,null,1,1]
[null,null,"Výkopy - průměrná hl. výkopů 1,60 m:",null,0,null,null,null,null,null,null,null,"Výkopy - průměrná hl. výkopů 1,60 m:"]
[null,null,"Vodovodní přípojky PE D32x3,0 mm:",null,0,null,null,null,null,null,null,null,"Vodovodní přípojky PE D32x3,0 mm:"]
[null,null,"V hornině tř. 3 - 50%:125,8985*0,5*0,5",null,31.474599999999999,null,null,null,null,null,null,null,"V hornině tř. 3 - 50%:125,8985*0,5*0,5"]
[7,"132301212R00","Hloubení rýh š.do 200 cm hor.4 do 1000 m3, STROJNĚ ","m3",62.949199999999998,null,{"$f":"E48*F48","v":0},0,{"$f":"E48*H48","v":0},0,{"$f":"E48*J48","v":0},null,null,null,2,null,null,null,null,null,null,null,null,null,null,null,1,1,1,null,null,null,null,null,null,null,null,null,null,null,null,null,null,null,null,null,null,null,null,null,null,1,{"$f":"IF(AZ48=1,G48,0)","v":0},{"$f":"IF(AZ48=2,G48,0)","v":0},{"$f":"IF(AZ48=3,G48,0)","v":0},{"$f":"IF(AZ48=4,G48,0)","v":0},{"$f":"IF(AZ48=5,G48,0)","v":0},null,null,null,null,null,null,null,null,null,null,null,null,null,null,null,null,null,null,null,null,null,1,1]
[null,null,"Položka obsahuje hloubení rýh traktorbagrem, naložení výkopku na dopravní prostředek pro svislé, nebo vodorovné přemístění, popř. přemístění výkopku do 3 m (po povrchu území), případné zajištění rypadel polštáři, udržování pracoviště a ochranu výkopiště proti stékání srážkové vody z okolního terénu i s jejím odvodněním, nebo odvedením, přesekání a odstranění kořenů ve výkopišti, odstranění napadávek, urovnání dna výkopu.",null,null,null,null,null,null,null,null,"Položka obsahuje hloubení rýh traktorbagrem, naložení výkopku na dopravní prostředek pro svislé, nebo vodorovné přemístění, popř. přemístění výkopku do 3 m (po povrchu území), případné zajištění rypadel polštáři, udržování pracoviště a ochranu výkopiště proti stékání srážkové vody z okolního terénu i s jejím odvodněním, nebo odvedením, přesekání a odstranění kořenů ve výkopišti, odstranění napadávek, urovnání dna výkopu.",null,null,3]
[null,null,"Výkopy - průměrná hl. výkopů 1,60 m:",null,0,null,null,null,null,null,null,null,"Výkopy - průměrná hl. výkopů 1,60 m:"]
[null,null,"Vodovodní přípojky PE D32x3,0 mm:",null,0,null,null,null,null,null,null,null,"Vodovodní přípojky PE D32x3,0 mm:"]
[null,null,"V hornině tř. 4 - 50%:125,8985*0,5",null,62.949199999999998,null,null,null,null,null,null,null,"V hornině tř. 4 - 50%:125,8985*0,5"]
[8,"132301219R00","Přípl.za lepivost,hloubení rýh 200cm,hor.4,STROJNĚ ","m3",31.474599999999999,null,{"$f":"E53*F53","v":0},0,{"$f":"E53*H53","v":0},0,{"$f":"E53*J53","v":0},null,null,null,2,null,null,null,null,null,null,null,null,null,null,null,1,1,1,null,null,null,null,null,null,null,null,null,null,null,null,null,null,null,null,null,null,null,null,null,null,1,{"$f":"IF(AZ53=1,G53,0)","v":0},{"$f":"IF(AZ53=2,G53,0)","v":0},{"$f":"IF(AZ53=3,G53,0)","v":0},{"$f":"IF(AZ53=4,G53,0)","v":0},{"$f":"IF(AZ53=5,G53,0)","v":0},null,null,null,null,null,null,null,null,null,null,null,null,null,null,null,null,null,null,null,null,null,1,1]
[null,null,"Výkopy - průměrná hl. výkopů 1,60 m:",null,0,null,null,null,null,null,null,null,"Výkopy - průměrná hl. výkopů 1,60 m:"]
[null,null,"Vodovodní přípojky PE D32x3,0 mm:",null,0,null,null,null,null,null,null,null,"Vodovodní přípojky PE D32x3,0 mm:"]
[null,null,"V hornině tř. 4 - 50%:125,8985*0,5*0,5",null,31.474599999999999,null,null,null,null,null,null,null,"V hornině tř. 4 - 50%:125,8985*0,5*0,5"]
[9,"141721101R00","Řízené protlačení a vtažení PE d 110 mm, hor.1 - 4 ","m",6,null,{"$f":"E57*F57","v":0},3.48E-3,{"$f":"E57*H57","v":2.0879999999999999E-2},0,{"$f":"E57*J57","v":0},null,null,null,2,null,null,null,null,null,null,null,null,null,null,null,1,1,1,null,null,null,null,null,null,null,null,null,null,null,null,null,null,null,null,null,null,null,null,null,null,1,{"$f":"IF(AZ57=1,G57,0)","v":0},{"$f":"IF(AZ57=2,G57,0)","v":0},{"$f":"IF(AZ57=3,G57,0)","v":0},{"$f":"IF(AZ57=4,G57,0)","v":0},{"$f":"IF(AZ57=5,G57,0)","v":0},null,null,null,null,null,null,null,null,null,null,null,null,null,null,null,null,null,null,null,null,null,1,1]
[null,null,"Jedná se o bezvýkopovou technologii horizontálně řízeného vrtání a vtažení potrubí na principu rozplavování a rozrušování zeminy pomocí vysokotlaké směsi vody a bentonitu.",null,null,null,null,null,null,null,null,"Jedná se o bezvýkopovou technologii horizontálně řízeného vrtání a vtažení potrubí na principu rozplavování a rozrušování zeminy pomocí vysokotlaké směsi vody a bentonitu.",null,null,3]
[null,null,"V položce je započteno : - provedení pilotního vrtu,",null,null,null,null,null,null,null,null,"V položce je započteno : - provedení pilotního vrtu,",null,null,3]
[null,null,"                                        - potřebné rozšíření vrtu,",null,null,null,null,null,null,null,null,"                                        - potřebné rozšíření vrtu,",null,null,3]
[null,null,"                                        - vtažení potrubí,",null,null,null,null,null,null,null,null,"                                        - vtažení potrubí,",null,null,3]
[null,null,"                                        - svařování vtahovaného potrubí.",null,null,null,null,null,null,null,null,"                                        - svařování vtahovaného potrubí.",null,null,3]
[null,null,"V položce není započteno: - zemní práce nutné pro provedení prací,",null,null,null,null,null,null,null,null,"V položce není započteno: - zemní práce nutné pro provedení prací,",null,null,3]
[null,null,"                                           - případné čerpání vody,",null,null,null,null,null,null,null,null,"                                           - případné čerpání vody,",null,null,3]
[null,null,"                                           - montáž vedení, slouží-li vtahovaná trubka jako ochranné potrubí,",null,null,null,null,null,null,null,null,"                                           - montáž vedení, slouží-li vtahovaná trubka jako ochranné potrubí,",null,null,3]
[null,null,"                                           - dodání vtahovaných trubek.",null,null,null,null,null,null,null,null,"                                           - dodání vtahovaných trubek.",null,null,3]
[null,null,"Vodovodní přípojky PE D32x3,0 mm:",null,0,null,null,null,null,null,null,null,"Vodovodní přípojky PE D32x3,0 mm:"]
[null,null,"VP pro čp. 55:",null,0,null,null,null,null,null,null,null,"VP pro čp. 55:"]
[null,null,"Řízený protlak pod komunikací KSS LK pro chráničku PE D63:6,00",null,6,null,null,null,null,null,null,null,"Řízený protlak pod komunikací KSS LK pro chráničku PE D63:6,00"]
[10,"151101101R00","Pažení a rozepření stěn rýh - příložné - hl.do 2 m ","m2",29.25,null,{"$f":"E70*F70","v":0},9.8999999999999999E-4,{"$f":"E70*H70","v":2.8957500000000001E-2},0,{"$f":"E70*J70","v":0},null,null,null,2,null,null,null,null,null,null,null,null,null,null,null,1,1,1,null,null,null,null,null,null,null,null,null,null,null,null,null,null,null,null,null,null,null,null,null,null,1,{"$f":"IF(AZ70=1,G70,0)","v":0},{"$f":"IF(AZ70=2,G70,0)","v":0},{"$f":"IF(AZ70=3,G70,0)","v":0},{"$f":"IF(AZ70=4,G70,0)","v":0},{"$f":"IF(AZ70=5,G70,0)","v":0},null,null,null,null,null,null,null,null,null,null,null,null,null,null,null,null,null,null,null,null,null,1,1]
[null,null,"Výkopy - průměrná hl. výkopů 1,60 m:",null,0,null,null,null,null,null,null,null,"Výkopy - průměrná hl. výkopů 1,60 m:"]
[null,null,"Vodovodní přípojky PE D32x3,0 mm:",null,0,null,null,null,null,null,null,null,"Vodovodní přípojky PE D32x3,0 mm:"]
[null,null,"Výkopy pro VŠ:",null,0,null,null,null,null,null,null,null,"Výkopy pro VŠ:"]
[null,null,"VP pro ppč. 3778:1,50*1,95*2",null,5.85,null,null,null,null,null,null,null,"VP pro ppč. 3778:1,50*1,95*2"]
[null,null,"VP pro čp. 8:1,50*1,95*2",null,5.85,null,null,null,null,null,null,null,"VP pro čp. 8:1,50*1,95*2"]
[null,null,"VP pro čp. 6:1,50*1,95*2",null,5.85,null,null,null,null,null,null,null,"VP pro čp. 6:1,50*1,95*2"]
[null,null,"VP pro čp. 2:1,50*1,95*2",null,5.85,null,null,null,null,null,null,null,"VP pro čp. 2:1,50*1,95*2"]
[null,null,"VP pro čp. 55:1,50*1,95*2",null,5.85,null,null,null,null,null,null,null,"VP pro čp. 55:1,50*1,95*2"]
[11,"151101111R00","Odstranění pažení stěn rýh - příložné - hl. do 2 m ","m2",29.25,null,{"$f":"E79*F79","v":0},0,{"$f":"E79*H79","v":0},0,{"$f":"E79*J79","v":0},null,null,null,2,null,null,null,null,null,null,null,null,null,null,null,1,1,1,null,null,null,null,null,null,null,null,null,null,null,null,null,null,null,null,null,null,null,null,null,null,1,{"$f":"IF(AZ79=1,G79,0)","v":0},{"$f":"IF(AZ79=2,G79,0)","v":0},{"$f":"IF(AZ79=3,G79,0)","v":0},{"$f":"IF(AZ79=4,G79,0)","v":0},{"$f":"IF(AZ79=5,G79,0)","v":0},null,null,null,null,null,null,null,null,null,null,null,null,null,null,null,null,null,null,null,null,null,1,1]
[null,null,"Výkopy - průměrná hl. výkopů 1,60 m:",null,0,null,null,null,null,null,null,null,"Výkopy - průměrná hl. výkopů 1,60 m:"]
[null,null,"Vodovodní přípojky PE D32x3,0 mm:",null,0,null,null,null,null,null,null,null,"Vodovodní přípojky PE D32x3,0 mm:"]
[null,null,"Výkopy pro VŠ:",null,0,null,null,null,null,null,null,null,"Výkopy pro VŠ:"]
[null,null,"VP pro ppč. 3778:1,50*1,95*2",null,5.85,null,null,null,null,null,null,null,"VP pro ppč. 3778:1,50*1,95*2"]
[null,null,"VP pro čp. 8:1,50*1,95*2",null,5.85,null,null,null,null,null,null,null,"VP pro čp. 8:1,50*1,95*2"]
[null,null,"VP pro čp. 6:1,50*1,95*2",null,5.85,null,null,null,null,null,null,null,"VP pro čp. 6:1,50*1,95*2"]
[null,null,"VP pro čp. 2:1,50*1,95*2",null,5.85,null,null,null,null,null,null,null,"VP pro čp. 2:1,50*1,95*2"]
[null,null,"VP pro čp. 55:1,50*1,95*2",null,5.85,null,null,null,null,null,null,null,"VP pro čp. 55:1,50*1,95*2"]
[12,"162701105RSZ","Vodorovné přemístění výkopku z hor.1-7 na skládku zhotovitele","m3",48.031500000000001,null,{"$f":"E88*F88","v":0},0,{"$f":"E88*H88","v":0},0,{"$f":"E88*J88","v":0},null,null,null,2,null,null,null,null,null,null,null,null,null,null,null,1,1,1,null,null,null,null,null,null,null,null,null,null,null,null,null,null,null,null,null,null,null,null,null,null,1,{"$f":"IF(AZ88=1,G88,0)","v":0},{"$f":"IF(AZ88=2,G88,0)","v":0},{"$f":"IF(AZ88=3,G88,0)","v":0},{"$f":"IF(AZ88=4,G88,0)","v":0},{"$f":"IF(AZ88=5,G88,0)","v":0},null,null,null,null,null,null,null,null,null,null,null,null,null,null,null,null,null,null,null,null,null,1,1]
[null,null,"Výkopy - průměrná hl. výkopů 1,60 m:",null,0,null,null,null,null,null,null,null,"Výkopy - průměrná hl. výkopů 1,60 m:"]
[null,null,"Vodovodní přípojky PE D32x3,0 mm:",null,0,null,null,null,null,null,null,null,"Vodovodní přípojky PE D32x3,0 mm:"]
[null,null,"V hornině tř. 3 - 4:125,8985",null,125.8985,null,null,null,null,null,null,null,"V hornině tř. 3 - 4:125,8985"]
[null,null,"Odpočet objemu zásypů zeminou:-77,8670",null,-77.867000000000004,null,null,null,null,null,null,null,"Odpočet objemu zásypů zeminou:-77,8670"]
[13,"174101101R00","Zásyp jam, rýh, šachet se zhutněním ","m3",79.479799999999997,null,{"$f":"E93*F93","v":0},0,{"$f":"E93*H93","v":0},0,{"$f":"E93*J93","v":0},null,null,null,2,null,null,null,null,null,null,null,null,null,null,null,1,1,1,null,null,null,null,null,null,null,null,null,null,null,null,null,null,null,null,null,null,null,null,null,null,1,{"$f":"IF(AZ93=1,G93,0)","v":0},{"$f":"IF(AZ93=2,G93,0)","v":0},{"$f":"IF(AZ93=3,G93,0)","v":0},{"$f":"IF(AZ93=4,G93,0)","v":0},{"$f":"IF(AZ93=5,G93,0)","v":0},null,null,null,null,null,null,null,null,null,null,null,null,null,null,null,null,null,null,null,null,null,1,1]
[null,null,"Položka obsahuje strojní přemístění materiálu pro zásyp ze vzdálenosti do 10 m od okraje zásypu.",null,null,null,null,null,null,null,null,"Položka obsahuje strojní přemístění materiálu pro zásyp ze vzdálenosti do 10 m od okraje zásypu.",null,null,3]
[null,null,null,null,null,null,null,null,null,null,null,null,null,null,3]
[null,null,"Zásyp ŠD fr. 0-63 mm:1,6128",null,1.6128,null,null,null,null,null,null,null,"Zásyp ŠD fr. 0-63 mm:1,6128"]
[null,null,"Začátek provozního součtu",null,0,null,null,null,null,null,null,null,"Začátek provozního součtu"]
[null,null,"Výkopy - průměrná hl. výkopů 1,60 m:",null,0,null,null,null,null,null,null,null,"Výkopy - průměrná hl. výkopů 1,60 m:"]
[null,null,"Vodovodní přípojky PE D32x3,0 mm:",null,0,null,null,null,null,null,null,null,"Vodovodní přípojky PE D32x3,0 mm:"]
[null,null,"VP pro ppč. 3778:3,00*0,70*(1,60-0,35)",null,2.625,null,null,null,null,null,null,null,"VP pro ppč. 3778:3,00*0,70*(1,60-0,35)"]
[null,null,"Odpočet objemu lože, potrubí a obsypů:-3,00*0,70*(0,15+0,032+0,30)",null,-1.0122,null,null,null,null,null,null,null,"Odpočet objemu lože, potrubí a obsypů:-3,00*0,70*(0,15+0,032+0,30)"]
[null,null,"Konec provozního součtu",null,1.6128,null,null,null,null,null,null,null,"Konec provozního součtu"]
[null,null,"Zásypy zeminou:77,8670",null,77.867000000000004,null,null,null,null,null,null,null,"Zásypy zeminou:77,8670"]
[null,null,"Začátek provozního součtu",null,0,null,null,null,null,null,null,null,"Začátek provozního součtu"]
[null,null,"Výkopy - průměrná hl. výkopů 1,60 m:",null,0,null,null,null,null,null,null,null,"Výkopy - průměrná hl. výkopů 1,60 m:"]
[null,null,"Vodovodní přípojky PE D32x3,0 mm:",null,0,null,null,null,null,null,null,null,"Vodovodní přípojky PE D32x3,0 mm:"]
[null,null,"VP pro ppč. 3778:(8,80-3,00)*0,70*(1,60-0,20)",null,5.6840000000000002,null,null,null,null,null,null,null,"VP pro ppč. 3778:(8,80-3,00)*0,70*(1,60-0,20)"]
[null,null,"VP pro čp. 8:(2,80+2,00)*0,70*(1,60-0,20)",null,4.7039999999999997,null,null,null,null,null,null,null,"VP pro čp. 8:(2,80+2,00)*0,70*(1,60-0,20)"]
[null,null,"VP pro čp. 6:(4,60+59,90)*0,70*(1,60-0,20)",null,63.21,null,null,null,null,null,null,null,"VP pro čp. 6:(4,60+59,90)*0,70*(1,60-0,20)"]
[null,null,"VP pro čp. 2:(5,00+21,70)*0,70*(1,60-0,20)",null,26.166,null,null,null,null,null,null,null,"VP pro čp. 2:(5,00+21,70)*0,70*(1,60-0,20)"]
[null,null,"VP pro čp. 55:(15,90-6,00)*0,70*(1,60-0,20)",null,9.702,null,null,null,null,null,null,null,"VP pro čp. 55:(15,90-6,00)*0,70*(1,60-0,20)"]
[null,null,"Výkopy pro VŠ:",null,0,null,null,null,null,null,null,null,"Výkopy pro VŠ:"]
[null,null,"VP pro ppč. 3778:1,50*1,50*(1,95-0,20)",null,3.9375,null,null,null,null,null,null,null,"VP pro ppč. 3778:1,50*1,50*(1,95-0,20)"]
[null,null,"VP pro čp. 8:1,50*1,50*(1,95-0,20)-1,50*0,70*(1,60-0,20)",null,2.4674999999999998,null,null,null,null,null,null,null,"VP pro čp. 8:1,50*1,50*(1,95-0,20)-1,50*0,70*(1,60-0,20)"]
[null,null,"VP pro čp. 6:1,50*1,50*(1,95-0,20)-1,50*0,70*(1,60-0,20)",null,2.4674999999999998,null,null,null,null,null,null,null,"VP pro čp. 6:1,50*1,50*(1,95-0,20)-1,50*0,70*(1,60-0,20)"]
[null,null,"VP pro čp. 2:1,50*1,50*(1,95-0,20)-1,50*0,70*(1,60-0,20)",null,2.4674999999999998,null,null,null,null,null,null,null,"VP pro čp. 2:1,50*1,50*(1,95-0,20)-1,50*0,70*(1,60-0,20)"]
[null,null,"VP pro čp. 55:1,50*1,50*(1,95-0,20)-1,50*0,70*(1,60-0,20)",null,2.4674999999999998,null,null,null,null,null,null,null,"VP pro čp. 55:1,50*1,50*(1,95-0,20)-1,50*0,70*(1,60-0,20)"]
[null,null,"Odpočet objemu lože, potrubí a obsypů:-111,70*0,70*(0,15+0,032+0,30)",null,-37.687600000000003,null,null,null,null,null,null,null,"Odpočet objemu lože, potrubí a obsypů:-111,70*0,70*(0,15+0,032+0,30)"]
[null,null,"Odpočet objemu VŠ:-7,7189",null,-7.7188999999999997,null,null,null,null,null,null,null,"Odpočet objemu VŠ:-7,7189"]
[null,null,"0",null,0,null,null,null,null,null,null,null,0]
[null,null,"Konec provozního součtu",null,77.86699999999999,null,null,null,null,null,null,null,"Konec provozního součtu"]
[14,"175101101R00","Obsyp potrubí bez prohození sypaniny ","m3",26.564,null,{"$f":"E122*F122","v":0},0,{"$f":"E122*H122","v":0},0,{"$f":"E122*J122","v":0},null,null,null,2,null,null,null,null,null,null,null,null,null,null,null,1,1,1,null,null,null,null,null,null,null,null,null,null,null,null,null,null,null,null,null,null,null,null,null,null,1,{"$f":"IF(AZ122=1,G122,0)","v":0},{"$f":"IF(AZ122=2,G122,0)","v":0},{"$f":"IF(AZ122=3,G122,0)","v":0},{"$f":"IF(AZ122=4,G122,0)","v":0},{"$f":"IF(AZ122=5,G122,0)","v":0},null,null,null,null,null,null,null,null,null,null,null,null,null,null,null,null,null,null,null,null,null,1,1]
[null,null,"Vodovodní přípojky PE D32x3,0 mm:",null,0,null,null,null,null,null,null,null,"Vodovodní přípojky PE D32x3,0 mm:"]
[null,null,"VP pro ppč. 3778:8,80*(0,70*(0,032+0,30)-0,016^2*Pi)",null,2.0379999999999998,null,null,null,null,null,null,null,"VP pro ppč. 3778:8,80*(0,70*(0,032+0,30)-0,016^2*Pi)"]
[null,null,"VP pro čp. 8:(2,80+2,00)*(0,70*(0,032+0,30)-0,016^2*Pi)",null,1.1116999999999999,null,null,null,null,null,null,null,"VP pro čp. 8:(2,80+2,00)*(0,70*(0,032+0,30)-0,016^2*Pi)"]
[null,null,"VP pro čp. 6:(4,60+59,90)*(0,70*(0,032+0,30)-0,016^2*Pi)",null,14.937900000000001,null,null,null,null,null,null,null,"VP pro čp. 6:(4,60+59,90)*(0,70*(0,032+0,30)-0,016^2*Pi)"]
[null,null,"VP pro čp. 2:(5,00+21,70)*(0,70*(0,032+0,30)-0,016^2*Pi)",null,6.1836000000000002,null,null,null,null,null,null,null,"VP pro čp. 2:(5,00+21,70)*(0,70*(0,032+0,30)-0,016^2*Pi)"]
[null,null,"VP pro čp. 55:(15,90-6,00)*(0,70*(0,032+0,30)-0,016^2*Pi)",null,2.2928000000000002,null,null,null,null,null,null,null,"VP pro čp. 55:(15,90-6,00)*(0,70*(0,032+0,30)-0,016^2*Pi)"]
[15,"199000002R00","Poplatek za skládku horniny 1- 7 č. dle katal. odpadů 17 05 04","m3",48.031500000000001,null,{"$f":"E129*F129","v":0},0,{"$f":"E129*H129","v":0},0,{"$f":"E129*J129","v":0},null,null,null,2,null,null,null,null,null,null,null,null,null,null,null,1,1,1,null,null,null,null,null,null,null,null,null,null,null,null,null,null,null,null,null,null,null,null,null,null,1,{"$f":"IF(AZ129=1,G129,0)","v":0},{"$f":"IF(AZ129=2,G129,0)","v":0},{"$f":"IF(AZ129=3,G129,0)","v":0},{"$f":"IF(AZ129=4,G129,0)","v":0},{"$f":"IF(AZ129=5,G129,0)","v":0},null,null,null,null,null,null,null,null,null,null,null,null,null,null,null,null,null,null,null,null,null,1,1]
[null,null,"Výkopy - průměrná hl. výkopů 1,60 m:",null,0,null,null,null,null,null,null,null,"Výkopy - průměrná hl. výkopů 1,60 m:"]
[null,null,"Vodovodní přípojky PE D32x3,0 mm:",null,0,null,null,null,null,null,null,null,"Vodovodní přípojky PE D32x3,0 mm:"]
[null,null,"V hornině tř. 3 - 4:125,8985",null,125.8985,null,null,null,null,null,null,null,"V hornině tř. 3 - 4:125,8985"]
[null,null,"Odpočet objemu zásypů zeminou:-77,8670",null,-77.867000000000004,null,null,null,null,null,null,null,"Odpočet objemu zásypů zeminou:-77,8670"]
[16,"919735113R00","Řezání stávajícího živičného krytu tl. 10 - 15 cm ","m",6,null,{"$f":"E134*F134","v":0},0,{"$f":"E134*H134","v":0},0,{"$f":"E134*J134","v":0},null,null,null,2,null,null,null,null,null,null,null,null,null,null,null,1,1,1,null,null,null,null,null,null,null,null,null,null,null,null,null,null,null,null,null,null,null,null,null,null,1,{"$f":"IF(AZ134=1,G134,0)","v":0},{"$f":"IF(AZ134=2,G134,0)","v":0},{"$f":"IF(AZ134=3,G134,0)","v":0},{"$f":"IF(AZ134=4,G134,0)","v":0},{"$f":"IF(AZ134=5,G134,0)","v":0},null,null,null,null,null,null,null,null,null,null,null,null,null,null,null,null,null,null,null,null,null,1,1]
[null,null,"Vodovodní přípojky PE D32x3,0 mm:",null,0,null,null,null,null,null,null,null,"Vodovodní přípojky PE D32x3,0 mm:"]
[null,null,"VP pro ppč. 3778:3,00*2",null,6,null,null,null,null,null,null,null,"VP pro ppč. 3778:3,00*2"]
[17,"979082113RSZ","Vodorovná doprava suti po suchu na skládku zhotovitele","t",1.617,null,{"$f":"E137*F137","v":0},0,{"$f":"E137*H137","v":0},0,{"$f":"E137*J137","v":0},null,null,null,2,null,null,null,null,null,null,null,null,null,null,null,1,1,1,null,null,null,null,null,null,null,null,null,null,null,null,null,null,null,null,null,null,null,null,null,null,1,{"$f":"IF(AZ137=1,G137,0)","v":0},{"$f":"IF(AZ137=2,G137,0)","v":0},{"$f":"IF(AZ137=3,G137,0)","v":0},{"$f":"IF(AZ137=4,G137,0)","v":0},{"$f":"IF(AZ137=5,G137,0)","v":0},null,null,null,null,null,null,null,null,null,null,null,null,null,null,null,null,null,null,null,null,null,1,1]
[18,"979089001R00","Poplatek za skládku stavební suti štěrky z komunikací, skupina odpadu 010408","t",1.155,null,{"$f":"E138*F138","v":0},0,{"$f":"E138*H138","v":0},0,{"$f":"E138*J138","v":0},null,null,null,2,null,null,null,null,null,null,null,null,null,null,null,1,1,1,null,null,null,null,null,null,null,null,null,null,null,null,null,null,null,null,null,null,null,null,null,null,1,{"$f":"IF(AZ138=1,G138,0)","v":0},{"$f":"IF(AZ138=2,G138,0)","v":0},{"$f":"IF(AZ138=3,G138,0)","v":0},{"$f":"IF(AZ138=4,G138,0)","v":0},{"$f":"IF(AZ138=5,G138,0)","v":0},null,null,null,null,null,null,null,null,null,null,null,null,null,null,null,null,null,null,null,null,null,1,1]
[19,"979999995R00","Poplatek za reciklaci asfaltu, kusovost do 1600cm2 skupina 170302","t",0.46200000000000002,null,{"$f":"E139*F139","v":0},0,{"$f":"E139*H139","v":0},0,{"$f":"E139*J139","v":0},null,null,null,2,null,null,null,null,null,null,null,null,null,null,null,1,1,1,null,null,null,null,null,null,null,null,null,null,null,null,null,null,null,null,null,null,null,null,null,null,1,{"$f":"IF(AZ139=1,G139,0)","v":0},{"$f":"IF(AZ139=2,G139,0)","v":0},{"$f":"IF(AZ139=3,G139,0)","v":0},{"$f":"IF(AZ139=4,G139,0)","v":0},{"$f":"IF(AZ139=5,G139,0)","v":0},null,null,null,null,null,null,null,null,null,null,null,null,null,null,null,null,null,null,null,null,null,1,1]
[null,null,"Položka je určena pro suť o velikosti kusu do 30x30 cm (technologický materiál určený k recyklaci).",null,null,null,null,null,null,null,null,"Položka je určena pro suť o velikosti kusu do 30x30 cm (technologický materiál určený k recyklaci).",null,null,3]
[20,"286134105.R","Trubka tlaková AQUALINE RC1 PE100 63x5,8 mm PN16 návin L=100 m","m",6.6,null,{"$f":"E141*F141","v":0},1.47E-3,{"$f":"E141*H141","v":9.7019999999999988E-3},null,{"$f":"E141*J141","v":0},null,null,null,2,null,null,null,null,null,null,null,null,null,null,null,3,1,"286134105.R",null,null,null,null,null,null,null,null,null,null,null,null,null,null,null,null,null,null,null,null,null,null,1,{"$f":"IF(AZ141=1,G141,0)","v":0},{"$f":"IF(AZ141=2,G141,0)","v":0},{"$f":"IF(AZ141=3,G141,0)","v":0},{"$f":"IF(AZ141=4,G141,0)","v":0},{"$f":"IF(AZ141=5,G141,0)","v":0},null,null,null,null,null,null,null,null,null,null,null,null,null,null,null,null,null,null,null,null,null,3,1]
[null,null,"Vodovodní přípojky PE D32x3,0 mm:",null,0,null,null,null,null,null,null,null,"Vodovodní přípojky PE D32x3,0 mm:"]
[null,null,"VP pro čp. 55:",null,0,null,null,null,null,null,null,null,"VP pro čp. 55:"]
[null,null,"Řízený protlak pod komunikací KSS LK pro chráničku PE D63:6,00*1,1",null,6.6,null,null,null,null,null,null,null,"Řízený protlak pod komunikací KSS LK pro chráničku PE D63:6,00*1,1"]
[21,"58337308.R","Štěrkopísek frakce 0-2 tř.B","t",52.934899999999999,null,{"$f":"E145*F145","v":0},1,{"$f":"E145*H145","v":52.934899999999999},null,{"$f":"E145*J145","v":0},null,null,null,2,null,null,null,null,null,null,null,null,null,null,null,3,1,"58337308.R",null,null,null,null,null,null,null,null,null,null,null,null,null,null,null,null,null,null,null,null,null,null,1,{"$f":"IF(AZ145=1,G145,0)","v":0},{"$f":"IF(AZ145=2,G145,0)","v":0},{"$f":"IF(AZ145=3,G145,0)","v":0},{"$f":"IF(AZ145=4,G145,0)","v":0},{"$f":"IF(AZ145=5,G145,0)","v":0},null,null,null,null,null,null,null,null,null,null,null,null,null,null,null,null,null,null,null,null,null,3,1]
[null,null,"Vodovodní přípojky PE D32x3,0 mm:",null,0,null,null,null,null,null,null,null,"Vodovodní přípojky PE D32x3,0 mm:"]
[null,null,"VP pro ppč. 3778:8,80*(0,70*(0,032+0,30)-0,016^2*Pi)*1,973*1,01",null,4.0613000000000001,null,null,null,null,null,null,null,"VP pro ppč. 3778:8,80*(0,70*(0,032+0,30)-0,016^2*Pi)*1,973*1,01"]
[null,null,"VP pro čp. 8:(2,80+2,00)*(0,70*(0,032+0,30)-0,016^2*Pi)*1,973*1,01",null,2.2151999999999998,null,null,null,null,null,null,null,"VP pro čp. 8:(2,80+2,00)*(0,70*(0,032+0,30)-0,016^2*Pi)*1,973*1,01"]
[null,null,"VP pro čp. 6:(4,60+59,90)*(0,70*(0,032+0,30)-0,016^2*Pi)*1,973*1,01",null,29.767299999999999,null,null,null,null,null,null,null,"VP pro čp. 6:(4,60+59,90)*(0,70*(0,032+0,30)-0,016^2*Pi)*1,973*1,01"]
[null,null,"VP pro čp. 2:(5,00+21,70)*(0,70*(0,032+0,30)-0,016^2*Pi)*1,973*1,01",null,12.3223,null,null,null,null,null,null,null,"VP pro čp. 2:(5,00+21,70)*(0,70*(0,032+0,30)-0,016^2*Pi)*1,973*1,01"]
[null,null,"VP pro čp. 55:(15,90-6,00)*(0,70*(0,032+0,30)-0,016^2*Pi)*1,973*1,01",null,4.5689000000000002,null,null,null,null,null,null,null,"VP pro čp. 55:(15,90-6,00)*(0,70*(0,032+0,30)-0,016^2*Pi)*1,973*1,01"]
[22,"58344197R","Štěrkodrtě frakce 0-63 A","t",3.0510000000000002,null,{"$f":"E152*F152","v":0},1,{"$f":"E152*H152","v":3.0510000000000002},null,{"$f":"E152*J152","v":0},null,null,null,2,null,null,null,null,null,null,null,null,null,null,null,3,1,"58344197R",null,null,null,null,null,null,null,null,null,null,null,null,null,null,null,null,null,null,null,null,null,null,1,{"$f":"IF(AZ152=1,G152,0)","v":0},{"$f":"IF(AZ152=2,G152,0)","v":0},{"$f":"IF(AZ152=3,G152,0)","v":0},{"$f":"IF(AZ152=4,G152,0)","v":0},{"$f":"IF(AZ152=5,G152,0)","v":0},null,null,null,null,null,null,null,null,null,null,null,null,null,null,null,null,null,null,null,null,null,3,1]
[null,null,"Zásyp ŠD fr. 0-63 mm:1,6128*1,873*1,01",null,3.0510000000000002,null,null,null,null,null,null,null,"Zásyp ŠD fr. 0-63 mm:1,6128*1,873*1,01"]
[null,null,"Začátek provozního součtu",null,0,null,null,null,null,null,null,null,"Začátek provozního součtu"]
[null,null,"Výkopy - průměrná hl. výkopů 1,60 m:",null,0,null,null,null,null,null,null,null,"Výkopy - průměrná hl. výkopů 1,60 m:"]
[null,null,"Vodovodní přípojky PE D32x3,0 mm:",null,0,null,null,null,null,null,null,null,"Vodovodní přípojky PE D32x3,0 mm:"]
[null,null,"VP pro ppč. 3778:3,00*0,70*(1,60-0,35)",null,2.625,null,null,null,null,null,null,null,"VP pro ppč. 3778:3,00*0,70*(1,60-0,35)"]
[null,null,"Odpočet objemu lože, potrubí a obsypů:-3,00*0,70*(0,15+0,032+0,30)",null,-1.0122,null,null,null,null,null,null,null,"Odpočet objemu lože, potrubí a obsypů:-3,00*0,70*(0,15+0,032+0,30)"]
[null,null,"Konec provozního součtu",null,1.6128,null,null,null,null,null,null,null,"Konec provozního součtu"]
[null,"Celkem za","1 Zemní práce",null,null,null,{"$f":"SUM(G7:G159)","v":0},null,{"$f":"SUM(I7:I159)","v":56.045439500000001},null,{"$f":"SUM(K7:K159)","v":-1.6170000000000002},null,null,null,4,null,null,null,null,null,null,null,null,null,null,null,null,null,null,null,null,null,null,null,null,null,null,null,null,null,null,null,null,null,null,null,null,null,null,null,null,null,{"$f":"SUM(BA7:BA159)","v":0},{"$f":"SUM(BB7:BB159)","v":0},{"$f":"SUM(BC7:BC159)","v":0},{"$f":"SUM(BD7:BD159)","v":0},{"$f":"SUM(BE7:BE159)","v":0}]
["Díl:","45","Podkladní a vedlejší konstrukce",null,null,null,null,null,null,null,null,null,null,null,1]
[23,"451572111R00","Lože pod potrubí z kameniva těženého 0 - 4 mm ","m3",12.0435,null,{"$f":"E162*F162","v":0},0.43051,{"$f":"E162*H162","v":5.1848471849999997},0,{"$f":"E162*J162","v":0},null,null,null,2,null,null,null,null,null,null,null,null,null,null,null,1,1,1,null,null,null,null,null,null,null,null,null,null,null,null,null,null,null,null,null,null,null,null,null,null,1,{"$f":"IF(AZ162=1,G162,0)","v":0},{"$f":"IF(AZ162=2,G162,0)","v":0},{"$f":"IF(AZ162=3,G162,0)","v":0},{"$f":"IF(AZ162=4,G162,0)","v":0},{"$f":"IF(AZ162=5,G162,0)","v":0},null,null,null,null,null,null,null,null,null,null,null,null,null,null,null,null,null,null,null,null,null,1,1]
[null,null,"Vodovodní přípojky PE D32x3,0 mm:",null,0,null,null,null,null,null,null,null,"Vodovodní přípojky PE D32x3,0 mm:"]
[null,null,"VP pro ppč. 3778:8,80*0,70*0,15",null,0.92400000000000004,null,null,null,null,null,null,null,"VP pro ppč. 3778:8,80*0,70*0,15"]
[null,null,"VP pro čp. 8:(2,80+2,00)*0,70*0,15",null,0.504,null,null,null,null,null,null,null,"VP pro čp. 8:(2,80+2,00)*0,70*0,15"]
[null,null,"VP pro čp. 6:(4,60+59,90)*0,70*0,15",null,6.7725,null,null,null,null,null,null,null,"VP pro čp. 6:(4,60+59,90)*0,70*0,15"]
[null,null,"VP pro čp. 2:(5,00+21,70)*0,70*0,15",null,2.8035000000000001,null,null,null,null,null,null,null,"VP pro čp. 2:(5,00+21,70)*0,70*0,15"]
[null,null,"VP pro čp. 55:(15,90-6,00)*0,70*0,15",null,1.0395000000000001,null,null,null,null,null,null,null,"VP pro čp. 55:(15,90-6,00)*0,70*0,15"]
[null,"Celkem za","45 Podkladní a vedlejší konstrukce",null,null,null,{"$f":"SUM(G161:G168)","v":0},null,{"$f":"SUM(I161:I168)","v":5.1848471849999997},null,{"$f":"SUM(K161:K168)","v":0},null,null,null,4,null,null,null,null,null,null,null,null,null,null,null,null,null,null,null,null,null,null,null,null,null,null,null,null,null,null,null,null,null,null,null,null,null,null,null,null,null,{"$f":"SUM(BA161:BA168)","v":0},{"$f":"SUM(BB161:BB168)","v":0},{"$f":"SUM(BC161:BC168)","v":0},{"$f":"SUM(BD161:BD168)","v":0},{"$f":"SUM(BE161:BE168)","v":0}]
["Díl:","5","Komunikace",null,null,null,null,null,null,null,null,null,null,null,1]
[24,"566903111R00","Vyspravení podkladu po překopech kam.hrubě drceným ","t",0.98329999999999995,null,{"$f":"E171*F171","v":0},1.1000000000000001,{"$f":"E171*H171","v":1.0816300000000001},0,{"$f":"E171*J171","v":0},null,null,null,2,null,null,null,null,null,null,null,null,null,null,null,1,1,1,null,null,null,null,null,null,null,null,null,null,null,null,null,null,null,null,null,null,null,null,null,null,1,{"$f":"IF(AZ171=1,G171,0)","v":0},{"$f":"IF(AZ171=2,G171,0)","v":0},{"$f":"IF(AZ171=3,G171,0)","v":0},{"$f":"IF(AZ171=4,G171,0)","v":0},{"$f":"IF(AZ171=5,G171,0)","v":0},null,null,null,null,null,null,null,null,null,null,null,null,null,null,null,null,null,null,null,null,null,1,1]
[null,null,"Vodovodní přípojky PE D32x3,0 mm:",null,0,null,null,null,null,null,null,null,"Vodovodní přípojky PE D32x3,0 mm:"]
[null,null,"VP pro ppč. 3778:3,00*0,70*0,25*1,873",null,0.98329999999999995,null,null,null,null,null,null,null,"VP pro ppč. 3778:3,00*0,70*0,25*1,873"]
[25,"566904111R00","Vyspravení podkladu po překopech kam.obal.asfaltem ","t",0.52500000000000002,null,{"$f":"E174*F174","v":0},1,{"$f":"E174*H174","v":0.52500000000000002},0,{"$f":"E174*J174","v":0},null,null,null,2,null,null,null,null,null,null,null,null,null,null,null,1,1,1,null,null,null,null,null,null,null,null,null,null,null,null,null,null,null,null,null,null,null,null,null,null,1,{"$f":"IF(AZ174=1,G174,0)","v":0},{"$f":"IF(AZ174=2,G174,0)","v":0},{"$f":"IF(AZ174=3,G174,0)","v":0},{"$f":"IF(AZ174=4,G174,0)","v":0},{"$f":"IF(AZ174=5,G174,0)","v":0},null,null,null,null,null,null,null,null,null,null,null,null,null,null,null,null,null,null,null,null,null,1,1]
[null,null,"Vodovodní přípojky PE D32x3,0 mm:",null,0,null,null,null,null,null,null,null,"Vodovodní přípojky PE D32x3,0 mm:"]
[null,null,"VP pro ppč. 3778:3,00*0,70*0,10*2,5",null,0.52500000000000002,null,null,null,null,null,null,null,"VP pro ppč. 3778:3,00*0,70*0,10*2,5"]
[null,"Celkem za","5 Komunikace",null,null,null,{"$f":"SUM(G170:G176)","v":0},null,{"$f":"SUM(I170:I176)","v":1.60663},null,{"$f":"SUM(K170:K176)","v":0},null,null,null,4,null,null,null,null,null,null,null,null,null,null,null,null,null,null,null,null,null,null,null,null,null,null,null,null,null,null,null,null,null,null,null,null,null,null,null,null,null,{"$f":"SUM(BA170:BA176)","v":0},{"$f":"SUM(BB170:BB176)","v":0},{"$f":"SUM(BC170:BC176)","v":0},{"$f":"SUM(BD170:BD176)","v":0},{"$f":"SUM(BE170:BE176)","v":0}]
["Díl:","8","Trubní vedení",null,null,null,null,null,null,null,null,null,null,null,1]
[26,"871161121R00","Montáž trubek polyetylenových ve výkopu d 32 mm ","m",120.7,null,{"$f":"E179*F179","v":0},0,{"$f":"E179*H179","v":0},0,{"$f":"E179*J179","v":0},null,null,null,2,null,null,null,null,null,null,null,null,null,null,null,1,1,1,null,null,null,null,null,null,null,null,null,null,null,null,null,null,null,null,null,null,null,null,null,null,1,{"$f":"IF(AZ179=1,G179,0)","v":0},{"$f":"IF(AZ179=2,G179,0)","v":0},{"$f":"IF(AZ179=3,G179,0)","v":0},{"$f":"IF(AZ179=4,G179,0)","v":0},{"$f":"IF(AZ179=5,G179,0)","v":0},null,null,null,null,null,null,null,null,null,null,null,null,null,null,null,null,null,null,null,null,null,1,1]
[null,null,"V položce je uvažováno použití svitku. ",null,null,null,null,null,null,null,null,"V položce je uvažováno použití svitku. ",null,null,3]
[null,null,"Vodovodní přípojky PE D32x3,0 mm:",null,0,null,null,null,null,null,null,null,"Vodovodní přípojky PE D32x3,0 mm:"]
[null,null,"VP pro ppč. 3778:8,80",null,8.8000000000000007,null,null,null,null,null,null,null,"VP pro ppč. 3778:8,80"]
[null,null,"VP pro čp. 8:2,80+2,00",null,4.8,null,null,null,null,null,null,null,"VP pro čp. 8:2,80+2,00"]
[null,null,"VP pro čp. 6:4,60+59,90",null,64.5,null,null,null,null,null,null,null,"VP pro čp. 6:4,60+59,90"]
[null,null,"VP pro čp. 2:5,00+21,70",null,26.7,null,null,null,null,null,null,null,"VP pro čp. 2:5,00+21,70"]
[null,null,"VP pro čp. 55:15,90",null,15.9,null,null,null,null,null,null,null,"VP pro čp. 55:15,90"]
[27,"877162121R00","Přirážka za 1 spoj elektrotvarovky d 32 mm ","kus",5,null,{"$f":"E187*F187","v":0},0,{"$f":"E187*H187","v":0},0,{"$f":"E187*J187","v":0},null,null,null,2,null,null,null,null,null,null,null,null,null,null,null,1,1,1,null,null,null,null,null,null,null,null,null,null,null,null,null,null,null,null,null,null,null,null,null,null,1,{"$f":"IF(AZ187=1,G187,0)","v":0},{"$f":"IF(AZ187=2,G187,0)","v":0},{"$f":"IF(AZ187=3,G187,0)","v":0},{"$f":"IF(AZ187=4,G187,0)","v":0},{"$f":"IF(AZ187=5,G187,0)","v":0},null,null,null,null,null,null,null,null,null,null,null,null,null,null,null,null,null,null,null,null,null,1,1]
[null,null,"Vodovodní přípojky PE D32x3,0 mm:",null,0,null,null,null,null,null,null,null,"Vodovodní přípojky PE D32x3,0 mm:"]
[null,null,"Elektrospojka PE D32:5",null,5,null,null,null,null,null,null,null,"Elektrospojka PE D32:5"]
[28,"891183439RX0","Přepojení potrubí PE na přípojkách D 32 včetně dodávky přepojovací tvarovky","kus",4,null,{"$f":"E190*F190","v":0},4.6000000000000001E-4,{"$f":"E190*H190","v":1.8400000000000001E-3},0,{"$f":"E190*J190","v":0},null,null,null,2,null,null,null,null,null,null,null,null,null,null,null,1,1,1,null,null,null,null,null,null,null,null,null,null,null,null,null,null,null,null,null,null,null,null,null,null,1,{"$f":"IF(AZ190=1,G190,0)","v":0},{"$f":"IF(AZ190=2,G190,0)","v":0},{"$f":"IF(AZ190=3,G190,0)","v":0},{"$f":"IF(AZ190=4,G190,0)","v":0},{"$f":"IF(AZ190=5,G190,0)","v":0},null,null,null,null,null,null,null,null,null,null,null,null,null,null,null,null,null,null,null,null,null,1,1]
[null,null,"Položka obsahuje přerušení stávajícího potrubí, montáž a dodávku příslušné tvarovky pro propojení stávajícího potrubí (PE, ocel a pod.)  s novým potrubím (PE D 32x3,0 mm) přípojky  D 32",null,null,null,null,null,null,null,null,"Položka obsahuje přerušení stávajícího potrubí, montáž a dodávku příslušné tvarovky pro propojení stávajícího potrubí (PE, ocel a pod.)  s novým potrubím (PE D 32x3,0 mm) přípojky  D 32",null,null,3]
[null,null,"Vodovodní přípojky PE D32x3,0 mm:",null,0,null,null,null,null,null,null,null,"Vodovodní přípojky PE D32x3,0 mm:"]
[null,null,"VP pro čp. 8:1",null,1,null,null,null,null,null,null,null,"VP pro čp. 8:1"]
[null,null,"VP pro čp. 6:1",null,1,null,null,null,null,null,null,null,"VP pro čp. 6:1"]
[null,null,"VP pro čp. 2:1",null,1,null,null,null,null,null,null,null,"VP pro čp. 2:1"]
[null,null,"VP pro čp. 55:1",null,1,null,null,null,null,null,null,null,"VP pro čp. 55:1"]
[29,"892233111R00","Desinfekce vodovodního potrubí DN 70 ","m",120.7,null,{"$f":"E197*F197","v":0},0,{"$f":"E197*H197","v":0},0,{"$f":"E197*J197","v":0},null,null,null,2,null,null,null,null,null,null,null,null,null,null,null,1,1,1,null,null,null,null,null,null,null,null,null,null,null,null,null,null,null,null,null,null,null,null,null,null,1,{"$f":"IF(AZ197=1,G197,0)","v":0},{"$f":"IF(AZ197=2,G197,0)","v":0},{"$f":"IF(AZ197=3,G197,0)","v":0},{"$f":"IF(AZ197=4,G197,0)","v":0},{"$f":"IF(AZ197=5,G197,0)","v":0},null,null,null,null,null,null,null,null,null,null,null,null,null,null,null,null,null,null,null,null,null,1,1]
[null,null,"V položce jsou zakalkulovány náklady na napuštění a vypuštění vody, dodání vody a desinfekčního prostředku a na bakteriologický rozbor vody.",null,null,null,null,null,null,null,null,"V položce jsou zakalkulovány náklady na napuštění a vypuštění vody, dodání vody a desinfekčního prostředku a na bakteriologický rozbor vody.",null,null,3]
[null,null,"Vodovodní přípojky PE D32x3,0 mm:",null,0,null,null,null,null,null,null,null,"Vodovodní přípojky PE D32x3,0 mm:"]
[null,null,"VP pro ppč. 3778:8,80",null,8.8000000000000007,null,null,null,null,null,null,null,"VP pro ppč. 3778:8,80"]
[null,null,"VP pro čp. 8:2,80+2,00",null,4.8,null,null,null,null,null,null,null,"VP pro čp. 8:2,80+2,00"]
[null,null,"VP pro čp. 6:4,60+59,90",null,64.5,null,null,null,null,null,null,null,"VP pro čp. 6:4,60+59,90"]
[null,null,"VP pro čp. 2:5,00+21,70",null,26.7,null,null,null,null,null,null,null,"VP pro čp. 2:5,00+21,70"]
[null,null,"VP pro čp. 55:15,90",null,15.9,null,null,null,null,null,null,null,"VP pro čp. 55:15,90"]
[30,"892241111R00","Tlaková zkouška vodovodního potrubí DN 80 včetně zajištění konců potrubí","m",120.7,null,{"$f":"E205*F205","v":0},0,{"$f":"E205*H205","v":0},0,{"$f":"E205*J205","v":0},null,null,null,2,null,null,null,null,null,null,null,null,null,null,null,1,1,1,null,null,null,null,null,null,null,null,null,null,null,null,null,null,null,null,null,null,null,null,null,null,1,{"$f":"IF(AZ205=1,G205,0)","v":0},{"$f":"IF(AZ205=2,G205,0)","v":0},{"$f":"IF(AZ205=3,G205,0)","v":0},{"$f":"IF(AZ205=4,G205,0)","v":0},{"$f":"IF(AZ205=5,G205,0)","v":0},null,null,null,null,null,null,null,null,null,null,null,null,null,null,null,null,null,null,null,null,null,1,1]
[null,null,"V položce jsou započteny náklady na přísun, montáž, demontáž a odsun zkoušecího čerpadla, napuštění tlakovou vodou a dodání vody pro tlakovou zkoušku.",null,null,null,null,null,null,null,null,"V položce jsou započteny náklady na přísun, montáž, demontáž a odsun zkoušecího čerpadla, napuštění tlakovou vodou a dodání vody pro tlakovou zkoušku.",null,null,3]
[null,null,"Vodovodní přípojky PE D32x3,0 mm:",null,0,null,null,null,null,null,null,null,"Vodovodní přípojky PE D32x3,0 mm:"]
[null,null,"VP pro ppč. 3778:8,80",null,8.8000000000000007,null,null,null,null,null,null,null,"VP pro ppč. 3778:8,80"]
[null,null,"VP pro čp. 8:2,80+2,00",null,4.8,null,null,null,null,null,null,null,"VP pro čp. 8:2,80+2,00"]
[null,null,"VP pro čp. 6:4,60+59,90",null,64.5,null,null,null,null,null,null,null,"VP pro čp. 6:4,60+59,90"]
[null,null,"VP pro čp. 2:5,00+21,70",null,26.7,null,null,null,null,null,null,null,"VP pro čp. 2:5,00+21,70"]
[null,null,"VP pro čp. 55:15,90",null,15.9,null,null,null,null,null,null,null,"VP pro čp. 55:15,90"]
[31,"893151111RRX","Montáž šachty vodoměrné a revizní plastové kruhové ","kus",5,null,{"$f":"E213*F213","v":0},0.51066,{"$f":"E213*H213","v":2.5533000000000001},0,{"$f":"E213*J213","v":0},null,null,null,2,null,null,null,null,null,null,null,null,null,null,null,1,1,1,null,null,null,null,null,null,null,null,null,null,null,null,null,null,null,null,null,null,null,null,null,null,1,{"$f":"IF(AZ213=1,G213,0)","v":0},{"$f":"IF(AZ213=2,G213,0)","v":0},{"$f":"IF(AZ213=3,G213,0)","v":0},{"$f":"IF(AZ213=4,G213,0)","v":0},{"$f":"IF(AZ213=5,G213,0)","v":0},null,null,null,null,null,null,null,null,null,null,null,null,null,null,null,null,null,null,null,null,null,1,1]
[null,null,"Včetně zřízení podkladního betonu v tl. 15 cm vyztuženého KARI sítí 8/100/100.",null,null,null,null,null,null,null,null,"Včetně zřízení podkladního betonu v tl. 15 cm vyztuženého KARI sítí 8/100/100.",null,null,3]
[null,null,"Vodovodní přípojky PE D32x3,0 mm:",null,0,null,null,null,null,null,null,null,"Vodovodní přípojky PE D32x3,0 mm:"]
[null,null,"VP pro ppč. 3778:1",null,1,null,null,null,null,null,null,null,"VP pro ppč. 3778:1"]
[null,null,"VP pro čp. 8:1",null,1,null,null,null,null,null,null,null,"VP pro čp. 8:1"]
[null,null,"VP pro čp. 6:1",null,1,null,null,null,null,null,null,null,"VP pro čp. 6:1"]
[null,null,"VP pro čp. 2:1",null,1,null,null,null,null,null,null,null,"VP pro čp. 2:1"]
[null,null,"VP pro čp. 55:1",null,1,null,null,null,null,null,null,null,"VP pro čp. 55:1"]
[32,"893151155RR2","Montáž vodoměrné sestavy pro PE D 32x3,0 mm včetně dodávky VS dle standartů provozovatele","kus",5,null,{"$f":"E221*F221","v":0},0.50214999999999999,{"$f":"E221*H221","v":2.5107499999999998},0,{"$f":"E221*J221","v":0},null,null,null,2,null,null,null,null,null,null,null,null,null,null,null,1,1,1,null,null,null,null,null,null,null,null,null,null,null,null,null,null,null,null,null,null,null,null,null,null,1,{"$f":"IF(AZ221=1,G221,0)","v":0},{"$f":"IF(AZ221=2,G221,0)","v":0},{"$f":"IF(AZ221=3,G221,0)","v":0},{"$f":"IF(AZ221=4,G221,0)","v":0},{"$f":"IF(AZ221=5,G221,0)","v":0},null,null,null,null,null,null,null,null,null,null,null,null,null,null,null,null,null,null,null,null,null,1,1]
[null,null,"Provedení sestavy VS dle projektové dokumentace a standartů investora a provozovatele (SčVaK) do jedné vodoměrné šachty",null,null,null,null,null,null,null,null,"Provedení sestavy VS dle projektové dokumentace a standartů investora a provozovatele (SčVaK) do jedné vodoměrné šachty",null,null,3]
[null,null,"Součástí VS je i osazení vodoměru",null,null,null,null,null,null,null,null,"Součástí VS je i osazení vodoměru",null,null,3]
[null,null,"Vodovodní přípojky PE D32x3,0 mm:",null,0,null,null,null,null,null,null,null,"Vodovodní přípojky PE D32x3,0 mm:"]
[null,null,"VP pro ppč. 3778:1",null,1,null,null,null,null,null,null,null,"VP pro ppč. 3778:1"]
[null,null,"VP pro čp. 8:1",null,1,null,null,null,null,null,null,null,"VP pro čp. 8:1"]
[null,null,"VP pro čp. 6:1",null,1,null,null,null,null,null,null,null,"VP pro čp. 6:1"]
[null,null,"VP pro čp. 2:1",null,1,null,null,null,null,null,null,null,"VP pro čp. 2:1"]
[null,null,"VP pro čp. 55:1",null,1,null,null,null,null,null,null,null,"VP pro čp. 55:1"]
[33,"893151199RRX","Montáž šachty vodoměrné a revizní betonové ","kus",5,null,{"$f":"E230*F230","v":0},0.51066,{"$f":"E230*H230","v":2.5533000000000001},0,{"$f":"E230*J230","v":0},null,null,null,2,null,null,null,null,null,null,null,null,null,null,null,1,1,1,null,null,null,null,null,null,null,null,null,null,null,null,null,null,null,null,null,null,null,null,null,null,1,{"$f":"IF(AZ230=1,G230,0)","v":0},{"$f":"IF(AZ230=2,G230,0)","v":0},{"$f":"IF(AZ230=3,G230,0)","v":0},{"$f":"IF(AZ230=4,G230,0)","v":0},{"$f":"IF(AZ230=5,G230,0)","v":0},null,null,null,null,null,null,null,null,null,null,null,null,null,null,null,null,null,null,null,null,null,1,1]
[null,null,"Včetně zřízení podkladního betonu v tl. 15 cm vyztuženého KARI sítí 8/100/100.",null,null,null,null,null,null,null,null,"Včetně zřízení podkladního betonu v tl. 15 cm vyztuženého KARI sítí 8/100/100.",null,null,3]
[null,null,"Vodovodní přípojky PE D32x3,0 mm:",null,0,null,null,null,null,null,null,null,"Vodovodní přípojky PE D32x3,0 mm:"]
[null,null,"VP pro ppč. 3778:1",null,1,null,null,null,null,null,null,null,"VP pro ppč. 3778:1"]
[null,null,"VP pro čp. 8:1",null,1,null,null,null,null,null,null,null,"VP pro čp. 8:1"]
[null,null,"VP pro čp. 6:1",null,1,null,null,null,null,null,null,null,"VP pro čp. 6:1"]
[null,null,"VP pro čp. 2:1",null,1,null,null,null,null,null,null,null,"VP pro čp. 2:1"]
[null,null,"VP pro čp. 55:1",null,1,null,null,null,null,null,null,null,"VP pro čp. 55:1"]
[34,"899721112R00","Fólie výstražná z PVC bílá, šířka 30 cm ","m",114.7,null,{"$f":"E238*F238","v":0},0,{"$f":"E238*H238","v":0},0,{"$f":"E238*J238","v":0},null,null,null,2,null,null,null,null,null,null,null,null,null,null,null,1,1,1,null,null,null,null,null,null,null,null,null,null,null,null,null,null,null,null,null,null,null,null,null,null,1,{"$f":"IF(AZ238=1,G238,0)","v":0},{"$f":"IF(AZ238=2,G238,0)","v":0},{"$f":"IF(AZ238=3,G238,0)","v":0},{"$f":"IF(AZ238=4,G238,0)","v":0},{"$f":"IF(AZ238=5,G238,0)","v":0},null,null,null,null,null,null,null,null,null,null,null,null,null,null,null,null,null,null,null,null,null,1,1]
[null,null,"Vodovodní přípojky PE D32x3,0 mm:",null,0,null,null,null,null,null,null,null,"Vodovodní přípojky PE D32x3,0 mm:"]
[null,null,"VP pro ppč. 3778:8,80",null,8.8000000000000007,null,null,null,null,null,null,null,"VP pro ppč. 3778:8,80"]
[null,null,"VP pro čp. 8:2,80+2,00",null,4.8,null,null,null,null,null,null,null,"VP pro čp. 8:2,80+2,00"]
[null,null,"VP pro čp. 6:4,60+59,90",null,64.5,null,null,null,null,null,null,null,"VP pro čp. 6:4,60+59,90"]
[null,null,"VP pro čp. 2:5,00+21,70",null,26.7,null,null,null,null,null,null,null,"VP pro čp. 2:5,00+21,70"]
[null,null,"VP pro čp. 55:15,90-6,00",null,9.9,null,null,null,null,null,null,null,"VP pro čp. 55:15,90-6,00"]
[35,"899731114R00","Vodič signalizační CYY 6 mm2 ","m",128.19999999999999,null,{"$f":"E245*F245","v":0},8.0000000000000007E-5,{"$f":"E245*H245","v":1.0255999999999999E-2},0,{"$f":"E245*J245","v":0},null,null,null,2,null,null,null,null,null,null,null,null,null,null,null,1,1,1,null,null,null,null,null,null,null,null,null,null,null,null,null,null,null,null,null,null,null,null,null,null,1,{"$f":"IF(AZ245=1,G245,0)","v":0},{"$f":"IF(AZ245=2,G245,0)","v":0},{"$f":"IF(AZ245=3,G245,0)","v":0},{"$f":"IF(AZ245=4,G245,0)","v":0},{"$f":"IF(AZ245=5,G245,0)","v":0},null,null,null,null,null,null,null,null,null,null,null,null,null,null,null,null,null,null,null,null,null,1,1]
[null,null,"Součástí položky je zajištění proměření vodiče a výchozí zevize.",null,null,null,null,null,null,null,null,"Součástí položky je zajištění proměření vodiče a výchozí zevize.",null,null,3]
[null,null,"Vodovodní přípojky PE D32x3,0 mm:",null,0,null,null,null,null,null,null,null,"Vodovodní přípojky PE D32x3,0 mm:"]
[null,null,"VP pro ppč. 3778:8,80+1,50",null,10.3,null,null,null,null,null,null,null,"VP pro ppč. 3778:8,80+1,50"]
[null,null,"VP pro čp. 8:2,80+2,00+1,50",null,6.3,null,null,null,null,null,null,null,"VP pro čp. 8:2,80+2,00+1,50"]
[null,null,"VP pro čp. 6:4,60+59,90+1,50",null,66,null,null,null,null,null,null,null,"VP pro čp. 6:4,60+59,90+1,50"]
[null,null,"VP pro čp. 2:5,00+21,70+1,50",null,28.2,null,null,null,null,null,null,null,"VP pro čp. 2:5,00+21,70+1,50"]
[null,null,"VP pro čp. 55:15,90+1,50",null,17.399999999999999,null,null,null,null,null,null,null,"VP pro čp. 55:15,90+1,50"]
[36,"28613576.01.R","Trubka PE100RC2 SDR11 D 32x3,0 mm L 100m","m",122.51049999999999,null,{"$f":"E253*F253","v":0},3.79E-3,{"$f":"E253*H253","v":0.46431479499999995},null,{"$f":"E253*J253","v":0},null,null,null,2,null,null,null,null,null,null,null,null,null,null,null,3,1,"28613576.01.R",null,null,null,null,null,null,null,null,null,null,null,null,null,null,null,null,null,null,null,null,null,null,1,{"$f":"IF(AZ253=1,G253,0)","v":0},{"$f":"IF(AZ253=2,G253,0)","v":0},{"$f":"IF(AZ253=3,G253,0)","v":0},{"$f":"IF(AZ253=4,G253,0)","v":0},{"$f":"IF(AZ253=5,G253,0)","v":0},null,null,null,null,null,null,null,null,null,null,null,null,null,null,null,null,null,null,null,null,null,3,1]
[null,null,"Vodovodní přípojky PE D32x3,0 mm:",null,0,null,null,null,null,null,null,null,"Vodovodní přípojky PE D32x3,0 mm:"]
[null,null,"VP pro ppč. 3778:8,80*1,015",null,8.9320000000000004,null,null,null,null,null,null,null,"VP pro ppč. 3778:8,80*1,015"]
[null,null,"VP pro čp. 8:(2,80+2,00)*1,015",null,4.8719999999999999,null,null,null,null,null,null,null,"VP pro čp. 8:(2,80+2,00)*1,015"]
[null,null,"VP pro čp. 6:(4,60+59,90)*1,015",null,65.467500000000001,null,null,null,null,null,null,null,"VP pro čp. 6:(4,60+59,90)*1,015"]
[null,null,"VP pro čp. 2:(5,00+21,70)*1,015",null,27.1005,null,null,null,null,null,null,null,"VP pro čp. 2:(5,00+21,70)*1,015"]
[null,null,"VP pro čp. 55:15,90*1,015",null,16.138500000000001,null,null,null,null,null,null,null,"VP pro čp. 55:15,90*1,015"]
[37,"28653075.05.R","Elektrospojka d 32 mm PE 100 SDR11","kus",5.0750000000000002,null,{"$f":"E260*F260","v":0},1.2999999999999999E-3,{"$f":"E260*H260","v":6.5975000000000001E-3},null,{"$f":"E260*J260","v":0},null,null,null,2,null,null,null,null,null,null,null,null,null,null,null,3,1,"28653075.05.R",null,null,null,null,null,null,null,null,null,null,null,null,null,null,null,null,null,null,null,null,null,null,1,{"$f":"IF(AZ260=1,G260,0)","v":0},{"$f":"IF(AZ260=2,G260,0)","v":0},{"$f":"IF(AZ260=3,G260,0)","v":0},{"$f":"IF(AZ260=4,G260,0)","v":0},{"$f":"IF(AZ260=5,G260,0)","v":0},null,null,null,null,null,null,null,null,null,null,null,null,null,null,null,null,null,null,null,null,null,3,1]
[null,null,"Vodovodní přípojky PE D32x3,0 mm:",null,0,null,null,null,null,null,null,null,"Vodovodní přípojky PE D32x3,0 mm:"]
[null,null,"Elektrospojka PE D32:5*1,015",null,5.0750000000000002,null,null,null,null,null,null,null,"Elektrospojka PE D32:5*1,015"]
[38,"28697256.R","Šachta vodoměrná v. 1500 mm","kus",5,null,{"$f":"E263*F263","v":0},0.06,{"$f":"E263*H263","v":0.3},null,{"$f":"E263*J263","v":0},null,null,null,2,null,null,null,null,null,null,null,null,null,null,null,3,1,"28697256.R",null,null,null,null,null,null,null,null,null,null,null,null,null,null,null,null,null,null,null,null,null,null,1,{"$f":"IF(AZ263=1,G263,0)","v":0},{"$f":"IF(AZ263=2,G263,0)","v":0},{"$f":"IF(AZ263=3,G263,0)","v":0},{"$f":"IF(AZ263=4,G263,0)","v":0},{"$f":"IF(AZ263=5,G263,0)","v":0},null,null,null,null,null,null,null,null,null,null,null,null,null,null,null,null,null,null,null,null,null,3,1]
[null,null,"Celoplastová kruhová šachta samonosná - průměr 1000 mm.",null,null,null,null,null,null,null,null,"Celoplastová kruhová šachta samonosná - průměr 1000 mm.",null,null,3]
[null,null,"Je tvořena vlastní nádrží šachty výšky 1500 mm a vstupní šachtičkou D 600 mm výšky 300 mm zakrytou plastovým pochůzným poklopem.",null,null,null,null,null,null,null,null,"Je tvořena vlastní nádrží šachty výšky 1500 mm a vstupní šachtičkou D 600 mm výšky 300 mm zakrytou plastovým pochůzným poklopem.",null,null,3]
[null,null,"Nádrž šachty je osazena plastovými stupadly a plastovými průchodkami pro napojení přívodu a odvodu vody.",null,null,null,null,null,null,null,null,"Nádrž šachty je osazena plastovými stupadly a plastovými průchodkami pro napojení přívodu a odvodu vody.",null,null,3]
[null,null,"Materiál: směs polypropylenu (PP) a polyetylenu (PE)",null,null,null,null,null,null,null,null,"Materiál: směs polypropylenu (PP) a polyetylenu (PE)",null,null,3]
[null,null,"Vodovodní přípojky PE D32x3,0 mm:",null,0,null,null,null,null,null,null,null,"Vodovodní přípojky PE D32x3,0 mm:"]
[null,null,"VP pro ppč. 3778:1",null,1,null,null,null,null,null,null,null,"VP pro ppč. 3778:1"]
[null,null,"VP pro čp. 8:1",null,1,null,null,null,null,null,null,null,"VP pro čp. 8:1"]
[null,null,"VP pro čp. 6:1",null,1,null,null,null,null,null,null,null,"VP pro čp. 6:1"]
[null,null,"VP pro čp. 2:1",null,1,null,null,null,null,null,null,null,"VP pro čp. 2:1"]
[null,null,"VP pro čp. 55:1",null,1,null,null,null,null,null,null,null,"VP pro čp. 55:1"]
[null,"Celkem za","8 Trubní vedení",null,null,null,{"$f":"SUM(G178:G273)","v":0},null,{"$f":"SUM(I178:I273)","v":8.4003582950000002},null,{"$f":"SUM(K178:K273)","v":0},null,null,null,4,null,null,null,null,null,null,null,null,null,null,null,null,null,null,null,null,null,null,null,null,null,null,null,null,null,null,null,null,null,null,null,null,null,null,null,null,null,{"$f":"SUM(BA178:BA273)","v":0},{"$f":"SUM(BB178:BB273)","v":0},{"$f":"SUM(BC178:BC273)","v":0},{"$f":"SUM(BD178:BD273)","v":0},{"$f":"SUM(BE178:BE273)","v":0}]
["Díl:","99","Staveništní přesun hmot",null,null,null,null,null,null,null,null,null,null,null,1]
[39,"998276101RXX","Přesun hmot, trubní vedení plastová, otevř. výkop pro celý rozsah objektu","t",71.237274979999995,null,{"$f":"E276*F276","v":0},0,{"$f":"E276*H276","v":0},null,{"$f":"E276*J276","v":0},null,null,null,2,null,null,null,null,null,null,null,null,null,null,null,7,1,2,null,null,null,null,null,null,null,null,null,null,null,null,null,null,null,null,null,null,null,null,null,null,1,{"$f":"IF(AZ276=1,G276,0)","v":0},{"$f":"IF(AZ276=2,G276,0)","v":0},{"$f":"IF(AZ276=3,G276,0)","v":0},{"$f":"IF(AZ276=4,G276,0)","v":0},{"$f":"IF(AZ276=5,G276,0)","v":0},null,null,null,null,null,null,null,null,null,null,null,null,null,null,null,null,null,null,null,null,null,7,1]
[null,null,"Staveništní doprava pro celý rozsah objektu - doprava zmeziskládek vybudovaného zařízení staveniště zhotovitele na jednotlivé části staveniště.",null,null,null,null,null,null,null,null,"Staveništní doprava pro celý rozsah objektu - doprava zmeziskládek vybudovaného zařízení staveniště zhotovitele na jednotlivé části staveniště.",null,null,3]
[null,"Celkem za","99 Staveništní přesun hmot",null,null,null,{"$f":"SUM(G275:G277)","v":0},null,{"$f":"SUM(I275:I277)","v":0},null,{"$f":"SUM(K275:K277)","v":0},null,null,null,4,null,null,null,null,null,null,null,null,null,null,null,null,null,null,null,null,null,null,null,null,null,null,null,null,null,null,null,null,null,null,null,null,null,null,null,null,null,{"$f":"SUM(BA275:BA277)","v":0},{"$f":"SUM(BB275:BB277)","v":0},{"$f":"SUM(BC275:BC277)","v":0},{"$f":"SUM(BD275:BD277)","v":0},{"$f":"SUM(BE275:BE277)","v":0}]

{"sheet":"OaVNS","index":7,"n_rows":28,"n_cols":67,"rows_kept":28,"cut":false,"hidden":false,"merged":[[0,0,0,6],[2,0,2,1],[3,0,3,1],[3,4,3,6],[6,2,6,6]]}
["Položkový rozpočet "]
[]
["Stavba :",null,"3410 Prodloužení vodovodního řadu, Vyskeř - Drahoňovice",null,"Rozpočet:","OaVNS"]
["Objekt :",null,"OaVNS - Ostatní a vedlejší náklady stavby "]
[]
["P.č.","Číslo položky","Název položky","MJ","množství","cena / MJ","celkem (Kč)","Jednotková hmotnost","Celková hmotnost","Jednotková dem.hmot.","Celková dem.hmot."]
["Díl:","950","Ostatní náklady stavby"]
[1,"950 99-0001.ONS","Zajištění prostoru a vybudování zařízení staveniště včetně potřebných staveništních komunikací","soubor",1,null,{"$f":"SUM(E8*F8)","v":0},8.6899999999999998E-3,{"$f":"E8*H8","v":8.6899999999999998E-3},0,{"$f":"E8*J8","v":0},null,null,null,null,null,null,null,null,null,null,null,null,null,null,null,null,null,null,null,null,null,null,null,null,null,null,null,null,null,null,null,null,null,null,null,null,null,null,null,null,null,null,null,null,null,null,null,null,null,null,null,null,null,null,1,1]
[2,"950 99-0003.ONS","Zajištění bezpečnosti při provádění stavby ve smyslu bezpečnosti práce i ochrany životního prostředí a zeleně","soubor",1,null,{"$f":"SUM(E9*F9)","v":0}]
[3,"950 99-0005.ONS","Vytýčení stavby a hranic pozemků při provádění stavby ","soubor",1,null,0]
[4,"950 99-0006.ONS","Zajištění včasného oznámení o zahájení prací majitelům pozemků a správců sítí dotčených stavbou","soubor",1,null,0]
[5,"950 99-0007.ONS","Spolupráce s vlastníky pozemků při případném uvolnění pozemků pro stavbu (např. skládky osobního materiálu vlastníků)","soubor",1,null,0,2.478E-2,{"$f":"E12*H12","v":2.478E-2},0,{"$f":"E12*J12","v":0},null,null,null,null,null,null,null,null,null,null,null,null,null,null,null,null,null,null,null,null,null,null,null,null,null,null,null,null,null,null,null,null,null,null,null,null,null,null,null,null,null,null,null,null,null,null,null,null,null,null,null,null,null,null,1,1]
[6,"950 99-0008.ONS","Zajištění vytýčení podzemních zařízení, a v případě jejich křížení či souběhu v otevřeném výkopu, jejich písemné předání zpět jejich správcům před zásypem","soubor",1,null,0]
[7,"950 99-0009.ONS","Vypracování a projednání návrhu dočasných dopravních opatření (případně i po etapách dle zvoleného postupu prací zhotovitelem)","soubor",1,null,0]
[8,"950 99-0010.ONS","Zajištění povolení zvláštního užívání komunikací v souladu s postupem výstavby,včetně správních poplatků a povolení k užívání dalších, stavbou dotčených pozemků   (skládky materiálu, mezideponie atd.)","soubor",1,null,0]
[9,"950 99-0011.ONS","Zřízení, údržba a likvidace dopravního opatření po dobu realizace stavby (případně i po etapách dle zvoleného postupu prací zhotovitelem)","soubor",1,null,0,0,{"$f":"E16*H16","v":0},0,{"$f":"E16*J16","v":0},null,null,null,null,null,null,null,null,null,null,null,null,null,null,null,null,null,null,null,null,null,null,null,null,null,null,null,null,null,null,null,null,null,null,null,null,null,null,null,null,null,null,null,null,null,null,null,null,null,null,null,null,null,null,1,1]
[10,"950 99-0013.ONS","Zajištění činnosti odpovědného geodeta zhotovitele","soubor",1,null,0]
[11,"950 99-0015.ONS","Zajištění čistoty na staveništi a v jeho okolí, zajištění každodenního čištění komunikací dotčených provozem zhotovitele","soubor",1,null,0]
[12,"950 99-0016.ONS","Fotodokumentace průběhu díla; zhotovitel zajistí a předá objednateli průběžnou fotodokumentaci realizace díla. Fotodokumentace bude dokladovat průběh díla a bude zejména dokumentovat části stavby a konstrukce před jejich zakrytím","soubor",1,null,0]
[13,"950 99-0018.ONS","Zkoušky hutnění komunikací a rýh dle ČSN a EN","soubor",1,null,0]
[14,"950 99-0021.ONS","Inženýrská a kompletační činnost zhotovitele ","soubor",1,null,0]
[15,"950 99-0022.ONS","Zhotovení dokumentace skutečného provedení díla ","soubor",1,null,0]
[16,"950 99-0023.ONS","Geodetické zaměření stavby","soubor",1,null,0]
[17,"950 99-0024.ONS","Pasportizace objektů a komunikací před zahájením stavby včetně předání fotokokumentace investorovi stavby v digitální a tištěné podobě.","soubor",1,null,0]
[18,"950 99-0025.ONS","Provizorní zásobování vodou (cisterny)","soubor",1,null,0]
[19,"950 99-0027.ONS","Ostatní činnosti nutné ke zdárnému provedení díla, které jsou vymezeny zejména v technické specifikaci stavby","soubor",1,null,0]
[]
[null,"ONS Celkem",null,null,null,null,{"$f":"SUM(G8:G26)","v":0}]